Workbook

Sheet Úvod

Sheet Naklady
F1: změň | J1: Náklady na materiál
A2: Výše investice | D2: 117500000 | J2: Materiál | K2: Náklady (Kč/t) | L2: Podíl produkce
A3: Roční průměrná produkce | D3: 50000 | J3: ACP | K3: 541 | L3: 0.25
A4: Fixní náklady | D4: Kč/rok | E4: Kč/t | J4: ACO | K4: 739 | L4: 0.5
A5: Mzdy pracovníkům | D5: 2000000 | E5: =D5/$D$3 -> 40 | J5: ACL | K5: 630 | L5: 0.25
A6: Nájem pozemku | D6: 500000 | E6: =D6/$D$3 -> 10 | J6: CELKEM | K6: =ROUNDUP(K3*L3+K4*L4+K5*L5,0) -> 663
A7: Odpisy | D7: 5875000 | E7: =ROUNDUP(D7/$D$3,0) -> 118
A8: Opravy | D8: 500000 | E8: =D8/$D$3 -> 10
A9: Ostatní náklady | D9: =D3*E9 -> 1500000 | E9: 30
A10: Fixní náklady celkem | D10: =SUM(D5:D9) -> 10375000 | E10: =SUM(E5:E9) -> 208
A12: Variabilní náklady | E12: Kč/t
A13: Energie (elektřina, multiprach, TOEL) | E13: =28+36+20 -> 84
A14: Pohoné hmoty | E14: 5
A15: Laboratorní práce | E15: 21.5
A16: Likvidace prachu | E16: 4
A17: Variabilní náklady celkem | E17: =SUM(E13:E16) -> 114.5
A19: Materiál | D19: =ROUNDUP(K6,0) -> 663
A21: Náklady celkem | E21: Kč/t
A22: Celkem náklady | E22: =(K6+E10+E17) -> 985.5
A23: Správní režie | E23: =ROUNDUP(0.1*E22,1) -> 98.6
A24: Zisk | E24: =0.2*E22 -> 197.1
A25: Prodejní cena | E25: =SUM(E22:E24) -> 1281.2
A26: Prodejní cena zaokrouhlená | E26: =ROUNDUP(E25,0) -> 1282
A27: CF+ | E27: =ROUNDUP(E26-(E23+E22)+E7,0) -> 316
A28: CF+ = Prodejní cena - Celkem náklady - Správní režie + Odpisy

Sheet List1
C1: Obalovna
B2: tis. | H2: Nastevní spolehlivé hodnoty
A3: Investiční náklady | B3: =Naklady!D2 -> 117500000 | C3: rovnoměrné rozdělení | E3: Norm. rozdělení | H3: Spol. h. | I3: 80 | J3: %
A4: Produkce (t/rok) | B4: =CONCATENATE("Doba statické návratnosti investice při roční produkci ",List1!B12," je " ) -> Doba statické návratnosti investice při roční produkci 50000 je | C4: 40000 | D4: 60000 | E4: 50000 | F4: 5000
A5: CF+ (Kč/t) | B5: =Naklady!E27 -> 316
A7: CF+ | C7: TRUE
A8: CF+ (Kč/rok) | B8: =(B5)*B4-SUM(H11:H20) -> 
E9: RIZIKA
F10: fin. Nákady | G10: pravděpodobnost | H10: Náklad Rsi
A11: 1. statické CF | E11: Riziko 1 | F11: 6500000 | G11: 0.05 | H11: =G11*F11 -> 325000
A12: =CONCATENATE("Produkce ", B12," t/rok") -> Produkce 50000 t/rok | B12: 50000 | E12: Riziko 2 | F12: 1500000 | G12: 0.1 | H12: =G12*F12 -> 150000
A13: Deterministické CF s riziky | B13: =B5*B12-SUM(H11:H20) -> 15237000 | E13: Riziko 3 | F13: 450000 | G13: 0.05 | H13: 22500
A14: Deterministické CF | B14: =B5*E4 -> 15800000 | E14: Riziko 4 | F14: 500000 | G14: 0.1 | H14: 50000
A15: 2. statické CF | E15: Riziko 5 | F15: 100000 | G15: 0.08 | H15: 8000
A16: =CONCATENATE("Produkce ", B16," t/rok") -> Produkce 40000 t/rok | B16: 40000 | E16: Riziko 6 | F16: 50000 | G16: 0.15 | H16: 7500
A17: Deterministické CF s riziky | B17: =B5*B16-H21 -> 12077000 | E17: Riziko 7 | G17: 0 | H17: 0
A18: Deterministické CF | B18: =B16*B5 -> 12640000 | E18: Riziko 8 | G18: 0 | H18: 0
E19: Riziko 9 | G19: 0 | H19: 0
E20: Riziko 10 | G20: 0 | H20: 0
E21: Celkem | H21: =SUM(H11:H20) -> 563000 | I21: Kč/ rok

Sheet List2
A1: 1 | B1: 2 | C1: 3 | D1: 4 | E1: 5 | F1: 6 | G1: 7 | H1: 8 | I1: 9 | J1: 10 | K1: 11 | L1: 12 | M1: 13 | N1: 14 | O1: 15 | P1: 16 | Q1: 17 | R1: 18 | S1: 19 | T1: 20 | U1: 21 | V1: 22 | W1: 23 | X1: 24 | Y1: 25 | Z1: 26 | AA1: 27 | AB1: 28 | AC1: 29 | AD1: 30 | AE1: 31 | AF1: 32 | AG1: 33 | AH1: 34 | AI1: 35 | AJ1: 36 | AK1: 37 | AL1: 38 | AM1: 39 | AN1: 40 | AO1: 41 | AP1: 42 | AQ1: 43 | AR1: 44 | AS1: 45 | AT1: 46
B4: 14029749.78 | C4: 15363813.5 | D4: 12767369.04 | E4: 13930767.16 | F4: 14188316.18 | G4: 12674804.4 | H4: 16134471.96 | I4: 20187503.68 | J4: 15084822.91 | K4: 15856129.65 | L4: 13098049.68 | M4: 14331066.71 | N4: 14950815.53 | O4: 19324903.09 | P4: 14353374.08 | Q4: 14152420.33 | R4: 19036277.06 | S4: 16167780.34 | T4: 14884722.93 | U4: 18715024.11 | V4: 17432137.04 | W4: 16529264.34 | X4: 15563931.59 | Y4: 15883591.8 | Z4: 14349953.59 | AA4: 17287356.8 | AB4: 17125932.49 | AC4: 12991745.83 | AD4: 13026347.4 | AE4: 14729680.81 | AF4: 17422816.15 | AG4: 13363998.62 | AH4: 15522046.57 | AI4: 16202543.66 | AJ4: 13475336.23 | AK4: 14369951.34 | AL4: 18131804.21 | AM4: 17872486.06 | AN4: 13732406.97 | AO4: 15482948.65 | AP4: 14063826.41 | AQ4: 16509417.98 | AR4: 17582711.71 | AS4: 12918568.01 | AT4: 16761939.28 | AU4: 15386927.5 | AV4: 13591824.55 | AW4: 16386946.84 | AX4: 15862471.9 | AY4: 16048244.55 | AZ4: 14904570.27 | BA4: 15623224.93 | BB4: 13297889.28 | BC4: 13621541.17 | BD4: 17067162.38 | BE4: 17918466.68 | BF4: 13122659.15 | BG4: 15247272.1 | BH4: 16977753.03 | BI4: 12138454.09 | BJ4: 13207540.06 | BK4: 12999412.13 | BL4: 15594165.16 | BM4: 18950213.13 | BN4: 15158950.06 | BO4: 11817523.27 | BP4: 12028296.01 | BQ4: 13110407.21 | BR4: 13150561.4 | BS4: 17972077.4 | BT4: 14530206.41 | BU4: 18952686.97 | BV4: 14359326.74 | BW4: 16880746.12 | BX4: 17327459.01 | BY4: 12990413.43 | BZ4: 13434734.27 | CA4: 12770523.65 | CB4: 12493129.62 | CC4: 17641341.4 | CD4: 14307280.84 | CE4: 16849246.84 | CF4: 12232013.06 | CG4: 14788331.28 | CH4: 14758376.77 | CI4: 16513260.8 | CJ4: 14241263.94 | CK4: 15863142.67 | CL4: 15341578.9 | CM4: 13962185.63 | CN4: 15150421.3 | CO4: 10277904.62 | CP4: 15896446.61 | CQ4: 16632902.58 | CR4: 18130894.98 | CS4: 16772518.21 | CT4: 13208065.05 | CU4: 16485721.3 | CV4: 12082294.81 | CW4: 14197911.23 | CX4: 12722302.96 | CY4: 14877961.98 | CZ4: 11954004.77 | DA4: 12896005.66 | DB4: 14733442.87 | DC4: 13579311.36 | DD4: 15692510.54 | DE4: 14193329.8 | DF4: 12117478.3 | DG4: 16928641.47 | DH4: 17023848.4 | DI4: 17524956.25 | DJ4: 14970417.88 | DK4: 15468043.96 | DL4: 14585506.63 | DM4: 12264838.13 | DN4: 15824351.4 | DO4: 15668363.65 | DP4: 14387888.59 | DQ4: 15162240.61 | DR4: 12198467.16 | DS4: 17750667.46 | DT4: 15575303.5 | DU4: 15287355.75 | DV4: 16512015.76 | DW4: 14108836.31 | DX4: 19402869.77 | DY4: 13912223.2 | DZ4: 18174561.98 | EA4: 13428854.99 | EB4: 14462558.81 | EC4: 15921429.25 | ED4: 16391563.34 | EE4: 16631535.29 | EF4: 14614368.62 | EG4: 17052360.68 | EH4: 13764190.13 | EI4: 15857668.12 | EJ4: 16472689.42 | EK4: 16579106.15 | EL4: 12071540.34 | EM4: 15585950.7 | EN4: 15138357.7 | EO4: 17180002.2 | EP4: 17862852.1 | EQ4: 13205725.3 | ER4: 14324908.62 | ES4: 15176273.89 | ET4: 13226521.27 | EU4: 11413264.13 | EV4: 18970145.85 | EW4: 14491325.87 | EX4: 16301734.35 | EY4: 12770676.96 | EZ4: 12214449.43 | FA4: 12577306.2 | FB4: 16235468.45 | FC4: 14862516.62 | FD4: 15349518.69 | FE4: 11063656.35 | FF4: 13733419.29 | FG4: 16769906.09 | FH4: 17974252.06 | FI4: 16078119.85 | FJ4: 16318542.44 | FK4: 14995825.44 | FL4: 18093747.38 | FM4: 17101697.24 | FN4: 16617896.81 | FO4: 10143144.4 | FP4: 14958881.93 | FQ4: 16317220.32 | FR4: 16942018.48 | FS4: 17698507.86 | FT4: 14775264.71 | FU4: 15887344.19 | FV4: 11729441.24 | FW4: 14599514.74 | FX4: 12201027.44 | FY4: 13056718.15 | FZ4: 14877698.52 | GA4: 16328306.89 | GB4: 17385360.71 | GC4: 15280784.1 | GD4: 12294577.3 | GE4: 13243905.86 | GF4: 15690990.61 | GG4: 14134706.61 | GH4: 14327684.22 | GI4: 16691193.93 | GJ4: 14469234.52 | GK4: 14305613.96 | GL4: 14280592.93 | GM4: 17451235.88 | GN4: 15424592.23 | GO4: 13278660.8 | GP4: 16054453.94 | GQ4: 14506028.92 | GR4: 14626826.86 | GS4: 15117939.14 | GT4: 14150451.3 | GU4: 13991144.7 | GV4: 14678845.47 | GW4: 16278392.12 | GX4: 14806044.61 | GY4: 20222045.09 | GZ4: 15088428.17 | HA4: 16793378.85 | HB4: 13763647.2 | HC4: 14926552.19 | HD4: 14690440.12 | HE4: 14922980.43 | HF4: 12232844.58 | HG4: 16587126.36 | HH4: 16702347.55 | HI4: 16433107.21 | HJ4: 14895687.6 | HK4: 13452654.64 | HL4: 12371431.07 | HM4: 15953871.54 | HN4: 15368315.16 | HO4: 14999294.65 | HP4: 12517398.52 | HQ4: 15278853.88 | HR4: 16344417.61 | HS4: 14639393.13 | HT4: 12005997.81 | HU4: 16219927.07 | HV4: 16157307.79 | HW4: 15497818.43 | HX4: 14552946.05 | HY4: 16085243.32 | HZ4: 16081527.99 | IA4: 17576803.67 | IB4: 15488658.1 | IC4: 12856439.85 | ID4: 15795591.87 | IE4: 17010445.36 | IF4: 17042455.06 | IG4: 14144428.8 | IH4: 16045571.22 | II4: 14201216.97 | IJ4: 16226113.46 | IK4: 15369051.27 | IL4: 17223893.06 | IM4: 17460206.16 | IN4: 15432424.88 | IO4: 14756500.24 | IP4: 13205244.01 | IQ4: 19218216.44 | IR4: 14644628.73 | IS4: 14052190.15 | IT4: 15388340.15 | IU4: 15208512.26 | IV4: 16475924.84 | IW4: 17354723.62 | IX4: 14444717.01 | IY4: 12633340.28 | IZ4: 15110826.11 | JA4: 13642565.12 | JB4: 13250674.01 | JC4: 14697824.22 | JD4: 16111704.33 | JE4: 18486455.88 | JF4: 12966394.82 | JG4: 18661067.82 | JH4: 17933093.14 | JI4: 17649987.06 | JJ4: 14219296.34 | JK4: 14446436.85 | JL4: 10567787.26 | JM4: 15947624.73 | JN4: 15250613.25 | JO4: 16865096.95 | JP4: 16491702.2 | JQ4: 11973142.63 | JR4: 14628312.87 | JS4: 16930630.93 | JT4: 15369326.48 | JU4: 14127569.56 | JV4: 16682195.63 | JW4: 18191203.74 | JX4: 14975479.4 | JY4: 12921751.7 | JZ4: 15661439.12 | KA4: 14516758.87 | KB4: 15268745.24 | KC4: 15989804.25 | KD4: 12581822.15 | KE4: 15053002.9 | KF4: 16648636.5 | KG4: 15252691.76 | KH4: 12672599.39 | KI4: 13532325.37 | KJ4: 14915591.78 | KK4: 13327301.2 | KL4: 16726787.7 | KM4: 17168213.46 | KN4: 19243779.65 | KO4: 15719182.35 | KP4: 16598093.95 | KQ4: 13637543.84 | KR4: 17423648.03 | KS4: 18348066.45 | KT4: 14209544.18 | KU4: 14603094.82 | KV4: 19171686.18 | KW4: 17317350.93 | KX4: 15804289.86 | KY4: 14229355.43 | KZ4: 15326217.28 | LA4: 17678754.56 | LB4: 17145529.09 | LC4: 11086101.22 | LD4: 13340456.39 | LE4: 11978333.41 | LF4: 13808873.56 | LG4: 15445155.54 | LH4: 14370563.54 | LI4: 14829846.35 | LJ4: 12027360.3 | LK4: 16460897.88 | LL4: 16244200.25 | LM4: 16067271.58 | LN4: 17233009.99 | LO4: 15256330.14 | LP4: 12767788.48 | LQ4: 15015767.52 | LR4: 13808168.37 | LS4: 16291219.75 | LT4: 16597394.71 | LU4: 12840857.53 | LV4: 20750448.78 | LW4: 15122516.84 | LX4: 15143405.19 | LY4: 15897708.5 | LZ4: 13632152.29 | MA4: 16875229.77 | MB4: 14869614.29 | MC4: 10592678.28 | MD4: 15805151.81 | ME4: 14196634.01 | MF4: 13358370.63 | MG4: 15525332.9 | MH4: 17085966.7 | MI4: 16699488.52 | MJ4: 14051006.77 | MK4: 16490763.5 | ML4: 14245219.09 | MM4: 11219808.03 | MN4: 14440918.57 | MO4: 13887750.74 | MP4: 17064792.63 | MQ4: 15388255.05 | MR4: 15017113.8 | MS4: 15100251.97 | MT4: 15067098.8 | MU4: 15347208.33 | MV4: 18167149.21 | MW4: 16728113.83 | MX4: 16462173.21 | MY4: 16955956.07 | MZ4: 15759451.32 | NA4: 14701602.76 | NB4: 14653958.45 | NC4: 15584682.82 | ND4: 15798265.78 | NE4: 13737746.81 | NF4: 16610311.11 | NG4: 11878630.87 | NH4: 15314224.25 | NI4: 15830742.53 | NJ4: 14717288.76 | NK4: 11491615.52 | NL4: 18872575.99 | NM4: 15091116.92 | NN4: 13740671.94 | NO4: 15966460.55 | NP4: 13789499.71 | NQ4: 14726341.75 | NR4: 15769773.39 | NS4: 17532376.8 | NT4: 13204175.58 | NU4: 13752015.26 | NV4: 17818768.75 | NW4: 15859028.44 | NX4: 15133232.13 | NY4: 14151717.53 | NZ4: 14893680.66 | OA4: 17685597.27 | OB4: 16254294.2 | OC4: 10088484.41 | OD4: 14344273.79 | OE4: 11911118.35 | OF4: 16542379.81 | OG4: 11499674.97 | OH4: 17197875.16 | OI4: 13342807.99 | OJ4: 12571153.45 | OK4: 13577255.51 | OL4: 13835031.88 | OM4: 14370423.83 | ON4: 13757320.01 | OO4: 15083484.17 | OP4: 16032968.29 | OQ4: 12645783.4 | OR4: 10592797.28 | OS4: 17941215.59 | OT4: 14962363.53 | OU4: 14972679.86 | OV4: 12699993.99 | OW4: 19387255.68 | OX4: 14986591.98 | OY4: 16411859.78 | OZ4: 13181701.46 | PA4: 14377376.19 | PB4: 13737510.66 | PC4: 17606179.66 | PD4: 10173844.99 | PE4: 15462565.4 | PF4: 16102099.87 | PG4: 15287890.28 | PH4: 20144896.87 | PI4: 12959488.01 | PJ4: 15919335.55 | PK4: 14946134.52 | PL4: 21060935.44 | PM4: 14173895.27 | PN4: 15292272.71 | PO4: 19997603.95 | PP4: 15535431.22 | PQ4: 15322632.34 | PR4: 11741864.28 | PS4: 16244709.89 | PT4: 16326255.47 | PU4: 15910369.27 | PV4: 12365541.11 | PW4: 17106740.5 | PX4: 15548766.29 | PY4: 17102318.39 | PZ4: 11308490.05 | QA4: 12750559.77 | QB4: 16046941.13 | QC4: 13166667.25 | QD4: 14761467.66 | QE4: 12607072.1 | QF4: 16408932.78 | QG4: 15984905.79 | QH4: 13812316.32 | QI4: 13305624.89 | QJ4: 14810868.94 | QK4: 12677621.51 | QL4: 14314381.65 | QM4: 18503572.58 | QN4: 15768131.95 | QO4: 14728925.37 | QP4: 16431020.42 | QQ4: 15029110.27 | QR4: 16051149.47 | QS4: 18089303.58 | QT4: 14783947.88 | QU4: 15727328.85 | QV4: 13572901.89 | QW4: 17080155.54 | QX4: 13024680.15 | QY4: 12819835.71 | QZ4: 14344674.23 | RA4: 16056172.07 | RB4: 16019015.22 | RC4: 13690528.84 | RD4: 14664627.98 | RE4: 14678334.73 | RF4: 14753498.11 | RG4: 16399555.79 | RH4: 14493408.18 | RI4: 13393160.78 | RJ4: 14402336.3 | RK4: 13571805.93 | RL4: 14612502.4 | RM4: 14745127.3 | RN4: 11782976.86 | RO4: 14889671.85 | RP4: 16485438.99 | RQ4: 16117816.55 | RR4: 13989100.5 | RS4: 13357656.83 | RT4: 14076522.03 | RU4: 13972001.9 | RV4: 14710892.45 | RW4: 15071372.85 | RX4: 18406670.79 | RY4: 15315218.29 | RZ4: 15269846.03 | SA4: 13419901.14 | SB4: 17279151.74 | SC4: 12673807.54 | SD4: 15185483.9 | SE4: 13299737.31 | SF4: 16153772.55 | SG4: 15701033.51
B5: 17506788.06 | C5: 13611952.52 | D5: 14307484.28 | E5: 14417391.47 | F5: 15155378.84 | G5: 16058242.64 | H5: 15444696.68 | I5: 17644923.72 | J5: 14681336.28 | K5: 17258299.86 | L5: 10589023 | M5: 13274760.63 | N5: 13176057.08 | O5: 15601785.34 | P5: 13082324.7 | Q5: 13883764.37 | R5: 18433179.64 | S5: 14391774.36 | T5: 13876883.76 | U5: 17051342.04 | V5: 14258339.65 | W5: 18910257.49 | X5: 15447392.73 | Y5: 14414810.41 | Z5: 14199206.58 | AA5: 15371196.35 | AB5: 16277902.82 | AC5: 17068069.7 | AD5: 16070539.4 | AE5: 11131598.2 | AF5: 15317244.94 | AG5: 11708802.64 | AH5: 19713955.98 | AI5: 12713541.91 | AJ5: 17027293.09 | AK5: 14222181.27 | AL5: 14985207.11 | AM5: 14809953.99 | AN5: 14589380.53 | AO5: 12099971.59 | AP5: 14054785.42 | AQ5: 17631980.78 | AR5: 16197550.11 | AS5: 15002269.95 | AT5: 16038098.27 | AU5: 16199431.37 | AV5: 14494936.78 | AW5: 13794178.52 | AX5: 10559125.59 | AY5: 14457587.99 | AZ5: 15199230.05 | BA5: 16472655.51 | BB5: 15283826.33 | BC5: 15995246.01 | BD5: 13041108.86 | BE5: 15073717.89 | BF5: 18601635.87 | BG5: 15406694.23 | BH5: 19452445.58 | BI5: 14603877.79 | BJ5: 14092425.68 | BK5: 14665905.02 | BL5: 13149544.47 | BM5: 16780969.21 | BN5: 14554310.3 | BO5: 16280185.93 | BP5: 15732376.58 | BQ5: 14524571.59 | BR5: 15107392.95 | BS5: 13142327.4 | BT5: 17550383.18 | BU5: 13758278.69 | BV5: 18394779.02 | BW5: 17069088.96 | BX5: 13929809.44 | BY5: 13157575.84 | BZ5: 15370819.28 | CA5: 16360119.72 | CB5: 16190949.86 | CC5: 13496682.07 | CD5: 16733932.8 | CE5: 15002939.19 | CF5: 14846493.16 | CG5: 15687468.59 | CH5: 13244680.13 | CI5: 16706885.14 | CJ5: 13420265.32 | CK5: 15856343.13 | CL5: 15719146.53 | CM5: 18839119.15 | CN5: 16394857.35 | CO5: 16497949.06 | CP5: 19306790.31 | CQ5: 11092681.3 | CR5: 12370798.49 | CS5: 14526607.37 | CT5: 16499915.92 | CU5: 13129371.76 | CV5: 16362121.62 | CW5: 14930337.37 | CX5: 17345659.71 | CY5: 14472207.83 | CZ5: 17154437.67 | DA5: 18038167.18 | DB5: 16378953.6 | DC5: 15677075.51 | DD5: 15037376.47 | DE5: 13983124.93 | DF5: 13788848.15 | DG5: 19601087.2 | DH5: 17234299.03 | DI5: 14204957.96 | DJ5: 13324385.94 | DK5: 17314205.44 | DL5: 16612892.54 | DM5: 15313004.03 | DN5: 16070929.33 | DO5: 12310425.5 | DP5: 16063796.4 | DQ5: 13171363.11 | DR5: 15380342.92 | DS5: 16025994.42 | DT5: 12440984.36 | DU5: 17737883.42 | DV5: 15617733.63 | DW5: 17264319.64 | DX5: 16988367.87 | DY5: 13733365.12 | DZ5: 15910881.01 | EA5: 16234953.73 | EB5: 14593303.29 | EC5: 16673534.84 | ED5: 14107525.56 | EE5: 16305646.87 | EF5: 14768162.15 | EG5: 15676762.73 | EH5: 15623486.04 | EI5: 14117096.31 | EJ5: 16605290.31 | EK5: 13638560.22 | EL5: 15155221.47 | EM5: 15549608.76 | EN5: 13642884.33 | EO5: 13367388.64 | EP5: 12238022.39 | EQ5: 17678199.04 | ER5: 15789594.73 | ES5: 17385140.12 | ET5: 15900235.2 | EU5: 17116717.99 | EV5: 17814578.24 | EW5: 19265752.95 | EX5: 12161787.57 | EY5: 14323185.27 | EZ5: 15431531.71 | FA5: 13608204.9 | FB5: 19095060.7 | FC5: 13144381.41 | FD5: 15093800.12 | FE5: 13496002.46 | FF5: 15226605.01 | FG5: 13831117.9 | FH5: 16717091.86 | FI5: 14772802.2 | FJ5: 14408622.98 | FK5: 14361019.66 | FL5: 16247858.63 | FM5: 18149575.71 | FN5: 15656711.09 | FO5: 13877942.55 | FP5: 14433265.07 | FQ5: 14762020.54 | FR5: 14553986.2 | FS5: 11193036.39 | FT5: 16607012.53 | FU5: 14998781.96 | FV5: 15271012.64 | FW5: 16540623.44 | FX5: 17069911.65 | FY5: 17026305.61 | FZ5: 16561723.62 | GA5: 15342855.25 | GB5: 12883287.83 | GC5: 12854605.31 | GD5: 16744020.26 | GE5: 13578020.55 | GF5: 15222097.67 | GG5: 14952281.39 | GH5: 17008389.8 | GI5: 13734704.31 | GJ5: 14961244.56 | GK5: 17766893.39 | GL5: 13971285.38 | GM5: 14405788.53 | GN5: 13218773.08 | GO5: 14289208.24 | GP5: 15779754.62 | GQ5: 13801688.66 | GR5: 15646612.21 | GS5: 14283650.81 | GT5: 16161061.98 | GU5: 14346504.55 | GV5: 17263658.27 | GW5: 17843580.77 | GX5: 17999717.98 | GY5: 11927497.06 | GZ5: 19257754.19 | HA5: 12582740.68 | HB5: 12445208.03 | HC5: 15397336.55 | HD5: 15159006.42 | HE5: 14830940.78 | HF5: 16288975.18 | HG5: 13210731.58 | HH5: 15772649.29 | HI5: 12395714.84 | HJ5: 16230026.95 | HK5: 14297467.27 | HL5: 13066046.79 | HM5: 12205618.65 | HN5: 15472327.94 | HO5: 16353369.98 | HP5: 18260421.79 | HQ5: 13728733.68 | HR5: 14285807.42 | HS5: 16709005.83 | HT5: 14527611.3 | HU5: 13229561.26 | HV5: 12314409.65 | HW5: 16041352.46 | HX5: 18772673.17 | HY5: 15448296.89 | HZ5: 14170832.28 | IA5: 15909767.93 | IB5: 16688234.63 | IC5: 14422318.63 | ID5: 15404280.4 | IE5: 15206297.78 | IF5: 14364417.64 | IG5: 17287701.82 | IH5: 14352321.89 | II5: 17892826.6 | IJ5: 15381980.14 | IK5: 12690123 | IL5: 15407714.9 | IM5: 15030629.82 | IN5: 16499464.06 | IO5: 15221121.89 | IP5: 16688944.47 | IQ5: 15454227.1 | IR5: 13551771.1 | IS5: 15744315.86 | IT5: 12369285 | IU5: 16599023.28 | IV5: 17201065.85 | IW5: 15679707.74 | IX5: 14948745.81 | IY5: 19361871.88 | IZ5: 14866921.54 | JA5: 14102480.3 | JB5: 16204284.91 | JC5: 13092199.41 | JD5: 14793215.03 | JE5: 20422587.63 | JF5: 15908201.69 | JG5: 13088772.9 | JH5: 14305930.48 | JI5: 15185689.97 | JJ5: 10710396.24 | JK5: 14931772.74 | JL5: 14545029.68 | JM5: 12817450.61 | JN5: 12744132.37 | JO5: 12122976.56 | JP5: 11518598.03 | JQ5: 14951497.9 | JR5: 17517524.4 | JS5: 16237801.13 | JT5: 15425917.83 | JU5: 16980991.29 | JV5: 16255341.46 | JW5: 15333411.92 | JX5: 18667251.96 | JY5: 14222568.92 | JZ5: 13346915.24 | KA5: 13271222.05 | KB5: 15510319.52 | KC5: 11928733.04 | KD5: 14530381.32 | KE5: 16164618.52 | KF5: 15589530.21 | KG5: 13210629.75 | KH5: 15476799.94 | KI5: 16283696.68 | KJ5: 13634282.45 | KK5: 12995583.86 | KL5: 15536768.75 | KM5: 13096289.82 | KN5: 16147904.96 | KO5: 17220888.34 | KP5: 12174336.49 | KQ5: 13292996.35 | KR5: 11954557.78 | KS5: 12036634.07 | KT5: 16794613.06 | KU5: 13290376.36 | KV5: 12486875.33 | KW5: 13583487.16 | KX5: 13744205.17 | KY5: 14960473.36 | KZ5: 15979590.61 | LA5: 17617823.45 | LB5: 17657172.08 | LC5: 17792645.27 | LD5: 14667598.46 | LE5: 12987669.33 | LF5: 16421262.36 | LG5: 18211520.42 | LH5: 14613607.08 | LI5: 13506336.37 | LJ5: 11967335.33 | LK5: 14911238.32 | LL5: 17408195.08 | LM5: 17904804.16 | LN5: 13616486.83 | LO5: 13194781.37 | LP5: 12968316.09 | LQ5: 14373504.42 | LR5: 16362255.04 | LS5: 12983160.69 | LT5: 15258272.51 | LU5: 13891116.24 | LV5: 16504555.53 | LW5: 17755841.19 | LX5: 13116114.49 | LY5: 13166155.43 | LZ5: 13932667.84 | MA5: 16052464.8 | MB5: 19278050.87 | MC5: 15746829.93 | MD5: 14829626.43 | ME5: 11605358.54 | MF5: 13917761.77 | MG5: 15057438.12 | MH5: 16412921.09 | MI5: 13490264.5 | MJ5: 14240366.16 | MK5: 16303604.9 | ML5: 16699128.68 | MM5: 13730028.01 | MN5: 16796778.69 | MO5: 12310361.4 | MP5: 15391377.42 | MQ5: 14225583.91 | MR5: 17332224.41 | MS5: 14139030.3 | MT5: 13344908.99 | MU5: 16386295.12 | MV5: 16628991.29 | MW5: 19238483.88 | MX5: 18723084.64 | MY5: 14136087.77 | MZ5: 14154322.18 | NA5: 12852527.2 | NB5: 15370892.2 | NC5: 14698224.25 | ND5: 14806654.74 | NE5: 16543408.55 | NF5: 13213190.86 | NG5: 16070341.75 | NH5: 11030664.11 | NI5: 16813935.15 | NJ5: 15962173.81 | NK5: 13833632.52 | NL5: 18587651.3 | NM5: 13276997.16 | NN5: 15139953.84 | NO5: 15649814.24 | NP5: 18197185.53 | NQ5: 14292635.04 | NR5: 16885260.67 | NS5: 14261805.12 | NT5: 16832641.42 | NU5: 17182649.75 | NV5: 13365096.93 | NW5: 14844757.3 | NX5: 13930415.57 | NY5: 17113110.78 | NZ5: 14593188.57 | OA5: 16667804.87 | OB5: 11285043.63 | OC5: 16571798.31 | OD5: 14681943.67 | OE5: 17600363.19 | OF5: 15598053.58 | OG5: 14692098.8 | OH5: 15028089.19 | OI5: 14489674.77 | OJ5: 12883343.4 | OK5: 16392981.19 | OL5: 16831001.06 | OM5: 12185517.83 | ON5: 16283142.82 | OO5: 14083151.98 | OP5: 11821844.61 | OQ5: 12178676.96 | OR5: 14738430.8 | OS5: 17535992.96 | OT5: 15639415.86 | OU5: 15919675.59 | OV5: 16336735.17 | OW5: 15537240.63 | OX5: 14480300.77 | OY5: 13239492.72 | OZ5: 15296023.31 | PA5: 18823369.76 | PB5: 19063875.66 | PC5: 16970179.32 | PD5: 14924816.7 | PE5: 17139442.5 | PF5: 20024403.95 | PG5: 13652389.33 | PH5: 14187813.39 | PI5: 13011144.01 | PJ5: 15762198.24 | PK5: 15089034.16 | PL5: 15840331.89 | PM5: 15269802.67 | PN5: 16509891.03 | PO5: 14070714.58 | PP5: 16751971.97 | PQ5: 21079312.83 | PR5: 16513990.1 | PS5: 10458547.66 | PT5: 17639583.15 | PU5: 16518186 | PV5: 14334250.54 | PW5: 15913019.54 | PX5: 18136067.69 | PY5: 13723206.23 | PZ5: 13814500.95 | QA5: 14759608.56 | QB5: 13982606.86 | QC5: 16843258.41 | QD5: 13306132.66 | QE5: 14349736.56 | QF5: 15390234.04 | QG5: 15546987.96 | QH5: 17512062.05 | QI5: 13625053.75 | QJ5: 17130502.21 | QK5: 13975689.06 | QL5: 14943092.3 | QM5: 14746661.58 | QN5: 15164318.6 | QO5: 15039140.67 | QP5: 13108403.32 | QQ5: 15741369.11 | QR5: 17070818.41 | QS5: 12780454.14 | QT5: 12622625.31 | QU5: 14302718.48 | QV5: 13608491.7 | QW5: 16575619.45 | QX5: 15753657.57 | QY5: 15571848.08 | QZ5: 17220657.11 | RA5: 18914481.83 | RB5: 14724344.18 | RC5: 15481924.44 | RD5: 16093582.8 | RE5: 18167765.06 | RF5: 12570806.37 | RG5: 16896394.34 | RH5: 14304296.17 | RI5: 19360968.86 | RJ5: 17605676.97 | RK5: 14154879.52 | RL5: 16289561.72 | RM5: 14692343.06 | RN5: 18369986.16 | RO5: 14953116.43 | RP5: 15362103.11 | RQ5: 13911941.67 | RR5: 14048865.31 | RS5: 13924153.94 | RT5: 13847007.33 | RU5: 14438976.29 | RV5: 20460950.68 | RW5: 18072728.06 | RX5: 12482058.37 | RY5: 19268180.15 | RZ5: 13950431.26 | SA5: 15009950.63 | SB5: 12710606.88 | SC5: 13129912.88 | SD5: 13799627.5 | SE5: 17998747.56 | SF5: 15275645.3 | SG5: 12936818.93
B6: 14324148.83 | C6: 15032435.88 | D6: 13912337.21 | E6: 13998217.58 | F6: 10678214.05 | G6: 13221287.38 | H6: 14023600.64 | I6: 15681687.02 | J6: 17924562.31 | K6: 15567941.18 | L6: 13997075.4 | M6: 12752382.26 | N6: 13913545.73 | O6: 15796254.32 | P6: 15117210.16 | Q6: 17164223.95 | R6: 15444793.65 | S6: 18565436.98 | T6: 12982036.96 | U6: 15882980.61 | V6: 14768663.51 | W6: 16960022.11 | X6: 14334923.04 | Y6: 17770091.63 | Z6: 16052632.09 | AA6: 16840905.91 | AB6: 13558182.88 | AC6: 18105151.13 | AD6: 16227738.23 | AE6: 16004815.34 | AF6: 16188568.52 | AG6: 18082425.22 | AH6: 16328800.05 | AI6: 16138915.31 | AJ6: 15784974.6 | AK6: 15300940.01 | AL6: 13294202.94 | AM6: 15538928.5 | AN6: 14228258.47 | AO6: 17400508.65 | AP6: 13716467.88 | AQ6: 10602682.84 | AR6: 20264974.57 | AS6: 15717063.86 | AT6: 15788028.5 | AU6: 15199184.1 | AV6: 14562588.92 | AW6: 14979760 | AX6: 15992944.6 | AY6: 14213844.67 | AZ6: 12202123.01 | BA6: 15609742.39 | BB6: 15635249.1 | BC6: 19030664.84 | BD6: 13416421.3 | BE6: 14719651.02 | BF6: 17550162.8 | BG6: 13539584.4 | BH6: 13327923.63 | BI6: 13245419.71 | BJ6: 17308487.02 | BK6: 18805801.89 | BL6: 12731848.43 | BM6: 19111368.26 | BN6: 13631806.81 | BO6: 12313060.37 | BP6: 12393469.07 | BQ6: 11820394.62 | BR6: 15628204.91 | BS6: 13373581.2 | BT6: 12734935.99 | BU6: 11989123.89 | BV6: 15970145.3 | BW6: 16356909.23 | BX6: 13437838.69 | BY6: 16269042.51 | BZ6: 15105832.71 | CA6: 15980605.08 | CB6: 14941079.5 | CC6: 13992660.42 | CD6: 14473088.06 | CE6: 13998125.26 | CF6: 14698311.92 | CG6: 14555255.87 | CH6: 14209198.18 | CI6: 15315404.32 | CJ6: 12418055.88 | CK6: 15638549.18 | CL6: 16212590.84 | CM6: 17454970.19 | CN6: 18511848.78 | CO6: 18396537.93 | CP6: 12458068.07 | CQ6: 13960860.98 | CR6: 17098513.33 | CS6: 14582895.84 | CT6: 15783232.08 | CU6: 14685146.54 | CV6: 16304683.87 | CW6: 17368907.19 | CX6: 14036499.55 | CY6: 17152602.31 | CZ6: 15061513.39 | DA6: 14440912.77 | DB6: 15676611.67 | DC6: 14145719.87 | DD6: 13943033.68 | DE6: 12876985.42 | DF6: 11959283.34 | DG6: 12947631.62 | DH6: 18686741.72 | DI6: 14706521.82 | DJ6: 16364510.24 | DK6: 15367111.47 | DL6: 16266965.11 | DM6: 15589218.85 | DN6: 15203138.34 | DO6: 14487160.08 | DP6: 16477286.93 | DQ6: 15055086.01 | DR6: 17313096.44 | DS6: 14473890.87 | DT6: 20113548.87 | DU6: 18133936.97 | DV6: 15270955.9 | DW6: 13881838.78 | DX6: 16942990.08 | DY6: 14929174.12 | DZ6: 16138709.06 | EA6: 15341931.43 | EB6: 12782377.86 | EC6: 13260806.66 | ED6: 12240149.71 | EE6: 13049390.22 | EF6: 15855234.46 | EG6: 13906003.78 | EH6: 13580425.23 | EI6: 15822548.94 | EJ6: 16268257.04 | EK6: 13994933.34 | EL6: 14191742.71 | EM6: 14402806.95 | EN6: 17879489.67 | EO6: 18143702.91 | EP6: 19846853.65 | EQ6: 16117799.48 | ER6: 13918850.3 | ES6: 14291986.11 | ET6: 13020281.65 | EU6: 12445803.42 | EV6: 15391282.74 | EW6: 17948279.96 | EX6: 16608944.94 | EY6: 17734941.64 | EZ6: 17175058.75 | FA6: 15550094.19 | FB6: 17762606.62 | FC6: 13604871.3 | FD6: 17274250.02 | FE6: 14334812.67 | FF6: 17710605.4 | FG6: 17313255.12 | FH6: 18647324.62 | FI6: 16231690.73 | FJ6: 13384148.65 | FK6: 15931284 | FL6: 16741246.68 | FM6: 12572939.33 | FN6: 15905012.7 | FO6: 15023981.52 | FP6: 16046095.99 | FQ6: 12742746.51 | FR6: 15103877.81 | FS6: 14841198.85 | FT6: 17200930.6 | FU6: 19125718.63 | FV6: 16284617 | FW6: 16936598.29 | FX6: 14950092.17 | FY6: 12877959.22 | FZ6: 16036653.72 | GA6: 15877877.58 | GB6: 15071487.03 | GC6: 16981537.08 | GD6: 17155039 | GE6: 17921938.07 | GF6: 19487057.99 | GG6: 15049676.42 | GH6: 17516742.82 | GI6: 13344365.35 | GJ6: 12874121.55 | GK6: 15160646.53 | GL6: 12508447.29 | GM6: 15066917.22 | GN6: 16421071.86 | GO6: 17402330.08 | GP6: 17281615.2 | GQ6: 13978119.4 | GR6: 12631458.29 | GS6: 16558472.48 | GT6: 18735966.82 | GU6: 15260508.51 | GV6: 15756466.48 | GW6: 14872692.99 | GX6: 14435096.34 | GY6: 18393359.61 | GZ6: 15995231.94 | HA6: 15756115.75 | HB6: 16827102.94 | HC6: 13057556.54 | HD6: 12241023.29 | HE6: 15016511.53 | HF6: 16001832.78 | HG6: 18404250.02 | HH6: 17602471.24 | HI6: 14767937.71 | HJ6: 15832422.98 | HK6: 14671768.24 | HL6: 14409791.53 | HM6: 15340854.66 | HN6: 16115292.04 | HO6: 13167867.87 | HP6: 16286269.39 | HQ6: 17576692.34 | HR6: 16005448.57 | HS6: 18400859.57 | HT6: 14624306.58 | HU6: 15263305.69 | HV6: 13869461.52 | HW6: 16822046.26 | HX6: 15550714.09 | HY6: 18120524.7 | HZ6: 17406414.05 | IA6: 14551356.67 | IB6: 17437302.03 | IC6: 14458942.1 | ID6: 19382467.84 | IE6: 15043335.13 | IF6: 15706881.47 | IG6: 15625726.5 | IH6: 13036348.59 | II6: 14086588.01 | IJ6: 14728365.53 | IK6: 16042423.88 | IL6: 13541642.29 | IM6: 14515343.24 | IN6: 13484699.84 | IO6: 14769336.12 | IP6: 15848829.42 | IQ6: 12505938.03 | IR6: 13877830.21 | IS6: 12695500.77 | IT6: 14906460.07 | IU6: 16679000.99 | IV6: 17964980.49 | IW6: 19197255.79 | IX6: 17048103.31 | IY6: 13223817.84 | IZ6: 12626748.11 | JA6: 20727734.88 | JB6: 19252152.13 | JC6: 16485268.21 | JD6: 14604325.97 | JE6: 15162183.52 | JF6: 13551266.12 | JG6: 15842818.67 | JH6: 14033966.22 | JI6: 15682827.78 | JJ6: 14589860.53 | JK6: 16266855.48 | JL6: 16006420.36 | JM6: 12834724.92 | JN6: 18006983.52 | JO6: 17032286.09 | JP6: 15747935.3 | JQ6: 14683488.82 | JR6: 13175474.59 | JS6: 13241834.33 | JT6: 18368075.95 | JU6: 15036856.9 | JV6: 16711731.95 | JW6: 18322812.22 | JX6: 13948227.36 | JY6: 12360729.97 | JZ6: 16769442.15 | KA6: 14232828.23 | KB6: 13148387.23 | KC6: 13106386.16 | KD6: 16964830.04 | KE6: 15782174.58 | KF6: 16328139.78 | KG6: 12676810.63 | KH6: 16248777.38 | KI6: 14721155.8 | KJ6: 16672890.02 | KK6: 14998137.8 | KL6: 17942109.96 | KM6: 13418532.38 | KN6: 13662978.23 | KO6: 15288917.98 | KP6: 17715325.08 | KQ6: 15294961.78 | KR6: 16722920.14 | KS6: 16584785.95 | KT6: 14217081.91 | KU6: 15355376.17 | KV6: 15332704.15 | KW6: 17790641.93 | KX6: 14708041.42 | KY6: 13839419.46 | KZ6: 19306784.4 | LA6: 12137769.69 | LB6: 16939038.93 | LC6: 13896241.07 | LD6: 13960584.61 | LE6: 17543903.75 | LF6: 16825782.35 | LG6: 17580534.22 | LH6: 15674651.83 | LI6: 17386780.72 | LJ6: 19389793.4 | LK6: 12303640 | LL6: 18858104.6 | LM6: 14058878.26 | LN6: 15551015.23 | LO6: 16209104.83 | LP6: 17429027.47 | LQ6: 16415147.05 | LR6: 16778260.54 | LS6: 14042959.2 | LT6: 15633877.82 | LU6: 16964873.07 | LV6: 15083347.76 | LW6: 14696392.21 | LX6: 17342633.32 | LY6: 14973533.38 | LZ6: 15220345.47 | MA6: 11558863.74 | MB6: 14907165.51 | MC6: 16716069.93 | MD6: 16776933.6 | ME6: 15486599.63 | MF6: 13421048.6 | MG6: 15947449.92 | MH6: 11076948.69 | MI6: 14595871.95 | MJ6: 16908023.16 | MK6: 15536975.64 | ML6: 10816686.69 | MM6: 17566518 | MN6: 14784424.81 | MO6: 14589050.72 | MP6: 14952179.71 | MQ6: 12867045.21 | MR6: 15413348.39 | MS6: 16038361.22 | MT6: 13963314.03 | MU6: 14802525.27 | MV6: 11776955.27 | MW6: 19445974.61 | MX6: 16291418.17 | MY6: 18351207.46 | MZ6: 16864541.5 | NA6: 13096919.85 | NB6: 16615713.23 | NC6: 16055406.56 | ND6: 12245331.08 | NE6: 17490408.16 | NF6: 10790832.37 | NG6: 14292357.99 | NH6: 17570709.95 | NI6: 15173055.54 | NJ6: 15875277 | NK6: 14534863.08 | NL6: 15693821.03 | NM6: 14079014.01 | NN6: 14657280.48 | NO6: 16421902.07 | NP6: 15329595.29 | NQ6: 16903127.2 | NR6: 16463826.3 | NS6: 18867414.47 | NT6: 15672784.99 | NU6: 16474557.65 | NV6: 17019260.2 | NW6: 15272759.25 | NX6: 11839314.12 | NY6: 12349368.72 | NZ6: 16289257.45 | OA6: 16414514.15 | OB6: 15477917.93 | OC6: 11662630.57 | OD6: 13037551.86 | OE6: 15889823.46 | OF6: 12271101.22 | OG6: 13604838.34 | OH6: 15412081.23 | OI6: 13691020.03 | OJ6: 10766184.43 | OK6: 20241181.53 | OL6: 15169181.13 | OM6: 17501179.73 | ON6: 11991293.28 | OO6: 13659516.3 | OP6: 15883262.73 | OQ6: 16185006.59 | OR6: 15732153.47 | OS6: 16644699.79 | OT6: 17383526.26 | OU6: 18004649.87 | OV6: 11658642.24 | OW6: 17839441.77 | OX6: 13421648.02 | OY6: 17002752.64 | OZ6: 17921348.75 | PA6: 19338286.73 | PB6: 16977160.33 | PC6: 13129255.36 | PD6: 15157353.36 | PE6: 15323901.96 | PF6: 17190102.82 | PG6: 12439231.92 | PH6: 13037946.04 | PI6: 14206072.64 | PJ6: 14620780.11 | PK6: 15604616.67 | PL6: 14500017 | PM6: 15123538.68 | PN6: 14963993.19 | PO6: 18549283.27 | PP6: 14023224.54 | PQ6: 17281909.59 | PR6: 15559793.17 | PS6: 13552594.82 | PT6: 14258550.63 | PU6: 14884348.19 | PV6: 15718466.7 | PW6: 14959988.56 | PX6: 15489423.33 | PY6: 18634371 | PZ6: 16026728.31 | QA6: 15532521.47 | QB6: 18170212.25 | QC6: 10689485.68 | QD6: 16978215.23 | QE6: 17497207.74 | QF6: 14893385.53 | QG6: 13669862.77 | QH6: 15697757.01 | QI6: 17312837.67 | QJ6: 14830142.04 | QK6: 13925408.24 | QL6: 15302827.51 | QM6: 15045954.16 | QN6: 16460019.83 | QO6: 20643949.03 | QP6: 13205374.31 | QQ6: 12794716.95 | QR6: 15361524.1 | QS6: 15975217.72 | QT6: 19206111.72 | QU6: 15710058.98 | QV6: 13133115.85 | QW6: 15915667.16 | QX6: 14580083.52 | QY6: 10878929.86 | QZ6: 19790789.95 | RA6: 15306618.39 | RB6: 16381916.13 | RC6: 15300166.63 | RD6: 14564833.84 | RE6: 15693144.34 | RF6: 17608689.12 | RG6: 14090058.3 | RH6: 14737472.64 | RI6: 16071653.88 | RJ6: 12325708.1 | RK6: 11603096.63 | RL6: 11435788.05 | RM6: 14139643.14 | RN6: 11237127.27 | RO6: 14690966.38 | RP6: 13675636.05 | RQ6: 16693736.96 | RR6: 15432999.66 | RS6: 16453879.71 | RT6: 18296535.5 | RU6: 13762670.68 | RV6: 14712611.16 | RW6: 14862389.04 | RX6: 15749470.02 | RY6: 12625473.95 | RZ6: 16697391.3 | SA6: 13423274.62 | SB6: 17018010.73 | SC6: 14526384.48 | SD6: 16420638.89 | SE6: 15627931.76 | SF6: 15137888.35 | SG6: 16097602.8
B7: 18182388.86 | C7: 16692763.94 | D7: 11549268.84 | E7: 13337972.14 | F7: 15697465.17 | G7: 17279648.76 | H7: 15704159.67 | I7: 12950960.23 | J7: 17462464.63 | K7: 14058038.4 | L7: 12147308.49 | M7: 18159154.53 | N7: 19187469.18 | O7: 13291480.94 | P7: 15963893.88 | Q7: 17411294.17 | R7: 15515594.09 | S7: 14332065.19 | T7: 14617821.6 | U7: 16074583.11 | V7: 16222301.54 | W7: 16754237.71 | X7: 17984707.26 | Y7: 10887257.44 | Z7: 15527516.15 | AA7: 17283483.68 | AB7: 15315620.17 | AC7: 16077638.66 | AD7: 15121922.75 | AE7: 13293610.38 | AF7: 15364364.89 | AG7: 14804666.47 | AH7: 16924097.53 | AI7: 18359508.81 | AJ7: 15112308.38 | AK7: 14013673.15 | AL7: 18173784.69 | AM7: 16374978.04 | AN7: 19192094.78 | AO7: 11980937.91 | AP7: 13751821.29 | AQ7: 14388984.82 | AR7: 13422071.91 | AS7: 16744432.67 | AT7: 15393977.45 | AU7: 10242623.74 | AV7: 15145193.23 | AW7: 13978446.91 | AX7: 13870824.59 | AY7: 19268397.59 | AZ7: 13687533.61 | BA7: 14062664.84 | BB7: 14631073.1 | BC7: 13942964.92 | BD7: 14030814.41 | BE7: 12225696.27 | BF7: 17734240.01 | BG7: 11740763.27 | BH7: 13056115.14 | BI7: 16632222.68 | BJ7: 17647861.34 | BK7: 12829931.59 | BL7: 17086885.42 | BM7: 17982044.88 | BN7: 13350873.45 | BO7: 15598573.08 | BP7: 15108736.77 | BQ7: 12549614.21 | BR7: 12009795.97 | BS7: 16647165.42 | BT7: 13860003.07 | BU7: 14408915.15 | BV7: 15550818.77 | BW7: 14982287.14 | BX7: 14910743.67 | BY7: 18397684.34 | BZ7: 13470853.97 | CA7: 15041898 | CB7: 12331046.6 | CC7: 17520792.42 | CD7: 14542774.23 | CE7: 16349866.93 | CF7: 13557786.78 | CG7: 14857404.07 | CH7: 14829449.1 | CI7: 15752905.46 | CJ7: 15980878.88 | CK7: 14007863.64 | CL7: 15185480.65 | CM7: 13103603.61 | CN7: 13110649.79 | CO7: 15428436.98 | CP7: 10633255.64 | CQ7: 11618025.94 | CR7: 15827600.93 | CS7: 12076685.25 | CT7: 17138026.96 | CU7: 13590946.85 | CV7: 15419218.37 | CW7: 13870648.97 | CX7: 17596154.52 | CY7: 14679349.04 | CZ7: 10799285.93 | DA7: 15476467.05 | DB7: 12922503.74 | DC7: 17431938.97 | DD7: 13519253.62 | DE7: 15975716.21 | DF7: 16689614.6 | DG7: 15862276.98 | DH7: 13588169.28 | DI7: 10539873.43 | DJ7: 14894303.33 | DK7: 14301391.14 | DL7: 15826141.98 | DM7: 16159177.73 | DN7: 19048839.63 | DO7: 13978439.95 | DP7: 20261855.3 | DQ7: 16601786.16 | DR7: 13959313.48 | DS7: 15796374.46 | DT7: 12441080.21 | DU7: 15004278.7 | DV7: 15376815.55 | DW7: 17695092.9 | DX7: 15797455.59 | DY7: 16594498.52 | DZ7: 14821177.79 | EA7: 16325552.13 | EB7: 16365806.82 | EC7: 14745063.99 | ED7: 19360266.56 | EE7: 14478338.85 | EF7: 14344657.99 | EG7: 13213777.82 | EH7: 13572291.09 | EI7: 18748915.69 | EJ7: 16177463.5 | EK7: 12191575.96 | EL7: 17729453.26 | EM7: 10763207.97 | EN7: 16601663.24 | EO7: 18353127.92 | EP7: 18075867.93 | EQ7: 16716620.12 | ER7: 14299782.52 | ES7: 16140223.18 | ET7: 16320522.54 | EU7: 16899185.16 | EV7: 10915692.27 | EW7: 13711893.07 | EX7: 15609883.01 | EY7: 14238702.42 | EZ7: 16043363.27 | FA7: 18050883.8 | FB7: 17222525.96 | FC7: 14741719.89 | FD7: 14730538.53 | FE7: 14067202.6 | FF7: 16465047.53 | FG7: 14733496.67 | FH7: 17614580.52 | FI7: 13654331.07 | FJ7: 15890001.31 | FK7: 15758802.64 | FL7: 11393171.97 | FM7: 16046467.26 | FN7: 15262838.45 | FO7: 16836707.5 | FP7: 16923494.36 | FQ7: 15273465.79 | FR7: 14343463.53 | FS7: 18611991.1 | FT7: 14503717.18 | FU7: 12035961.41 | FV7: 17872513.11 | FW7: 13700870.92 | FX7: 14377519 | FY7: 13666133.46 | FZ7: 16057236.72 | GA7: 13798667.77 | GB7: 15512483.62 | GC7: 15840949.13 | GD7: 16955280.44 | GE7: 12861249.49 | GF7: 17260373.32 | GG7: 16945610.37 | GH7: 14915320.73 | GI7: 16569001.2 | GJ7: 15773941.9 | GK7: 16725434.95 | GL7: 14130211.07 | GM7: 18759383.55 | GN7: 15993625.76 | GO7: 12914372.12 | GP7: 15848789.19 | GQ7: 11807343.5 | GR7: 13085328.59 | GS7: 13973474.06 | GT7: 12689760.79 | GU7: 15955979.49 | GV7: 11675841.65 | GW7: 13384912.5 | GX7: 13959533.21 | GY7: 15617662.58 | GZ7: 12854343.8 | HA7: 15942755.98 | HB7: 11839738.84 | HC7: 14174610.04 | HD7: 16574330.19 | HE7: 16073281.18 | HF7: 15426177.39 | HG7: 15244374.49 | HH7: 16148927.32 | HI7: 13387619.58 | HJ7: 15777725.68 | HK7: 12277913.62 | HL7: 15324980.74 | HM7: 15826532.83 | HN7: 13810253.72 | HO7: 17133342.56 | HP7: 16925054.34 | HQ7: 13170856.32 | HR7: 18334880.78 | HS7: 20072390.05 | HT7: 18621618.94 | HU7: 17304961.03 | HV7: 15972799.01 | HW7: 11681862.75 | HX7: 16496520.29 | HY7: 17383510.7 | HZ7: 13428277.27 | IA7: 17420097.54 | IB7: 16916624.1 | IC7: 16844385.87 | ID7: 17387202.65 | IE7: 16120428.68 | IF7: 16151739.15 | IG7: 10555550.79 | IH7: 15010561.89 | II7: 13441683.14 | IJ7: 16730459.3 | IK7: 9540852.685 | IL7: 15409010.09 | IM7: 15534232.94 | IN7: 16880681.17 | IO7: 12318415.44 | IP7: 16751385.17 | IQ7: 18038873.73 | IR7: 10317499.06 | IS7: 13238363.84 | IT7: 13105370.7 | IU7: 13403680.55 | IV7: 14118832.97 | IW7: 15056243.25 | IX7: 14124348.06 | IY7: 12298061.72 | IZ7: 16725778.81 | JA7: 15474145.4 | JB7: 14071069.25 | JC7: 18159493.58 | JD7: 13012699.74 | JE7: 14615741.24 | JF7: 17284375.21 | JG7: 16059245.57 | JH7: 14354858.46 | JI7: 13630963.52 | JJ7: 16209551.04 | JK7: 14360614.65 | JL7: 14702652.85 | JM7: 17826574.84 | JN7: 14701367.51 | JO7: 16355086.47 | JP7: 16461809.31 | JQ7: 12004057.74 | JR7: 14070973.33 | JS7: 15420354.45 | JT7: 17824041.48 | JU7: 15617719.16 | JV7: 15427561.13 | JW7: 15988601.05 | JX7: 14705848.32 | JY7: 17528685.17 | JZ7: 16303594.92 | KA7: 17196225.31 | KB7: 14692582.46 | KC7: 17333913.11 | KD7: 15081811.74 | KE7: 15095579.52 | KF7: 12374109.62 | KG7: 16913003.48 | KH7: 13308210.43 | KI7: 18429964.62 | KJ7: 15180056.26 | KK7: 10714754.19 | KL7: 15462531.85 | KM7: 17412609.93 | KN7: 13689421.66 | KO7: 15403052.5 | KP7: 15998459.35 | KQ7: 17304224.91 | KR7: 16719238.77 | KS7: 13736919.01 | KT7: 15207542.74 | KU7: 14204853.93 | KV7: 18609353.28 | KW7: 14643495.11 | KX7: 14900782.84 | KY7: 14492857.88 | KZ7: 13916139.08 | LA7: 18309646.34 | LB7: 15559100.12 | LC7: 14435911.59 | LD7: 12286884.26 | LE7: 15195851.81 | LF7: 16729549.91 | LG7: 15897248.29 | LH7: 12750098.64 | LI7: 15571043.45 | LJ7: 14264878.09 | LK7: 17499572.4 | LL7: 16632118.5 | LM7: 19185317.52 | LN7: 20099478.08 | LO7: 14637682.7 | LP7: 13046313.74 | LQ7: 14901002.65 | LR7: 13618412.54 | LS7: 11395854.04 | LT7: 11834640.68 | LU7: 16347767.48 | LV7: 14516079.82 | LW7: 16440863.78 | LX7: 17287390.71 | LY7: 14763669.86 | LZ7: 19525322.5 | MA7: 15201014.32 | MB7: 14034711.68 | MC7: 15841597.64 | MD7: 11877740.47 | ME7: 14692375.42 | MF7: 17060469.74 | MG7: 12714280.72 | MH7: 16026007.62 | MI7: 15715140.74 | MJ7: 16756376.45 | MK7: 16505981.61 | ML7: 16195779.07 | MM7: 17598280.49 | MN7: 17405870.7 | MO7: 15209769.05 | MP7: 14192823.18 | MQ7: 13541306.36 | MR7: 17510903.61 | MS7: 12957756.96 | MT7: 17886576.17 | MU7: 13615287.97 | MV7: 16392068.36 | MW7: 14170894.75 | MX7: 16702903.28 | MY7: 15034366.47 | MZ7: 16105676.06 | NA7: 12695661.25 | NB7: 15894727.08 | NC7: 12958482.04 | ND7: 12610480.89 | NE7: 14244137.76 | NF7: 12186155.29 | NG7: 12056336.1 | NH7: 13901817.88 | NI7: 15545787.18 | NJ7: 16141297.4 | NK7: 15406392.61 | NL7: 15398396.26 | NM7: 14775871.96 | NN7: 15995157.77 | NO7: 16247046.15 | NP7: 13922291 | NQ7: 13048828.63 | NR7: 19432561.21 | NS7: 16100013.01 | NT7: 17386201.91 | NU7: 15004278.95 | NV7: 16755915.02 | NW7: 16416760.87 | NX7: 18417272.48 | NY7: 17789730.52 | NZ7: 12233937.04 | OA7: 15575082.33 | OB7: 15580170.1 | OC7: 15832143.14 | OD7: 12410044.51 | OE7: 13911301.22 | OF7: 17000609.03 | OG7: 16532587.81 | OH7: 16794898.35 | OI7: 16865919.02 | OJ7: 15880287.29 | OK7: 10813161.21 | OL7: 14781386.68 | OM7: 16129619.3 | ON7: 12267075.45 | OO7: 17396489.68 | OP7: 16965324.97 | OQ7: 15531541.07 | OR7: 16283784.71 | OS7: 17826998.56 | OT7: 18162794.64 | OU7: 14683305.56 | OV7: 13775670.65 | OW7: 13884175.74 | OX7: 19419271.15 | OY7: 14761629.55 | OZ7: 17354990.6 | PA7: 14543456.05 | PB7: 17225906.11 | PC7: 15242993.14 | PD7: 13694303.5 | PE7: 13953049.83 | PF7: 16055508.35 | PG7: 19842681.47 | PH7: 15623160.31 | PI7: 12283721.44 | PJ7: 15304390.13 | PK7: 12370820.45 | PL7: 14238794.98 | PM7: 13990410.83 | PN7: 15921298.94 | PO7: 14510544.69 | PP7: 16750467.1 | PQ7: 13449966.59 | PR7: 17901409.74 | PS7: 17246993.57 | PT7: 11883202.44 | PU7: 16200663.56 | PV7: 15579700.14 | PW7: 14427057.61 | PX7: 15345134.36 | PY7: 16397379.57 | PZ7: 13211629.24 | QA7: 13990230.6 | QB7: 13143529.34 | QC7: 14898337.12 | QD7: 15833932.34 | QE7: 16141205.44 | QF7: 16030754.64 | QG7: 19965151.93 | QH7: 16828001.14 | QI7: 12884131.67 | QJ7: 12623251.86 | QK7: 18716061.97 | QL7: 14669778.98 | QM7: 16687295.23 | QN7: 16026153.45 | QO7: 16666171.44 | QP7: 15114469.22 | QQ7: 15891208.99 | QR7: 15950100.45 | QS7: 14818509.09 | QT7: 13882598.68 | QU7: 12740521.14 | QV7: 17789407.5 | QW7: 13067905.01 | QX7: 13594254.98 | QY7: 12485410.37 | QZ7: 15927217.97 | RA7: 12317015.97 | RB7: 14576696.28 | RC7: 13404749.02 | RD7: 13690880.32 | RE7: 13137168.31 | RF7: 16725834.49 | RG7: 18269477.3 | RH7: 13423581.28 | RI7: 15346601.69 | RJ7: 15367298.88 | RK7: 12645627.09 | RL7: 17385233.88 | RM7: 14890007.07 | RN7: 16211480.57 | RO7: 10790982.67 | RP7: 14702470.04 | RQ7: 17638592.28 | RR7: 16065796.02 | RS7: 11299233.54 | RT7: 14550168.27 | RU7: 18594619.73 | RV7: 14892369.66 | RW7: 13235320.02 | RX7: 14170291.43 | RY7: 16927303.45 | RZ7: 15158244.1 | SA7: 16193103 | SB7: 13533993.51 | SC7: 14184840.79 | SD7: 15830668.36 | SE7: 14966738.02 | SF7: 13506356.98 | SG7: 12418087.79
B8: 12807010.32 | C8: 15317374.36 | D8: 15518216.23 | E8: 15275661.62 | F8: 15028704.16 | G8: 16074710.24 | H8: 15423148.45 | I8: 16113140.05 | J8: 13406344.8 | K8: 13562003.56 | L8: 15587665.91 | M8: 14961165.6 | N8: 14763455.14 | O8: 13719179.14 | P8: 17550207.11 | Q8: 16609300.31 | R8: 14738495.97 | S8: 17548407.19 | T8: 16829965.31 | U8: 13729012.13 | V8: 18874306.5 | W8: 16692994.28 | X8: 17242521.22 | Y8: 15592811.11 | Z8: 14071333.34 | AA8: 13469110.22 | AB8: 11857711.77 | AC8: 14628179.4 | AD8: 15126387.32 | AE8: 16004033.75 | AF8: 13965502.14 | AG8: 18035136.65 | AH8: 12786465.77 | AI8: 16815094.17 | AJ8: 14189117.69 | AK8: 15049201.28 | AL8: 15355887.41 | AM8: 14669834.95 | AN8: 17337060.82 | AO8: 15545216.89 | AP8: 12931713.5 | AQ8: 11553418.36 | AR8: 15274656.6 | AS8: 12353091.22 | AT8: 14207167.2 | AU8: 17380677.56 | AV8: 14037477.98 | AW8: 15061418.54 | AX8: 15293951.3 | AY8: 14503197.8 | AZ8: 12707605.91 | BA8: 10983115.02 | BB8: 15378742.87 | BC8: 15434290.43 | BD8: 15414647.03 | BE8: 13115550.57 | BF8: 12740596.59 | BG8: 13491714.33 | BH8: 14291851.07 | BI8: 15590152.29 | BJ8: 18223564.84 | BK8: 14757987.6 | BL8: 12755135.72 | BM8: 11779983.29 | BN8: 17464987.44 | BO8: 17279688.11 | BP8: 14943852.13 | BQ8: 16566861.14 | BR8: 14522803.43 | BS8: 14789204.41 | BT8: 13804892.75 | BU8: 15291956.38 | BV8: 17259960.45 | BW8: 15672770.49 | BX8: 16863187.33 | BY8: 15865209.39 | BZ8: 12306013.05 | CA8: 12292660.45 | CB8: 14548403.72 | CC8: 15767183.27 | CD8: 12615788.99 | CE8: 17129670.71 | CF8: 15152057.98 | CG8: 17475626.39 | CH8: 14150025.06 | CI8: 17993694.12 | CJ8: 13083541.4 | CK8: 17493887.54 | CL8: 13953534.56 | CM8: 11633923.45 | CN8: 15753353.49 | CO8: 14152501.03 | CP8: 14915947.04 | CQ8: 17792220.15 | CR8: 15613369.21 | CS8: 12436115.59 | CT8: 16064065.84 | CU8: 16596800.91 | CV8: 13053802.84 | CW8: 16539286.32 | CX8: 15218443.32 | CY8: 13921192.36 | CZ8: 16821621.89 | DA8: 15120170.84 | DB8: 15471398.25 | DC8: 15658057.55 | DD8: 11728693.77 | DE8: 19055924.24 | DF8: 18967607.4 | DG8: 13183441.38 | DH8: 15992366.14 | DI8: 11828452.64 | DJ8: 14287303.21 | DK8: 13629155.1 | DL8: 15805789.09 | DM8: 12790111.47 | DN8: 13600215.78 | DO8: 11548496.19 | DP8: 17363043.65 | DQ8: 11888874.38 | DR8: 10578100.88 | DS8: 17380399.78 | DT8: 14627382.04 | DU8: 14537952.64 | DV8: 13145208.65 | DW8: 16846157.28 | DX8: 14733778.62 | DY8: 14561562.08 | DZ8: 14872191.55 | EA8: 17482405.33 | EB8: 12262872.11 | EC8: 19301981.57 | ED8: 14032394.15 | EE8: 15474727.34 | EF8: 13470690.98 | EG8: 14013710.86 | EH8: 16992954.15 | EI8: 13366753.16 | EJ8: 17001995.53 | EK8: 17986391.98 | EL8: 16081478.34 | EM8: 15601922.65 | EN8: 15781508.26 | EO8: 13663801.81 | EP8: 12021786.26 | EQ8: 15022114.62 | ER8: 16059481.24 | ES8: 15163116.54 | ET8: 14334990.8 | EU8: 17165047.61 | EV8: 16746181.01 | EW8: 14718819.62 | EX8: 14847805.51 | EY8: 14227518.52 | EZ8: 13779064.66 | FA8: 12899833.35 | FB8: 16545521.92 | FC8: 13140515.13 | FD8: 17590288.18 | FE8: 18370919.38 | FF8: 15126781.81 | FG8: 17459403.33 | FH8: 15125860.55 | FI8: 16957219.8 | FJ8: 14496091.53 | FK8: 16746884.25 | FL8: 15428643.83 | FM8: 16959638.03 | FN8: 14463062 | FO8: 13591208.69 | FP8: 12304792.13 | FQ8: 19109990.97 | FR8: 12824051.09 | FS8: 14509570.79 | FT8: 16854968.87 | FU8: 16219978.39 | FV8: 15355679.34 | FW8: 13556517.99 | FX8: 13405412.61 | FY8: 13300306.93 | FZ8: 14875160.23 | GA8: 15601353.72 | GB8: 17016147.19 | GC8: 17251285.9 | GD8: 14884003.58 | GE8: 13933547.58 | GF8: 13870574.55 | GG8: 15605029.83 | GH8: 14689536.98 | GI8: 15576135.72 | GJ8: 16144559.89 | GK8: 16219641.75 | GL8: 16907078.34 | GM8: 15723320.96 | GN8: 15331144.58 | GO8: 14938999.28 | GP8: 16564281.92 | GQ8: 17736497.67 | GR8: 15146288.8 | GS8: 13796755.51 | GT8: 14210171.03 | GU8: 15530432.88 | GV8: 16731803.11 | GW8: 14430699.72 | GX8: 13371400.3 | GY8: 13653055.12 | GZ8: 16852035.72 | HA8: 12270837.14 | HB8: 11195186.81 | HC8: 14314437.78 | HD8: 15968816.57 | HE8: 15572051.46 | HF8: 17716940.64 | HG8: 15082733.27 | HH8: 16580925.18 | HI8: 15865735.13 | HJ8: 13654386.27 | HK8: 16446016.88 | HL8: 15019273.49 | HM8: 17736644 | HN8: 15043274.91 | HO8: 19568074.56 | HP8: 17113893.78 | HQ8: 9772498.324 | HR8: 16703597.24 | HS8: 15594757.11 | HT8: 14548971.65 | HU8: 16784812.41 | HV8: 14695757.05 | HW8: 15255139.8 | HX8: 13268838.44 | HY8: 17255652.41 | HZ8: 16482567.88 | IA8: 16182805.57 | IB8: 13133453.78 | IC8: 15752460.15 | ID8: 11806887.12 | IE8: 13908746.99 | IF8: 16887654.95 | IG8: 13508723.21 | IH8: 13948340.99 | II8: 12166878.06 | IJ8: 15429445.04 | IK8: 14637759.69 | IL8: 14587175.06 | IM8: 15676587.05 | IN8: 16929451.59 | IO8: 12523575.91 | IP8: 17219403.78 | IQ8: 15451837.47 | IR8: 16349188.92 | IS8: 12677703.64 | IT8: 15479547.98 | IU8: 14306261.34 | IV8: 17405702.16 | IW8: 14993376.69 | IX8: 13820719.28 | IY8: 15435505.4 | IZ8: 16929361.52 | JA8: 15108977.37 | JB8: 12995189.15 | JC8: 12959487.88 | JD8: 15320562.6 | JE8: 16667439.26 | JF8: 17123247.88 | JG8: 16558982.15 | JH8: 15737880.27 | JI8: 12890221.53 | JJ8: 16409924.66 | JK8: 11876792.38 | JL8: 13179542.64 | JM8: 16226083.57 | JN8: 11447801.04 | JO8: 15869696.07 | JP8: 17074749.07 | JQ8: 15777890.85 | JR8: 15053489.36 | JS8: 12204347.05 | JT8: 15900948.1 | JU8: 13916671.53 | JV8: 18603129.94 | JW8: 16101975.05 | JX8: 14237577.8 | JY8: 15953430.69 | JZ8: 15020541.66 | KA8: 14906337.69 | KB8: 16621862.84 | KC8: 14643931.68 | KD8: 12695597.28 | KE8: 12251947.67 | KF8: 15168842.74 | KG8: 12857772.77 | KH8: 13266316.75 | KI8: 15457634.94 | KJ8: 16011951.41 | KK8: 16819292.45 | KL8: 14488963.75 | KM8: 14647312.46 | KN8: 13104751.86 | KO8: 17059156.22 | KP8: 14507159.05 | KQ8: 13715446.65 | KR8: 17414993.83 | KS8: 15295378.53 | KT8: 15502662.82 | KU8: 16126778.08 | KV8: 15862505.1 | KW8: 11933263.66 | KX8: 17923660.98 | KY8: 11471596.52 | KZ8: 13256632.7 | LA8: 14240501.54 | LB8: 13027152.01 | LC8: 10942986.67 | LD8: 15567088.39 | LE8: 13012239.36 | LF8: 16585275.35 | LG8: 16433381.64 | LH8: 17529640.8 | LI8: 14243523.24 | LJ8: 15596093.33 | LK8: 12470815.52 | LL8: 17717446.27 | LM8: 13032162.14 | LN8: 17833601.1 | LO8: 14115461.07 | LP8: 14102099.4 | LQ8: 14967993.71 | LR8: 12508396.41 | LS8: 14457184.73 | LT8: 15945690.59 | LU8: 18432486.81 | LV8: 16201072.52 | LW8: 15793830.81 | LX8: 17276393.18 | LY8: 14209124.76 | LZ8: 14744136.8 | MA8: 14682901.76 | MB8: 13616990.41 | MC8: 16349174.61 | MD8: 13921454.58 | ME8: 16682789.87 | MF8: 15494373.62 | MG8: 13691699.6 | MH8: 15374247.2 | MI8: 13035482.37 | MJ8: 14997931.38 | MK8: 13613939.67 | ML8: 17792643.46 | MM8: 16276341.03 | MN8: 15298166.86 | MO8: 13829832.15 | MP8: 18362572.26 | MQ8: 15808812.1 | MR8: 15398861.43 | MS8: 16872214.67 | MT8: 14746054.77 | MU8: 15265650.17 | MV8: 12656964.33 | MW8: 15529194.84 | MX8: 15169754.36 | MY8: 14427480.2 | MZ8: 17487765.02 | NA8: 18228046.6 | NB8: 13533302.48 | NC8: 15277178.95 | ND8: 15745291.29 | NE8: 14188185.19 | NF8: 14718474.26 | NG8: 15864544.24 | NH8: 14396706.23 | NI8: 16595046.77 | NJ8: 18776710.71 | NK8: 13285365.8 | NL8: 15318741.79 | NM8: 14127315.29 | NN8: 16429602.02 | NO8: 15614144.59 | NP8: 13264654.1 | NQ8: 20376602.57 | NR8: 15414956.4 | NS8: 14364303.59 | NT8: 18123816.66 | NU8: 13613354.47 | NV8: 13692468.74 | NW8: 13698608.02 | NX8: 14973726.13 | NY8: 16773481.42 | NZ8: 15148418.79 | OA8: 16310701.2 | OB8: 18374649.23 | OC8: 13980333.7 | OD8: 14422528.41 | OE8: 17136793.9 | OF8: 14064829.08 | OG8: 12909364.27 | OH8: 14893232.93 | OI8: 14140887.67 | OJ8: 14530731.17 | OK8: 14409588.41 | OL8: 15507567.36 | OM8: 12019337.56 | ON8: 15948467.19 | OO8: 11897153.38 | OP8: 11887913.38 | OQ8: 18051199.61 | OR8: 15204392.55 | OS8: 14718594.67 | OT8: 16359720.72 | OU8: 14269556.9 | OV8: 15990148.21 | OW8: 16650590.71 | OX8: 16895121.73 | OY8: 15834151.45 | OZ8: 13800602.67 | PA8: 16681510.04 | PB8: 10299377.35 | PC8: 15857889.54 | PD8: 16789808.77 | PE8: 11087170.63 | PF8: 16740591.56 | PG8: 14454206.62 | PH8: 11829458.04 | PI8: 15012412.98 | PJ8: 15147615.13 | PK8: 17636567.06 | PL8: 17545305.65 | PM8: 12358308.24 | PN8: 11783728.86 | PO8: 11322876.36 | PP8: 14383668.03 | PQ8: 14579385.96 | PR8: 15935850.64 | PS8: 12415098.79 | PT8: 14826762.54 | PU8: 16118135.21 | PV8: 18586403.08 | PW8: 16937669.1 | PX8: 18083289.59 | PY8: 15847393.96 | PZ8: 13683098.34 | QA8: 15244865.93 | QB8: 14501770.84 | QC8: 16110336.11 | QD8: 14622660.64 | QE8: 18603012.5 | QF8: 12752368.87 | QG8: 17105488.42 | QH8: 16313859.28 | QI8: 14221759.26 | QJ8: 18367884.5 | QK8: 15331574.48 | QL8: 16424088.46 | QM8: 16580795.38 | QN8: 15300296.57 | QO8: 18283982.36 | QP8: 18755565.7 | QQ8: 16900324.08 | QR8: 12593882.59 | QS8: 13075438.25 | QT8: 13208123.57 | QU8: 15414291.98 | QV8: 17716730.98 | QW8: 13093657.73 | QX8: 13887812.32 | QY8: 15044028.84 | QZ8: 12435924.65 | RA8: 14073010.53 | RB8: 15750206.53 | RC8: 16691831.69 | RD8: 16445661.42 | RE8: 15931728.49 | RF8: 16242569.41 | RG8: 17096604.38 | RH8: 15452636.55 | RI8: 14695759.6 | RJ8: 14052965.25 | RK8: 17149217.9 | RL8: 17224891.38 | RM8: 16076672.27 | RN8: 17294801.61 | RO8: 13346399.99 | RP8: 15440715.59 | RQ8: 18533388.51 | RR8: 10919409.61 | RS8: 17132603.62 | RT8: 12970145.8 | RU8: 16020967.9 | RV8: 14950891.01 | RW8: 13155793.22 | RX8: 14867771.28 | RY8: 18841007.6 | RZ8: 14221782.79 | SA8: 12684816.36 | SB8: 18864065.64 | SC8: 18258466.24 | SD8: 15492243.72 | SE8: 15810809.22 | SF8: 14241715.11 | SG8: 16111188.58
B9: 16929184.78 | C9: 17441040.39 | D9: 16394394.68 | E9: 12927798.77 | F9: 13870698.13 | G9: 12121941.28 | H9: 14353289.52 | I9: 13108102.25 | J9: 16493780.88 | K9: 16476433.95 | L9: 15068982.08 | M9: 14033667.57 | N9: 16328512.7 | O9: 15231193.88 | P9: 17216379.96 | Q9: 18398652.58 | R9: 12914552.41 | S9: 15299639.3 | T9: 14693389.37 | U9: 14736285.49 | V9: 20393342.88 | W9: 16702331.45 | X9: 12841470.54 | Y9: 14425060.46 | Z9: 12957379.78 | AA9: 14140609.31 | AB9: 16741359.21 | AC9: 14787766.24 | AD9: 17218504.28 | AE9: 14740672.47 | AF9: 16022726.88 | AG9: 14536908.31 | AH9: 15961819.25 | AI9: 14057034.82 | AJ9: 13189844.66 | AK9: 14574819.8 | AL9: 15015630.91 | AM9: 18231205.7 | AN9: 15891409.43 | AO9: 14806023.52 | AP9: 15084306.43 | AQ9: 12967669.08 | AR9: 14254717.98 | AS9: 15613197.51 | AT9: 17274304.22 | AU9: 14135444.99 | AV9: 15714335.1 | AW9: 16193458.56 | AX9: 15017426.14 | AY9: 12253759.37 | AZ9: 17571076.95 | BA9: 16785231.72 | BB9: 16936023.14 | BC9: 13820709.18 | BD9: 15501844.45 | BE9: 17462235.34 | BF9: 13150985.73 | BG9: 12725668.5 | BH9: 14521275.77 | BI9: 13420587.2 | BJ9: 16079595.48 | BK9: 17033585.76 | BL9: 12453227.28 | BM9: 11206854.56 | BN9: 17730644.44 | BO9: 15569019.65 | BP9: 14927900.45 | BQ9: 14397267.37 | BR9: 13558223.92 | BS9: 13876213.03 | BT9: 15016014.24 | BU9: 15427959.55 | BV9: 14733565.58 | BW9: 16588772.61 | BX9: 17492136.09 | BY9: 13466336.02 | BZ9: 17930287.14 | CA9: 16160168.95 | CB9: 14737912.05 | CC9: 17443249.38 | CD9: 13681569.83 | CE9: 11574745.25 | CF9: 13180593.08 | CG9: 13337153.9 | CH9: 16054467.76 | CI9: 15102766.63 | CJ9: 14101991.7 | CK9: 15378544.94 | CL9: 16248443.5 | CM9: 15664120.73 | CN9: 18221868.39 | CO9: 16060923.85 | CP9: 15785774.95 | CQ9: 14004700.7 | CR9: 13745855.11 | CS9: 15302629.94 | CT9: 13921871.98 | CU9: 15056549.15 | CV9: 16233154.98 | CW9: 17313538.97 | CX9: 14841224.89 | CY9: 15711148.29 | CZ9: 15651968.65 | DA9: 17557035.67 | DB9: 15799734.87 | DC9: 11967455.13 | DD9: 13004028.74 | DE9: 13609575.01 | DF9: 14886695.07 | DG9: 15554730.39 | DH9: 19350414.88 | DI9: 14993368.45 | DJ9: 12501734.38 | DK9: 16228078.81 | DL9: 17971766.72 | DM9: 20165993.55 | DN9: 15324252.01 | DO9: 15247673.65 | DP9: 19741889.51 | DQ9: 15179964.07 | DR9: 15694892.79 | DS9: 15866153.81 | DT9: 14629509.78 | DU9: 14424890.68 | DV9: 12128633.12 | DW9: 19506836.65 | DX9: 13493785.07 | DY9: 13380095.78 | DZ9: 16745955.85 | EA9: 14637462.4 | EB9: 17252321.24 | EC9: 15946146.31 | ED9: 12874856.17 | EE9: 15159260.47 | EF9: 16457954.42 | EG9: 13211963.83 | EH9: 16176517.84 | EI9: 14207819.14 | EJ9: 14711507.62 | EK9: 16224810.16 | EL9: 16620869.65 | EM9: 15601185.19 | EN9: 15656714.72 | EO9: 18548432.02 | EP9: 16450494.89 | EQ9: 17766073.48 | ER9: 12834182.43 | ES9: 16180511.98 | ET9: 13943965.71 | EU9: 11144222.35 | EV9: 15400972.22 | EW9: 17503846.91 | EX9: 17600052.46 | EY9: 14073412.75 | EZ9: 15462987.89 | FA9: 14257422.77 | FB9: 14486085.55 | FC9: 11148330.08 | FD9: 13579282.25 | FE9: 18464968.76 | FF9: 17084042.08 | FG9: 13299530.8 | FH9: 18538480.31 | FI9: 19209539.77 | FJ9: 14410100.41 | FK9: 15730004.83 | FL9: 13624366.66 | FM9: 17867626.99 | FN9: 11821644.24 | FO9: 14266602.91 | FP9: 15614821.31 | FQ9: 12154719.05 | FR9: 15012922.58 | FS9: 15215263.97 | FT9: 16538841.55 | FU9: 15161711.41 | FV9: 12011078.6 | FW9: 16852516.7 | FX9: 19155528.88 | FY9: 14243117.07 | FZ9: 13579032.76 | GA9: 16306630.46 | GB9: 14711513.45 | GC9: 11259106.68 | GD9: 18795052.23 | GE9: 13487848.9 | GF9: 16607004.65 | GG9: 16274902.44 | GH9: 16987805.75 | GI9: 17893706.96 | GJ9: 13677947.82 | GK9: 17181114.26 | GL9: 13674754.99 | GM9: 16093499.53 | GN9: 15007498.35 | GO9: 12111035.49 | GP9: 16105811.41 | GQ9: 16201346.92 | GR9: 14534862 | GS9: 13614909.66 | GT9: 13712650.77 | GU9: 13296808.28 | GV9: 13966751.28 | GW9: 15679554.78 | GX9: 14664548.62 | GY9: 15234887.62 | GZ9: 13836118.69 | HA9: 12563044.68 | HB9: 12513314.03 | HC9: 14158029.01 | HD9: 17475700.53 | HE9: 18363336.53 | HF9: 15219194.26 | HG9: 16782756.17 | HH9: 15851508.87 | HI9: 12525186.7 | HJ9: 16198386.03 | HK9: 12324168.06 | HL9: 12655475.17 | HM9: 15529329.22 | HN9: 15735321.75 | HO9: 13505503.28 | HP9: 12962584.92 | HQ9: 13233962.76 | HR9: 16635747.57 | HS9: 20559021.27 | HT9: 15880830.77 | HU9: 13701344.78 | HV9: 16202034.54 | HW9: 17656073.11 | HX9: 15328936.44 | HY9: 15034041.93 | HZ9: 16994400.68 | IA9: 15165596.67 | IB9: 17744904.19 | IC9: 14995039.41 | ID9: 17706622.49 | IE9: 15368786.52 | IF9: 16390156.73 | IG9: 18796010.52 | IH9: 17166547.51 | II9: 17660331.84 | IJ9: 16181365.11 | IK9: 14703772.92 | IL9: 15995845.73 | IM9: 14645512.92 | IN9: 16806320.87 | IO9: 18007420.97 | IP9: 15673816.64 | IQ9: 15870257.39 | IR9: 17952988.29 | IS9: 13353623.46 | IT9: 15943820.45 | IU9: 16813467.05 | IV9: 16896393.2 | IW9: 17875585.04 | IX9: 18814181.59 | IY9: 17067806.09 | IZ9: 16467037.79 | JA9: 16261742.69 | JB9: 9677710.595 | JC9: 11884692.49 | JD9: 16162153.35 | JE9: 17004767.16 | JF9: 12913042.6 | JG9: 14601500.75 | JH9: 13647611.68 | JI9: 16131913.95 | JJ9: 16388362.66 | JK9: 14129440.84 | JL9: 12963629.61 | JM9: 14603736.39 | JN9: 15176361.66 | JO9: 11863251.51 | JP9: 15716742.64 | JQ9: 16027534.82 | JR9: 11120411.23 | JS9: 17149797.56 | JT9: 14674764.81 | JU9: 18276344.32 | JV9: 11436849.86 | JW9: 15631952.53 | JX9: 13561268.6 | JY9: 13902956.49 | JZ9: 14576459.39 | KA9: 14794755.47 | KB9: 10221578.86 | KC9: 15157473.39 | KD9: 14775530.87 | KE9: 15078857.38 | KF9: 13569180.12 | KG9: 16936104.38 | KH9: 16137332.66 | KI9: 15233945.23 | KJ9: 14723172.2 | KK9: 17437012.77 | KL9: 15319833.35 | KM9: 12768974.76 | KN9: 15825649.54 | KO9: 15614499.9 | KP9: 16505221.7 | KQ9: 15756011.91 | KR9: 15452232.74 | KS9: 16722871.17 | KT9: 17874098.4 | KU9: 16221223.74 | KV9: 13111345.13 | KW9: 15993631.77 | KX9: 15829133.51 | KY9: 17379787.05 | KZ9: 15971614.77 | LA9: 16371190.25 | LB9: 19458565.68 | LC9: 15767886.44 | LD9: 14366800.62 | LE9: 13359679.53 | LF9: 15334688.96 | LG9: 15595085.48 | LH9: 17670145.48 | LI9: 14522751.9 | LJ9: 14271875.73 | LK9: 15663232.03 | LL9: 17360695.63 | LM9: 13999868.28 | LN9: 11244355.08 | LO9: 16406259.22 | LP9: 13187826.91 | LQ9: 17023020.63 | LR9: 12716274.82 | LS9: 16268760.76 | LT9: 12745452.23 | LU9: 13322292.59 | LV9: 17299606.78 | LW9: 13301814.89 | LX9: 13422150.37 | LY9: 14884918.7 | LZ9: 14667058 | MA9: 13486892.4 | MB9: 14267321.77 | MC9: 13643742.99 | MD9: 14630569.69 | ME9: 12791224.53 | MF9: 18726518.01 | MG9: 14586933.83 | MH9: 16834864.48 | MI9: 16041929.37 | MJ9: 15729339.2 | MK9: 13324261.89 | ML9: 14684309.71 | MM9: 15459706.78 | MN9: 17743652.96 | MO9: 18480744.94 | MP9: 13366998.36 | MQ9: 16232330.33 | MR9: 14438698.82 | MS9: 13908275.85 | MT9: 12670393.23 | MU9: 15605710.46 | MV9: 11587582.28 | MW9: 16866585.86 | MX9: 14523769.86 | MY9: 14598963.57 | MZ9: 17378626.8 | NA9: 12239056.16 | NB9: 15997125.24 | NC9: 14959906.29 | ND9: 14117709.44 | NE9: 15847911.45 | NF9: 13827301.36 | NG9: 15102106.72 | NH9: 15166860.37 | NI9: 17289303.78 | NJ9: 13594295.28 | NK9: 13238625.99 | NL9: 15449290.7 | NM9: 11926786.93 | NN9: 12495933.92 | NO9: 16998618.05 | NP9: 15642403.95 | NQ9: 11898338.52 | NR9: 14564954.86 | NS9: 18780801.85 | NT9: 18133143.53 | NU9: 15305076.52 | NV9: 15539363.72 | NW9: 14035234.18 | NX9: 16875027.42 | NY9: 12906494.28 | NZ9: 17685007.01 | OA9: 14878304.67 | OB9: 14703615.35 | OC9: 13855866.33 | OD9: 16285709.78 | OE9: 15947615.4 | OF9: 16804286.03 | OG9: 15131981.87 | OH9: 14039240.17 | OI9: 17071760.35 | OJ9: 20338992.32 | OK9: 16211502.98 | OL9: 13676046.07 | OM9: 14865429.52 | ON9: 13327344.56 | OO9: 16280601.68 | OP9: 14170625.01 | OQ9: 13829078.6 | OR9: 14626326.27 | OS9: 16605570.55 | OT9: 11041247.4 | OU9: 10383460.61 | OV9: 15730264.21 | OW9: 13546094.08 | OX9: 17190813.77 | OY9: 11549432.26 | OZ9: 13054606.4 | PA9: 12906450.1 | PB9: 15048788.83 | PC9: 12903210.77 | PD9: 13773130.03 | PE9: 15158896.71 | PF9: 16696532.74 | PG9: 13349079.67 | PH9: 15042353.99 | PI9: 15203261.15 | PJ9: 16132420.74 | PK9: 13055757.17 | PL9: 15160248.12 | PM9: 14327872.56 | PN9: 16065089.86 | PO9: 14851053.55 | PP9: 16089822.82 | PQ9: 17068250.46 | PR9: 13231514.25 | PS9: 19308542.41 | PT9: 13621389.16 | PU9: 12982643.9 | PV9: 14133395.98 | PW9: 15597190.25 | PX9: 14997994.68 | PY9: 15029498.65 | PZ9: 17066649.73 | QA9: 17723306.23 | QB9: 16273719.72 | QC9: 15270636.19 | QD9: 15677822.71 | QE9: 12747049.23 | QF9: 18197886.06 | QG9: 16566026.27 | QH9: 11810803.32 | QI9: 12515978.34 | QJ9: 15187928.65 | QK9: 15587378.38 | QL9: 14286408.65 | QM9: 13711457.98 | QN9: 14216546.1 | QO9: 15035731.31 | QP9: 17673341.25 | QQ9: 16504837.69 | QR9: 13269063.34 | QS9: 16739207.43 | QT9: 12431994.4 | QU9: 16874986.21 | QV9: 15671127.51 | QW9: 10361299.81 | QX9: 16395705.15 | QY9: 15772016.45 | QZ9: 19220012.46 | RA9: 16936037.76 | RB9: 14296283.79 | RC9: 16682223.38 | RD9: 16951376.82 | RE9: 14435434.86 | RF9: 13109271.17 | RG9: 13386441.25 | RH9: 13995575.23 | RI9: 18468320.31 | RJ9: 16063935.94 | RK9: 16729356.28 | RL9: 15548286.39 | RM9: 16081020.89 | RN9: 15766054.29 | RO9: 15787735.19 | RP9: 15095351.59 | RQ9: 16576851.74 | RR9: 18602718.53 | RS9: 16342899.65 | RT9: 15701247.01 | RU9: 15793101.39 | RV9: 14640253.67 | RW9: 13881971.05 | RX9: 16844528.67 | RY9: 17534190.47 | RZ9: 15489986.77 | SA9: 16348609.26 | SB9: 16643570.49 | SC9: 15002967.73 | SD9: 16190538.19 | SE9: 13656345.24 | SF9: 14146731.65 | SG9: 14643438.66
B10: 17696137.68 | C10: 16210855.13 | D10: 14643535.54 | E10: 15588402.9 | F10: 15112175.46 | G10: 17878197.7 | H10: 15764816.28 | I10: 12936851.76 | J10: 12477059.83 | K10: 11031531.85 | L10: 16399869.93 | M10: 18714987.4 | N10: 13586738.51 | O10: 16287810.69 | P10: 13225090.81 | Q10: 13396432.69 | R10: 18647418.16 | S10: 16164467.91 | T10: 16050204.87 | U10: 13579028.86 | V10: 14093226.17 | W10: 14137352.89 | X10: 16030413.84 | Y10: 19488265.02 | Z10: 14417943.77 | AA10: 18123533.9 | AB10: 15543112.61 | AC10: 17370125.37 | AD10: 13885844.41 | AE10: 16338905.89 | AF10: 16080943.92 | AG10: 13757984.42 | AH10: 18570652.57 | AI10: 16172364.75 | AJ10: 11994358.99 | AK10: 14467186.5 | AL10: 18633476.47 | AM10: 15690332.7 | AN10: 13280205.63 | AO10: 15451607.65 | AP10: 17033628.36 | AQ10: 14203958.27 | AR10: 16916820.91 | AS10: 13728912.48 | AT10: 16301439.42 | AU10: 14773366.74 | AV10: 17468928.45 | AW10: 15685079.66 | AX10: 15756260.15 | AY10: 14532609.63 | AZ10: 13358629.74 | BA10: 18006061.24 | BB10: 16862258.38 | BC10: 14707460.69 | BD10: 14167845.74 | BE10: 10827871.83 | BF10: 13027002.78 | BG10: 10905290.41 | BH10: 16383042.92 | BI10: 15247041.64 | BJ10: 16209949.69 | BK10: 14628146.91 | BL10: 14853611.82 | BM10: 16323849.34 | BN10: 13229115.56 | BO10: 18534311.63 | BP10: 15818453.51 | BQ10: 14324394.41 | BR10: 16041357.89 | BS10: 15762003.94 | BT10: 17816787.95 | BU10: 13739477.34 | BV10: 15281423.21 | BW10: 16988389.2 | BX10: 15731716.15 | BY10: 19533847.87 | BZ10: 13811243.39 | CA10: 14457484.71 | CB10: 15582515.93 | CC10: 17846035.93 | CD10: 13212927.33 | CE10: 16517580.4 | CF10: 15724813.7 | CG10: 15211230.89 | CH10: 14593401.55 | CI10: 13948651.09 | CJ10: 14311712.3 | CK10: 17433249.58 | CL10: 14627945.72 | CM10: 11801698.3 | CN10: 12417595.99 | CO10: 14256596.59 | CP10: 13912895.42 | CQ10: 12710368.05 | CR10: 17544603.86 | CS10: 12586372.47 | CT10: 18267305.6 | CU10: 17708095.69 | CV10: 13965984.02 | CW10: 16199712.3 | CX10: 15568466.86 | CY10: 14395658.93 | CZ10: 11742353.89 | DA10: 14558110.9 | DB10: 16087769.96 | DC10: 13409316.87 | DD10: 17749482.36 | DE10: 18093660.89 | DF10: 15990404.61 | DG10: 15876928.02 | DH10: 17832569.95 | DI10: 17865560.98 | DJ10: 13531155.14 | DK10: 15521192.4 | DL10: 12881519.61 | DM10: 10239658.74 | DN10: 14365885.13 | DO10: 14099403.5 | DP10: 13891180.35 | DQ10: 16642346.62 | DR10: 15536590.98 | DS10: 13517236.17 | DT10: 16568692.69 | DU10: 14779403.11 | DV10: 15125293.5 | DW10: 14246977.51 | DX10: 18337791.3 | DY10: 13361405.59 | DZ10: 11232173.45 | EA10: 13493039.87 | EB10: 16711625.56 | EC10: 13886554.4 | ED10: 14206039.06 | EE10: 11293731.42 | EF10: 16667571.77 | EG10: 13249610.48 | EH10: 12960696 | EI10: 17515735.97 | EJ10: 16398372.7 | EK10: 14323007.33 | EL10: 15542066.46 | EM10: 13312508.4 | EN10: 16533551.72 | EO10: 18341687.98 | EP10: 13949251.16 | EQ10: 18755620.8 | ER10: 14305699.81 | ES10: 14662545.4 | ET10: 16518644.41 | EU10: 14739826.82 | EV10: 13976717.76 | EW10: 14548668.68 | EX10: 18417068.31 | EY10: 17632481.95 | EZ10: 15151341.52 | FA10: 11860356.99 | FB10: 12956147.54 | FC10: 10204593.23 | FD10: 16550647.31 | FE10: 15943137.26 | FF10: 16508031.63 | FG10: 13733614.11 | FH10: 16920835.8 | FI10: 15954849.86 | FJ10: 13864832.94 | FK10: 13283105.01 | FL10: 13918960.05 | FM10: 14863621.97 | FN10: 13793159.78 | FO10: 12209776.85 | FP10: 14678549.07 | FQ10: 16903154.33 | FR10: 14225445.22 | FS10: 16554713.18 | FT10: 17676694.16 | FU10: 10778423.47 | FV10: 16468023.67 | FW10: 17510879.48 | FX10: 15355893.59 | FY10: 14713764.21 | FZ10: 12603727.09 | GA10: 15613544.53 | GB10: 14309047.07 | GC10: 17213332.02 | GD10: 16370973.06 | GE10: 15370530.74 | GF10: 17044489.97 | GG10: 17615255.5 | GH10: 16692624.6 | GI10: 17009970.85 | GJ10: 15629329.42 | GK10: 14742725.78 | GL10: 15675331.27 | GM10: 14302818.45 | GN10: 15241577.65 | GO10: 15881782.13 | GP10: 12136767.65 | GQ10: 14454869.75 | GR10: 14541111.12 | GS10: 12611277.52 | GT10: 15615197.19 | GU10: 13866067.32 | GV10: 11938757.18 | GW10: 15614120.04 | GX10: 16532260.67 | GY10: 17670563.8 | GZ10: 14422528.19 | HA10: 11424608.44 | HB10: 17896178.09 | HC10: 14761597.02 | HD10: 16288280.41 | HE10: 11314191.19 | HF10: 13869594.7 | HG10: 14831296.35 | HH10: 16142450.69 | HI10: 14310540.82 | HJ10: 16190136.65 | HK10: 15434746.4 | HL10: 15078752.58 | HM10: 14438329 | HN10: 11753386.53 | HO10: 14134604.01 | HP10: 18450130.05 | HQ10: 14627274.04 | HR10: 15554082.85 | HS10: 13589047.48 | HT10: 16864728.19 | HU10: 16197456.1 | HV10: 11910797.29 | HW10: 13876944.95 | HX10: 14928424.95 | HY10: 17378262.55 | HZ10: 13165028.95 | IA10: 14020754.58 | IB10: 17345848.11 | IC10: 14669780.78 | ID10: 13492842.86 | IE10: 14763130.3 | IF10: 12141081.53 | IG10: 12466875.48 | IH10: 13875775.73 | II10: 14080891.8 | IJ10: 18208275.58 | IK10: 16461437.64 | IL10: 15546099.66 | IM10: 16316569.33 | IN10: 19733134.73 | IO10: 17329438.55 | IP10: 16631160.64 | IQ10: 17394781.67 | IR10: 18133810.54 | IS10: 14958680.74 | IT10: 16448064.3 | IU10: 14411487.02 | IV10: 10168606.61 | IW10: 14291264.86 | IX10: 16113282.47 | IY10: 14170804.96 | IZ10: 16190970.6 | JA10: 16612739.94 | JB10: 17654459.91 | JC10: 10028368.47 | JD10: 13619105.94 | JE10: 16655163.95 | JF10: 13837246.99 | JG10: 16832123.71 | JH10: 19351446.97 | JI10: 13253541.02 | JJ10: 14838496.59 | JK10: 17388016.51 | JL10: 15457639.41 | JM10: 17493778.55 | JN10: 12663784.37 | JO10: 16398711.19 | JP10: 18068593.26 | JQ10: 12089195.72 | JR10: 10722552.33 | JS10: 18776066.38 | JT10: 15663579.05 | JU10: 19637546.72 | JV10: 14548286.04 | JW10: 17312952.83 | JX10: 15659956.45 | JY10: 13165592.94 | JZ10: 14359085.18 | KA10: 17126225.66 | KB10: 12685693.08 | KC10: 15879746.98 | KD10: 15837908.08 | KE10: 15089976.19 | KF10: 15358755.35 | KG10: 10023815.42 | KH10: 15797884.41 | KI10: 14139030.02 | KJ10: 13437588.51 | KK10: 14069631.14 | KL10: 16382624.81 | KM10: 13459055.64 | KN10: 14415621.87 | KO10: 17842412.43 | KP10: 15899624.37 | KQ10: 15650847.66 | KR10: 13952423.52 | KS10: 17084750.59 | KT10: 14962833.57 | KU10: 14315032.43 | KV10: 10984818.42 | KW10: 14259394.71 | KX10: 18494101.05 | KY10: 14403737.78 | KZ10: 15277144.2 | LA10: 16004315.16 | LB10: 14078863.94 | LC10: 12879883.69 | LD10: 15771724.32 | LE10: 13164440.54 | LF10: 14227666.61 | LG10: 17307553.5 | LH10: 17891155.74 | LI10: 14637498.26 | LJ10: 16479439.23 | LK10: 17018793.01 | LL10: 13288083.21 | LM10: 18300578.96 | LN10: 16622776.93 | LO10: 14080846.19 | LP10: 15792061.56 | LQ10: 14850209.33 | LR10: 15174725.89 | LS10: 16251096.17 | LT10: 18252894.6 | LU10: 12624451.75 | LV10: 16084177.13 | LW10: 14784624.83 | LX10: 13823393.93 | LY10: 17011901.54 | LZ10: 14534213.37 | MA10: 13101911.71 | MB10: 16228224.84 | MC10: 17857656.66 | MD10: 15742173.61 | ME10: 16256832.49 | MF10: 17071559.1 | MG10: 17146560.94 | MH10: 13954255.65 | MI10: 17386415.46 | MJ10: 18894289.58 | MK10: 15906513.17 | ML10: 15136090.4 | MM10: 17398159.95 | MN10: 17292671.47 | MO10: 18349773.59 | MP10: 14559192.9 | MQ10: 13661520.37 | MR10: 13140709.4 | MS10: 16800306.61 | MT10: 17693880.84 | MU10: 17166834.95 | MV10: 16247299.12 | MW10: 12651041.93 | MX10: 12593550.42 | MY10: 16651261.31 | MZ10: 16571564.07 | NA10: 17410288.82 | NB10: 14511290.69 | NC10: 13001870.33 | ND10: 13648220.28 | NE10: 12277679.87 | NF10: 15717687.63 | NG10: 11265608.46 | NH10: 18114221.64 | NI10: 13149113.34 | NJ10: 16425827.1 | NK10: 13127384.92 | NL10: 17716771.51 | NM10: 17205158.44 | NN10: 17190592.2 | NO10: 16508141.54 | NP10: 14456448.59 | NQ10: 14249278.91 | NR10: 19254157.29 | NS10: 18176954.38 | NT10: 12978810.82 | NU10: 15843300.84 | NV10: 14224746.43 | NW10: 17067803.07 | NX10: 13887243.94 | NY10: 15691436.59 | NZ10: 13238769.67 | OA10: 15970281.21 | OB10: 15680334.9 | OC10: 14799932.59 | OD10: 12703035.19 | OE10: 14811443.38 | OF10: 15512383.83 | OG10: 18881598.11 | OH10: 17243063.11 | OI10: 18288934.31 | OJ10: 16057019.48 | OK10: 15973853.01 | OL10: 13785488.16 | OM10: 12486386.68 | ON10: 18770987.96 | OO10: 12001576.64 | OP10: 13189822.29 | OQ10: 14798532.74 | OR10: 15415340.64 | OS10: 11392291.13 | OT10: 14881724.72 | OU10: 14603473.59 | OV10: 19450314.77 | OW10: 17675688.98 | OX10: 15789090.82 | OY10: 17679894.47 | OZ10: 13962975.33 | PA10: 11951168.93 | PB10: 16674159.33 | PC10: 19019448.45 | PD10: 16290913.24 | PE10: 15645709.17 | PF10: 16651597.98 | PG10: 13349660.64 | PH10: 13999394.41 | PI10: 13016064.87 | PJ10: 15428616.8 | PK10: 15571187.56 | PL10: 16602196.03 | PM10: 14191971.44 | PN10: 14265527.01 | PO10: 18141285.08 | PP10: 13843596.56 | PQ10: 16996709.86 | PR10: 13419932.1 | PS10: 14765899.98 | PT10: 16880993.59 | PU10: 15632817.52 | PV10: 15380564.18 | PW10: 13535112.08 | PX10: 14942080.51 | PY10: 12403029.83 | PZ10: 16237013.4 | QA10: 18461827.49 | QB10: 18653047.43 | QC10: 15691620.18 | QD10: 15029423.65 | QE10: 14276265.81 | QF10: 15068374.69 | QG10: 17949194.62 | QH10: 16386214.67 | QI10: 17181337.78 | QJ10: 17413885.12 | QK10: 15844376.02 | QL10: 15213699.12 | QM10: 17925377.65 | QN10: 22337963.1 | QO10: 13979797.92 | QP10: 13027106.88 | QQ10: 16427532.79 | QR10: 13962608.1 | QS10: 15007706.77 | QT10: 14052249.43 | QU10: 11740835.18 | QV10: 17698080.21 | QW10: 14786901.37 | QX10: 14525022.66 | QY10: 15334162.95 | QZ10: 13350871.74 | RA10: 13856797.27 | RB10: 15500905.55 | RC10: 14046696.22 | RD10: 12702265.46 | RE10: 14854443.32 | RF10: 14385519.5 | RG10: 17427904.03 | RH10: 10276197.5 | RI10: 15014580.53 | RJ10: 19703204.75 | RK10: 15953161.67 | RL10: 15977997.66 | RM10: 16692132.36 | RN10: 15474918.67 | RO10: 18915805.83 | RP10: 15102972.3 | RQ10: 16146272.24 | RR10: 16678203.67 | RS10: 14495659.61 | RT10: 15439138.53 | RU10: 11280276.7 | RV10: 17940489.23 | RW10: 15538208.12 | RX10: 16252291.68 | RY10: 12657278.18 | RZ10: 15130847.08 | SA10: 15370237.13 | SB10: 17090768.93 | SC10: 14341410.3 | SD10: 14856697.08 | SE10: 15272553.79 | SF10: 15925059.78 | SG10: 12360505.16
B11: 13801849.83 | C11: 16078474.73 | D11: 15797048.43 | E11: 15328703.54 | F11: 18374008.59 | G11: 14314654.64 | H11: 13324028.7 | I11: 15588825.03 | J11: 13432178.87 | K11: 16604040.67 | L11: 13996463.32 | M11: 15691517.98 | N11: 15337075.02 | O11: 16785438.53 | P11: 14596111.64 | Q11: 13546452.58 | R11: 18554961.84 | S11: 15985448.93 | T11: 14892109.83 | U11: 15792350.14 | V11: 13470114.01 | W11: 16945870.88 | X11: 14780189.33 | Y11: 15505727.47 | Z11: 17517696.91 | AA11: 13789485.53 | AB11: 14400920.7 | AC11: 12916411.73 | AD11: 15439710.83 | AE11: 17211141.64 | AF11: 15113602.08 | AG11: 13248942.03 | AH11: 15722589.28 | AI11: 16333678.49 | AJ11: 14879895.35 | AK11: 16899471.47 | AL11: 13854454.8 | AM11: 13334827.23 | AN11: 14124144.04 | AO11: 13242378.51 | AP11: 15196497.97 | AQ11: 15804832.36 | AR11: 12920575.5 | AS11: 20097749.03 | AT11: 16663793.28 | AU11: 16222477.29 | AV11: 16446362.86 | AW11: 16863517.83 | AX11: 14670668.74 | AY11: 14084002.77 | AZ11: 15151423.01 | BA11: 14105991.74 | BB11: 14596777.3 | BC11: 15118065.05 | BD11: 14244986.26 | BE11: 10822833.03 | BF11: 16343245.2 | BG11: 12402661.82 | BH11: 15967656.58 | BI11: 15549540.55 | BJ11: 15212132.89 | BK11: 17727885.39 | BL11: 15005863.97 | BM11: 16172647.54 | BN11: 14140522.39 | BO11: 13928321.77 | BP11: 15998320.7 | BQ11: 10771329.7 | BR11: 17476329.92 | BS11: 10478395.19 | BT11: 15438048.67 | BU11: 17145380.33 | BV11: 10261935.14 | BW11: 16710672.37 | BX11: 15067929.85 | BY11: 17808100.35 | BZ11: 17599613.73 | CA11: 14270983.71 | CB11: 16654987.65 | CC11: 17083539.28 | CD11: 15525904.3 | CE11: 12235383.41 | CF11: 17552825.02 | CG11: 17018241.66 | CH11: 15073106.5 | CI11: 15888929.86 | CJ11: 16252689.82 | CK11: 15372624.49 | CL11: 12542560.74 | CM11: 15282849.75 | CN11: 13568616.11 | CO11: 13392282.31 | CP11: 15535303.35 | CQ11: 17071917.91 | CR11: 12728585.42 | CS11: 13474112.87 | CT11: 14510824.56 | CU11: 14161646.44 | CV11: 18413564.17 | CW11: 15432039.98 | CX11: 13879133.44 | CY11: 18425115.98 | CZ11: 15250735.84 | DA11: 13887909.81 | DB11: 13803246.82 | DC11: 14080847.74 | DD11: 14881760.51 | DE11: 14247233.81 | DF11: 17506779.56 | DG11: 14336038.32 | DH11: 18389391.22 | DI11: 15039271.39 | DJ11: 18293736.84 | DK11: 13168717.14 | DL11: 16749409.3 | DM11: 15721661.05 | DN11: 16174792.84 | DO11: 16666131.28 | DP11: 16246090.62 | DQ11: 14235061.73 | DR11: 14853134.22 | DS11: 16306365.64 | DT11: 13843736.67 | DU11: 14586075.28 | DV11: 18593469.08 | DW11: 15897355.68 | DX11: 14069137.97 | DY11: 13926876.52 | DZ11: 14618982.93 | EA11: 16519443.1 | EB11: 17709367.16 | EC11: 15111051.38 | ED11: 15544114.58 | EE11: 14076013.14 | EF11: 13032657.44 | EG11: 18731579.46 | EH11: 14256241.87 | EI11: 13850826.9 | EJ11: 16385171.4 | EK11: 13113800.67 | EL11: 13390820.96 | EM11: 17382687.28 | EN11: 17119973.1 | EO11: 17765161.22 | EP11: 13540679.37 | EQ11: 11379254.1 | ER11: 11875914.65 | ES11: 14417944.33 | ET11: 17360509.74 | EU11: 15351836.73 | EV11: 17088969.43 | EW11: 17432313.52 | EX11: 14729100.69 | EY11: 15572188.64 | EZ11: 13489507.94 | FA11: 18831657.79 | FB11: 16904320.07 | FC11: 12408923.96 | FD11: 15635646.96 | FE11: 14570535.28 | FF11: 17348218.43 | FG11: 17059727.82 | FH11: 17321096.41 | FI11: 15393673.68 | FJ11: 13696694.51 | FK11: 15964517.39 | FL11: 14696147.62 | FM11: 13481885.25 | FN11: 17112284.75 | FO11: 13946790.03 | FP11: 15235425.17 | FQ11: 14860442.82 | FR11: 12550967.13 | FS11: 18131823.42 | FT11: 16626070.3 | FU11: 12629394.61 | FV11: 16162819.22 | FW11: 14538447.22 | FX11: 10379466.32 | FY11: 13693473.18 | FZ11: 14408827.41 | GA11: 13681244.27 | GB11: 16119154.97 | GC11: 16967848.07 | GD11: 15773284.1 | GE11: 15380118.94 | GF11: 15730344.86 | GG11: 15671710.37 | GH11: 15835712.7 | GI11: 14384991.42 | GJ11: 15778688.7 | GK11: 14767343.99 | GL11: 13759037.1 | GM11: 16440487 | GN11: 14304564.92 | GO11: 13959700.46 | GP11: 14299932.34 | GQ11: 12572582.44 | GR11: 15587303.06 | GS11: 12253555.35 | GT11: 13377878.97 | GU11: 12962331.36 | GV11: 14338167.36 | GW11: 16860854.5 | GX11: 15421715.5 | GY11: 13820643.46 | GZ11: 19728406.8 | HA11: 15455516.17 | HB11: 16945175.23 | HC11: 14207984.72 | HD11: 17276886.11 | HE11: 17119724.22 | HF11: 14626137.84 | HG11: 19328672.39 | HH11: 14186457.07 | HI11: 15888815.86 | HJ11: 14718462.63 | HK11: 16335093.41 | HL11: 15849462.48 | HM11: 13765268.71 | HN11: 14180142 | HO11: 18848363.32 | HP11: 17458985.62 | HQ11: 15486005.73 | HR11: 15054742.65 | HS11: 12406267.14 | HT11: 13276086.06 | HU11: 15222749.98 | HV11: 18903857.43 | HW11: 16231780.33 | HX11: 14926187.54 | HY11: 16276723.69 | HZ11: 16678973.32 | IA11: 16151738.45 | IB11: 17447420.58 | IC11: 17928025.28 | ID11: 14674326.09 | IE11: 15490774.27 | IF11: 14321143.36 | IG11: 14846724.56 | IH11: 16670015.13 | II11: 14110847.55 | IJ11: 13132852.32 | IK11: 13590234.86 | IL11: 15628728.02 | IM11: 14941951.56 | IN11: 14143835.54 | IO11: 13182242.22 | IP11: 14782287.85 | IQ11: 16954500.83 | IR11: 15703248 | IS11: 14401079.14 | IT11: 13460882.97 | IU11: 15467770.19 | IV11: 14427460.64 | IW11: 19125646.03 | IX11: 15669605.96 | IY11: 15581922.68 | IZ11: 14695655.47 | JA11: 13757354.81 | JB11: 15655886.95 | JC11: 15264324.35 | JD11: 11611214.69 | JE11: 18587130.04 | JF11: 14902853.07 | JG11: 15890493.66 | JH11: 11960513.48 | JI11: 15089013.47 | JJ11: 11738843.65 | JK11: 15753529.23 | JL11: 11940301.24 | JM11: 13162885.13 | JN11: 17697478.69 | JO11: 16459723.98 | JP11: 13488940.87 | JQ11: 15126162.8 | JR11: 14767989.07 | JS11: 15634941.94 | JT11: 14945671.17 | JU11: 18273604 | JV11: 16505285.82 | JW11: 16233614.73 | JX11: 16005458.19 | JY11: 12580769.35 | JZ11: 17049610.11 | KA11: 16334114.46 | KB11: 16769432.47 | KC11: 16264445.62 | KD11: 14860491.5 | KE11: 16378468.69 | KF11: 16816218.57 | KG11: 16568932.89 | KH11: 14155990.57 | KI11: 14811415.34 | KJ11: 15149212.95 | KK11: 15164203.39 | KL11: 13517879.86 | KM11: 14418268.6 | KN11: 14469652.03 | KO11: 13505652.85 | KP11: 15185551.6 | KQ11: 14598652.04 | KR11: 15465509.66 | KS11: 10177105.97 | KT11: 13873800.14 | KU11: 14529947.76 | KV11: 14443287.48 | KW11: 16332038.9 | KX11: 11713411.18 | KY11: 14734406.17 | KZ11: 11971258.31 | LA11: 16188744.26 | LB11: 15173435.32 | LC11: 14740584.12 | LD11: 14722355.13 | LE11: 17567102.62 | LF11: 18079781.12 | LG11: 15560264.76 | LH11: 14209005.2 | LI11: 15236260.97 | LJ11: 12666613.14 | LK11: 19070753.51 | LL11: 14789053.57 | LM11: 15747619.62 | LN11: 14535800.87 | LO11: 14238003.92 | LP11: 15650405.13 | LQ11: 15310792.12 | LR11: 13016434.03 | LS11: 12992452.02 | LT11: 12576711.84 | LU11: 14597835.89 | LV11: 15570903.03 | LW11: 16554029.96 | LX11: 18458642.39 | LY11: 16436159.56 | LZ11: 17076053.82 | MA11: 14224275.16 | MB11: 15521279.02 | MC11: 13363493.32 | MD11: 14459775.28 | ME11: 13369229.13 | MF11: 14418349.48 | MG11: 14950117.22 | MH11: 16595430.66 | MI11: 12959711.03 | MJ11: 15328130.2 | MK11: 16139127.97 | ML11: 13301303.46 | MM11: 19904621.8 | MN11: 14902313.06 | MO11: 11642278.94 | MP11: 12068745.53 | MQ11: 15303783.01 | MR11: 15836402.82 | MS11: 13723860.99 | MT11: 15409937.19 | MU11: 12218618.18 | MV11: 15317940.06 | MW11: 14444423.42 | MX11: 16605284.35 | MY11: 13253924.17 | MZ11: 14920384.72 | NA11: 16657509.51 | NB11: 16897504.55 | NC11: 13573550.06 | ND11: 14197344.33 | NE11: 14589243.67 | NF11: 13304373.57 | NG11: 14879009.45 | NH11: 11428034.06 | NI11: 15103633.68 | NJ11: 12780458.84 | NK11: 18722016.42 | NL11: 14200504.47 | NM11: 15692579.49 | NN11: 11872211.27 | NO11: 15450337.41 | NP11: 17024684.66 | NQ11: 14605809.75 | NR11: 17271456.47 | NS11: 15486311.51 | NT11: 14385261.86 | NU11: 11747165.16 | NV11: 17462045.39 | NW11: 16034922.03 | NX11: 13929451.32 | NY11: 13744517.72 | NZ11: 14737738.96 | OA11: 15279767 | OB11: 13486951.73 | OC11: 15279198.33 | OD11: 12213188.97 | OE11: 15008090.23 | OF11: 16919091.81 | OG11: 14991007.19 | OH11: 16527240.57 | OI11: 15979507.84 | OJ11: 12819726.96 | OK11: 15958296.06 | OL11: 17747721.26 | OM11: 15921781.81 | ON11: 15586485.58 | OO11: 16788911.21 | OP11: 20012233.42 | OQ11: 14343052.05 | OR11: 17053857.43 | OS11: 16463880.54 | OT11: 17057196.02 | OU11: 15864533.2 | OV11: 16131889.07 | OW11: 16843724.77 | OX11: 17072307.87 | OY11: 12757302.06 | OZ11: 15267188.54 | PA11: 18297766.31 | PB11: 15320458.51 | PC11: 15939229.23 | PD11: 14728921.14 | PE11: 15853623.23 | PF11: 16790364.22 | PG11: 14001160.25 | PH11: 11229295.08 | PI11: 16317868.49 | PJ11: 14330257.69 | PK11: 14804460.26 | PL11: 15338991.32 | PM11: 14698042.02 | PN11: 16586258.31 | PO11: 13644064.88 | PP11: 14426075.69 | PQ11: 16713245.39 | PR11: 13950810.8 | PS11: 14612513.3 | PT11: 15427076.02 | PU11: 17347292.57 | PV11: 14503247.31 | PW11: 18003712.16 | PX11: 21149467.37 | PY11: 16810849.26 | PZ11: 13765728.71 | QA11: 15137712.66 | QB11: 16383570.34 | QC11: 14243518.21 | QD11: 18013653.73 | QE11: 12902200.51 | QF11: 19734794.14 | QG11: 12693420.88 | QH11: 16237832.82 | QI11: 14576909.86 | QJ11: 13321539.18 | QK11: 17188033.9 | QL11: 15807528.38 | QM11: 15364160.74 | QN11: 15143881.77 | QO11: 12720547.42 | QP11: 14986390.3 | QQ11: 14646152.4 | QR11: 17870956.81 | QS11: 17875032.72 | QT11: 15080777.78 | QU11: 13748271.92 | QV11: 16225496.57 | QW11: 14338429.51 | QX11: 15174019.84 | QY11: 13834635.81 | QZ11: 16219596.13 | RA11: 16178133.53 | RB11: 16423336.43 | RC11: 15464741.27 | RD11: 10709892.29 | RE11: 15342775 | RF11: 18222451.21 | RG11: 12510126 | RH11: 9428437.033 | RI11: 15902673.76 | RJ11: 14647161.83 | RK11: 18352480.23 | RL11: 13720370.3 | RM11: 15579755.82 | RN11: 13446107.93 | RO11: 16086166.76 | RP11: 10317036.18 | RQ11: 18383306.55 | RR11: 19727352.85 | RS11: 13426427.41 | RT11: 15135159.74 | RU11: 13720965.7 | RV11: 14192684.67 | RW11: 18869410.49 | RX11: 12196937.53 | RY11: 15280874.07 | RZ11: 13526399.75 | SA11: 13290842.52 | SB11: 10514298.63 | SC11: 15504669.02 | SD11: 16108487.04 | SE11: 15694560.45 | SF11: 16098251.18 | SG11: 18224581.26
B12: 17870671.33 | C12: 14244045.95 | D12: 16925482.62 | E12: 14986619.66 | F12: 18786626.63 | G12: 11581688.05 | H12: 15344131.55 | I12: 16322580.4 | J12: 13762161.13 | K12: 14197382.64 | L12: 18507691.52 | M12: 12452412.21 | N12: 15830997.9 | O12: 15135960.53 | P12: 19836053.87 | Q12: 14392339.63 | R12: 12196972.96 | S12: 14039165.82 | T12: 15131774.49 | U12: 14836984.89 | V12: 16437977.58 | W12: 18467775.4 | X12: 13218751.26 | Y12: 11499848.91 | Z12: 15207727.86 | AA12: 13582604.07 | AB12: 16791048.8 | AC12: 11901054.81 | AD12: 15016202.93 | AE12: 12914489.16 | AF12: 14345448.87 | AG12: 13119312.1 | AH12: 15910794.84 | AI12: 11629488.81 | AJ12: 13233783.82 | AK12: 14960461.04 | AL12: 17244830.99 | AM12: 11388552.79 | AN12: 18729011.8 | AO12: 14881313.53 | AP12: 13165999.11 | AQ12: 14496276.43 | AR12: 16173628.62 | AS12: 14456798.98 | AT12: 15794348.86 | AU12: 18069550.19 | AV12: 12917644.48 | AW12: 12183420.62 | AX12: 15350731.61 | AY12: 15925156.31 | AZ12: 17264432.06 | BA12: 16673401.84 | BB12: 21436702.11 | BC12: 13513231.67 | BD12: 14523385.06 | BE12: 15498463.25 | BF12: 16101730.29 | BG12: 18804316.14 | BH12: 15257612.68 | BI12: 15771136.5 | BJ12: 14548244.16 | BK12: 13405704.54 | BL12: 12383511.34 | BM12: 14765616.35 | BN12: 11523675.39 | BO12: 11992236.45 | BP12: 13924259.65 | BQ12: 12991042.9 | BR12: 16489814.69 | BS12: 14810948.44 | BT12: 17024986.93 | BU12: 15404028.06 | BV12: 14969514.77 | BW12: 15883556.5 | BX12: 15132225.19 | BY12: 16077012.24 | BZ12: 16702172.78 | CA12: 14980650.76 | CB12: 13614878.27 | CC12: 16584557.09 | CD12: 14058117.82 | CE12: 16671208.2 | CF12: 14807390.59 | CG12: 14972780.07 | CH12: 15220956.67 | CI12: 15360799.74 | CJ12: 14227943.76 | CK12: 13228661.54 | CL12: 16309522.44 | CM12: 17925548.37 | CN12: 17645100.31 | CO12: 13432875.13 | CP12: 17295312.08 | CQ12: 14222597.11 | CR12: 11900311.55 | CS12: 13018408.57 | CT12: 16507114.29 | CU12: 14449805.53 | CV12: 12346381.58 | CW12: 15833622.68 | CX12: 18076417.98 | CY12: 12703055.06 | CZ12: 15340984.93 | DA12: 15976692.33 | DB12: 16975024.75 | DC12: 18193323.19 | DD12: 15340228.02 | DE12: 13674970.16 | DF12: 15816179.9 | DG12: 17118429.62 | DH12: 17246111.96 | DI12: 16222998.4 | DJ12: 14074969.9 | DK12: 14262558.69 | DL12: 16654627.06 | DM12: 13214995.67 | DN12: 12880861.31 | DO12: 14015269.34 | DP12: 18864666.67 | DQ12: 16483640.19 | DR12: 16491929.91 | DS12: 13288661.02 | DT12: 16919800.45 | DU12: 14305533.2 | DV12: 17789918.53 | DW12: 13467645.39 | DX12: 14825829.27 | DY12: 18786992.45 | DZ12: 14008160.03 | EA12: 13072078.09 | EB12: 12704227.36 | EC12: 15628155.33 | ED12: 11132611.47 | EE12: 15442340.77 | EF12: 17095296.04 | EG12: 12198522.86 | EH12: 14136949.71 | EI12: 15199964.9 | EJ12: 15651851.21 | EK12: 14251721.02 | EL12: 14838803.56 | EM12: 15776034.36 | EN12: 12776812.86 | EO12: 15138098.79 | EP12: 16352843.67 | EQ12: 15147991.75 | ER12: 12988116.2 | ES12: 18625926.41 | ET12: 13859656.86 | EU12: 12524830.42 | EV12: 16534924.53 | EW12: 17031192.76 | EX12: 13832948.37 | EY12: 14752823.35 | EZ12: 17811902.4 | FA12: 16733975.36 | FB12: 11657508.46 | FC12: 16653599.87 | FD12: 13973321.27 | FE12: 13561759.98 | FF12: 14683871.19 | FG12: 12338845.52 | FH12: 14477168.2 | FI12: 14608445.11 | FJ12: 18145098.44 | FK12: 15571285.3 | FL12: 17005777.75 | FM12: 13147769.39 | FN12: 16235853.32 | FO12: 17610819.14 | FP12: 14721843.81 | FQ12: 13055477.33 | FR12: 13721785.22 | FS12: 12940221.02 | FT12: 13581251.15 | FU12: 15819882.29 | FV12: 17871266.69 | FW12: 17430941.63 | FX12: 10178776.63 | FY12: 17428862.05 | FZ12: 14394920.27 | GA12: 15511076.83 | GB12: 14986069.66 | GC12: 19456233.45 | GD12: 16120481.71 | GE12: 13359298.7 | GF12: 16947992.17 | GG12: 19202951.05 | GH12: 12800635.57 | GI12: 16586060.14 | GJ12: 13671440.64 | GK12: 16622495.64 | GL12: 13963445.05 | GM12: 18056371.74 | GN12: 17775197.26 | GO12: 13650030.51 | GP12: 11865729.81 | GQ12: 13928439.19 | GR12: 16681948.77 | GS12: 13561810.52 | GT12: 16815758.58 | GU12: 15530626.66 | GV12: 12563913.84 | GW12: 14141432.41 | GX12: 16646694.84 | GY12: 13840410.85 | GZ12: 15070161.48 | HA12: 15989127.32 | HB12: 14804096.99 | HC12: 13087742.37 | HD12: 15333126.02 | HE12: 12397197.12 | HF12: 16390377.18 | HG12: 14621693.48 | HH12: 16226703.92 | HI12: 17026282.08 | HJ12: 17603400.17 | HK12: 14570760.96 | HL12: 15955459.09 | HM12: 14980315.2 | HN12: 15798778.95 | HO12: 12284650.96 | HP12: 12963153.44 | HQ12: 13183364.53 | HR12: 16880198.6 | HS12: 16162558.91 | HT12: 15681299.88 | HU12: 17458719.17 | HV12: 13396235.94 | HW12: 13627119 | HX12: 20248155.55 | HY12: 15187212.79 | HZ12: 16386691.68 | IA12: 13037366.21 | IB12: 13648112.19 | IC12: 14875209.97 | ID12: 16673439.95 | IE12: 13224171.91 | IF12: 14514349.95 | IG12: 15521621.07 | IH12: 13744642.3 | II12: 15434945.07 | IJ12: 14532851.59 | IK12: 15476526.68 | IL12: 16438903.19 | IM12: 14711378.93 | IN12: 12344606.91 | IO12: 15222550.5 | IP12: 17278116.55 | IQ12: 13081599.61 | IR12: 16189113.74 | IS12: 14220197.36 | IT12: 16833226.6 | IU12: 13996151.94 | IV12: 14770506.16 | IW12: 15713413.55 | IX12: 14243352.99 | IY12: 15332211.77 | IZ12: 13717545.49 | JA12: 13638339.36 | JB12: 16867514.31 | JC12: 14722540.96 | JD12: 14191648.27 | JE12: 14953885.27 | JF12: 11966662.78 | JG12: 12889455.9 | JH12: 17318226.13 | JI12: 16715265.55 | JJ12: 16994862.53 | JK12: 17874842.73 | JL12: 16919774.64 | JM12: 15959440.48 | JN12: 17497242.5 | JO12: 15346290.38 | JP12: 13660493.13 | JQ12: 14750802.55 | JR12: 16566911.88 | JS12: 14509851.4 | JT12: 14534381.9 | JU12: 13401660.09 | JV12: 14029177.73 | JW12: 11983701.12 | JX12: 16548810.68 | JY12: 15130805.56 | JZ12: 15248163.74 | KA12: 13582065.95 | KB12: 12096553.99 | KC12: 12386425.07 | KD12: 15475415.42 | KE12: 10450159.3 | KF12: 15058951.04 | KG12: 16837214.36 | KH12: 18301448.78 | KI12: 15019441.35 | KJ12: 16355855.95 | KK12: 14767957.64 | KL12: 14018526.62 | KM12: 15302450.28 | KN12: 13213327.4 | KO12: 14566749.68 | KP12: 14332663.07 | KQ12: 12698697.49 | KR12: 13281157.43 | KS12: 17932162.31 | KT12: 13752855.52 | KU12: 15170834.7 | KV12: 15281476.02 | KW12: 13287948.42 | KX12: 13049882.24 | KY12: 17799313.74 | KZ12: 14381385.37 | LA12: 12623247.8 | LB12: 12919086.6 | LC12: 15350164.65 | LD12: 16690719.39 | LE12: 18843412.66 | LF12: 16111990.79 | LG12: 12567511.19 | LH12: 15647942.76 | LI12: 16232116.48 | LJ12: 15813761.5 | LK12: 16888796.1 | LL12: 16150009.04 | LM12: 16138590.95 | LN12: 13195208.14 | LO12: 17228165.62 | LP12: 13692125.73 | LQ12: 11921449.33 | LR12: 12597834.14 | LS12: 16632473.11 | LT12: 17943796.4 | LU12: 13357293.16 | LV12: 14724932.34 | LW12: 17159302.55 | LX12: 11602693.25 | LY12: 21271152.79 | LZ12: 17794037.19 | MA12: 15560410.58 | MB12: 13499804.58 | MC12: 13666568.49 | MD12: 13126616.17 | ME12: 14257725.75 | MF12: 15792660.94 | MG12: 15950905.67 | MH12: 15057250.6 | MI12: 14645504.55 | MJ12: 17462953.37 | MK12: 10126203.79 | ML12: 16793348.98 | MM12: 15657676.11 | MN12: 10448378.93 | MO12: 15185029.73 | MP12: 15156907.78 | MQ12: 17413672.69 | MR12: 15719029.04 | MS12: 14644491.44 | MT12: 15364441.31 | MU12: 13345943.56 | MV12: 15204481.45 | MW12: 6787097.785 | MX12: 17014029.99 | MY12: 14759865.1 | MZ12: 15809448.42 | NA12: 11494914.31 | NB12: 14538714.15 | NC12: 13601632.48 | ND12: 12729900.8 | NE12: 15049326.43 | NF12: 16040248.45 | NG12: 11847474.08 | NH12: 11757158 | NI12: 18963606.08 | NJ12: 14766632.83 | NK12: 18260546.61 | NL12: 14129967.7 | NM12: 14595409.53 | NN12: 12678962.67 | NO12: 13379604.26 | NP12: 16495099.22 | NQ12: 15668797.85 | NR12: 14534136.07 | NS12: 14992165.47 | NT12: 14506254.09 | NU12: 14198405.12 | NV12: 14389001.21 | NW12: 14994724.27 | NX12: 17269402.3 | NY12: 14741077.61 | NZ12: 10187354.56 | OA12: 12631984.52 | OB12: 13370690.86 | OC12: 15439518.72 | OD12: 15428732.07 | OE12: 14553325.57 | OF12: 17259968.39 | OG12: 14077640.47 | OH12: 18317846.21 | OI12: 15157497.62 | OJ12: 13344367.02 | OK12: 13276866.26 | OL12: 20422448.35 | OM12: 16849083.5 | ON12: 18545791.38 | OO12: 16398946.41 | OP12: 14964989.12 | OQ12: 15973147.95 | OR12: 13164558.88 | OS12: 16045051.81 | OT12: 13622277.13 | OU12: 13294789.72 | OV12: 13883512.18 | OW12: 12607295.94 | OX12: 16313800.57 | OY12: 15942145.26 | OZ12: 16253503.84 | PA12: 17960748.95 | PB12: 15901869.3 | PC12: 18027273.29 | PD12: 12900029.24 | PE12: 15189971.92 | PF12: 14288542.71 | PG12: 12966102.22 | PH12: 16443422.99 | PI12: 15957204.22 | PJ12: 13271049.01 | PK12: 14965863.13 | PL12: 15679230.22 | PM12: 13224119.72 | PN12: 15310596.32 | PO12: 18499292.75 | PP12: 13086658.1 | PQ12: 14537003.14 | PR12: 15038624.41 | PS12: 14733665.9 | PT12: 13589757.98 | PU12: 17295156.64 | PV12: 20227018.62 | PW12: 14451451.34 | PX12: 14000968.77 | PY12: 16779443.6 | PZ12: 16395234.13 | QA12: 13062229.25 | QB12: 13349671.17 | QC12: 17218917.75 | QD12: 15237035.17 | QE12: 15992418.02 | QF12: 18398564.11 | QG12: 15306790.14 | QH12: 15494128.4 | QI12: 14786224.51 | QJ12: 12671805.11 | QK12: 12551250.71 | QL12: 16596932.62 | QM12: 11688749.84 | QN12: 14510688.14 | QO12: 11590616.56 | QP12: 17133941.1 | QQ12: 13689880.33 | QR12: 15443727.29 | QS12: 13968499.64 | QT12: 13516305.61 | QU12: 13508246.69 | QV12: 14077484.1 | QW12: 20120384.61 | QX12: 12750493.66 | QY12: 15188197.06 | QZ12: 14247665.51 | RA12: 14645729.97 | RB12: 15740877.67 | RC12: 17207352.02 | RD12: 13966394.15 | RE12: 16862654.53 | RF12: 15843965.72 | RG12: 15297146.36 | RH12: 15824515.66 | RI12: 14119456.79 | RJ12: 13676456.08 | RK12: 16320823.69 | RL12: 12485184.38 | RM12: 15561641.82 | RN12: 13564489.81 | RO12: 16033364.27 | RP12: 16396153.34 | RQ12: 13608383.47 | RR12: 14518304.77 | RS12: 12212292.37 | RT12: 13605105.2 | RU12: 15195920.1 | RV12: 14697400.23 | RW12: 18210380.93 | RX12: 17430567.3 | RY12: 17542475.92 | RZ12: 16048843.38 | SA12: 14056921.82 | SB12: 17957970.07 | SC12: 17462264.02 | SD12: 15141200.75 | SE12: 13655796.61 | SF12: 17611689.89 | SG12: 12350596.77
B13: 15653471.34 | C13: 15202558.79 | D13: 15433500.92 | E13: 16177784.26 | F13: 14332513.57 | G13: 14198282.69 | H13: 16219782.35 | I13: 15860746.39 | J13: 14377286.59 | K13: 15376228.61 | L13: 14282449.07 | M13: 16495942.57 | N13: 15164545.74 | O13: 15196921.33 | P13: 18223799.09 | Q13: 14642344.4 | R13: 11492616.28 | S13: 18952909.78 | T13: 18000193.1 | U13: 12559825.36 | V13: 17122035.26 | W13: 16415500.89 | X13: 12034197.26 | Y13: 17724870.24 | Z13: 13676019.96 | AA13: 16970352.1 | AB13: 15870087.56 | AC13: 15273958.28 | AD13: 13807200.51 | AE13: 11513473.85 | AF13: 18113217.32 | AG13: 15795882.89 | AH13: 12986781.01 | AI13: 17385028.84 | AJ13: 14094557.55 | AK13: 17495227.21 | AL13: 16009473.74 | AM13: 14229406.21 | AN13: 16797685.27 | AO13: 13865205.58 | AP13: 15992107.43 | AQ13: 17031653.03 | AR13: 11527713.48 | AS13: 14777315.97 | AT13: 16597551.08 | AU13: 17111922.81 | AV13: 14415111.76 | AW13: 13811650.61 | AX13: 16425269.24 | AY13: 16778952.07 | AZ13: 16579649.1 | BA13: 18301142.55 | BB13: 17998180.52 | BC13: 18954118.34 | BD13: 11646653.63 | BE13: 10282926.18 | BF13: 15602415.35 | BG13: 13433270 | BH13: 18794329.51 | BI13: 14823539.6 | BJ13: 15358799.24 | BK13: 13078118.74 | BL13: 15829427.61 | BM13: 15536088.1 | BN13: 16480119.44 | BO13: 15791468.21 | BP13: 13557517.59 | BQ13: 12796573.46 | BR13: 18112884.78 | BS13: 13387864.11 | BT13: 14271455.24 | BU13: 17665137.41 | BV13: 15344820.47 | BW13: 16592395.83 | BX13: 13031915.65 | BY13: 14109904.8 | BZ13: 17218498.17 | CA13: 12084193.16 | CB13: 13680793.89 | CC13: 15583007.34 | CD13: 15021983.7 | CE13: 13391673.75 | CF13: 11604703.52 | CG13: 16822938.19 | CH13: 14290728.78 | CI13: 14270448.23 | CJ13: 14476236.52 | CK13: 15678703.52 | CL13: 16070710.99 | CM13: 13989249.78 | CN13: 15994542.88 | CO13: 18084726.98 | CP13: 15668530.46 | CQ13: 15152213.32 | CR13: 14736431.77 | CS13: 14889729.81 | CT13: 16869868.9 | CU13: 12332658.46 | CV13: 15058174 | CW13: 15660516.09 | CX13: 15132258.93 | CY13: 18974750.97 | CZ13: 17113415.12 | DA13: 15784331.34 | DB13: 14033162.11 | DC13: 15034637.54 | DD13: 16666192.73 | DE13: 16741505.33 | DF13: 13464421.24 | DG13: 14028409.57 | DH13: 15640756.59 | DI13: 16624696.14 | DJ13: 14370711.24 | DK13: 17602501.32 | DL13: 14895196.95 | DM13: 15007452.77 | DN13: 19732182.64 | DO13: 14179273.51 | DP13: 12712348.33 | DQ13: 14956519.31 | DR13: 19167370.86 | DS13: 15876629.59 | DT13: 16920147.62 | DU13: 16149616.99 | DV13: 14236937.16 | DW13: 16084433.93 | DX13: 19038792.43 | DY13: 15710112.7 | DZ13: 16763795.67 | EA13: 12995724.14 | EB13: 14205816.42 | EC13: 16112307.7 | ED13: 15893495.56 | EE13: 15517121.41 | EF13: 14010188.28 | EG13: 16898244.12 | EH13: 17458673.1 | EI13: 18918727.63 | EJ13: 12242266.37 | EK13: 18237648.3 | EL13: 16501434.57 | EM13: 16353376.16 | EN13: 17483574.36 | EO13: 16132625.74 | EP13: 14383094.67 | EQ13: 18077725.34 | ER13: 14871923.28 | ES13: 16405126.85 | ET13: 18019776.91 | EU13: 15121148.33 | EV13: 12394373.48 | EW13: 12124995.11 | EX13: 15459999.1 | EY13: 18511986.72 | EZ13: 16867372.55 | FA13: 13554278.04 | FB13: 15923804.83 | FC13: 11140686.59 | FD13: 13886774.78 | FE13: 13638335.24 | FF13: 15792154.76 | FG13: 12568517.01 | FH13: 15920226.77 | FI13: 16401471.95 | FJ13: 14654857.66 | FK13: 18090410.76 | FL13: 14052440.06 | FM13: 14169058.33 | FN13: 14995885.95 | FO13: 15122149.75 | FP13: 13778638.39 | FQ13: 17694881.05 | FR13: 14483261.87 | FS13: 18837188.95 | FT13: 13411110.28 | FU13: 11263580.7 | FV13: 15406730.17 | FW13: 15242383.13 | FX13: 15774749.08 | FY13: 13072541.27 | FZ13: 13148353.63 | GA13: 14502047.37 | GB13: 14852750.64 | GC13: 15216737.63 | GD13: 15020790.79 | GE13: 15059511.11 | GF13: 12670673.86 | GG13: 16040624.67 | GH13: 12770985.94 | GI13: 15773255.31 | GJ13: 13835213.57 | GK13: 14759696.93 | GL13: 14799326.01 | GM13: 18574559.37 | GN13: 17491566.72 | GO13: 16829071.54 | GP13: 15504079.54 | GQ13: 14545686.73 | GR13: 14144641.53 | GS13: 15730670.28 | GT13: 11572180.61 | GU13: 14921795.38 | GV13: 15187019.95 | GW13: 16120043.31 | GX13: 16826780.22 | GY13: 17083108.95 | GZ13: 15431854.74 | HA13: 16699842.4 | HB13: 16309938.25 | HC13: 13601531.51 | HD13: 14331078.1 | HE13: 14573970.76 | HF13: 16503335.03 | HG13: 15104252.39 | HH13: 14453192.9 | HI13: 15027004.35 | HJ13: 18479977.14 | HK13: 12980313.78 | HL13: 17442775.92 | HM13: 17659361.05 | HN13: 15431954.94 | HO13: 12699944.06 | HP13: 15225711.67 | HQ13: 11163756.12 | HR13: 13647677.23 | HS13: 15096629.46 | HT13: 16259542.13 | HU13: 16073985.7 | HV13: 13901383.87 | HW13: 17981970.65 | HX13: 16510560.49 | HY13: 16958761.27 | HZ13: 15797963.33 | IA13: 11507097.98 | IB13: 16683050.43 | IC13: 14308157.84 | ID13: 12295201.23 | IE13: 9711963.733 | IF13: 17508837.68 | IG13: 15195170.7 | IH13: 17449188.24 | II13: 14279072.67 | IJ13: 13948602.46 | IK13: 15362944.13 | IL13: 17415656.71 | IM13: 13056216.58 | IN13: 16215104.63 | IO13: 13607528.86 | IP13: 14030980.43 | IQ13: 14376381.15 | IR13: 13729138.35 | IS13: 10720210.01 | IT13: 16734983.93 | IU13: 15912152.46 | IV13: 15663920.73 | IW13: 14167574.03 | IX13: 13734735.5 | IY13: 16791719.19 | IZ13: 13805190.68 | JA13: 12235600.03 | JB13: 14749588.16 | JC13: 11743870.99 | JD13: 15826885.38 | JE13: 14508794.34 | JF13: 15625189.36 | JG13: 13605690.33 | JH13: 16408023.11 | JI13: 15466364.6 | JJ13: 19255544.76 | JK13: 16843910.13 | JL13: 15304723.86 | JM13: 14672289.54 | JN13: 13789482.97 | JO13: 16934817.19 | JP13: 12846754.55 | JQ13: 15899362.01 | JR13: 15923311.49 | JS13: 15432779.16 | JT13: 14808497.89 | JU13: 18031598.61 | JV13: 17535075.71 | JW13: 16686552.81 | JX13: 16515529.13 | JY13: 13894024.68 | JZ13: 15816762.27 | KA13: 13971381.92 | KB13: 14595311.36 | KC13: 15065417.74 | KD13: 13538858.9 | KE13: 18685637.22 | KF13: 17986743.52 | KG13: 16285737.1 | KH13: 16923626.88 | KI13: 14009623.02 | KJ13: 15984700.06 | KK13: 19320057.66 | KL13: 14522607.72 | KM13: 14961666.63 | KN13: 13020955.71 | KO13: 16414280.91 | KP13: 15169008.54 | KQ13: 13621876.13 | KR13: 14323586.54 | KS13: 13986260.69 | KT13: 14333660.91 | KU13: 19649497.54 | KV13: 17642399.24 | KW13: 15134402.5 | KX13: 15339752.08 | KY13: 16390532.8 | KZ13: 15271983.59 | LA13: 10513515.64 | LB13: 17162667.66 | LC13: 15912668.71 | LD13: 14818398.29 | LE13: 14304292.73 | LF13: 20841052.69 | LG13: 13590363.68 | LH13: 16936047.52 | LI13: 15135372.94 | LJ13: 12104910.07 | LK13: 16208813.54 | LL13: 15317800.26 | LM13: 12471397.72 | LN13: 11629499.94 | LO13: 13517745.94 | LP13: 18423257.57 | LQ13: 16117327.29 | LR13: 12184651.71 | LS13: 14118475.71 | LT13: 15076119.31 | LU13: 13351792.88 | LV13: 19077919.71 | LW13: 12940461.4 | LX13: 13928156.01 | LY13: 17346361.96 | LZ13: 15949100.68 | MA13: 17956747.49 | MB13: 17321491.56 | MC13: 13805826.03 | MD13: 17736373.45 | ME13: 15457842.91 | MF13: 17368348.64 | MG13: 11685195.17 | MH13: 16262663.46 | MI13: 15225718.35 | MJ13: 14313512.74 | MK13: 12576649.93 | ML13: 14625502.19 | MM13: 16001568.32 | MN13: 14754267.31 | MO13: 16003900.79 | MP13: 11705042.23 | MQ13: 15366895.33 | MR13: 16831044.96 | MS13: 16088612.55 | MT13: 13959390.98 | MU13: 17350196.35 | MV13: 15036271.67 | MW13: 14053711.36 | MX13: 11874102.41 | MY13: 17270143.4 | MZ13: 16229660.69 | NA13: 16420441.5 | NB13: 16200089.28 | NC13: 13587326.51 | ND13: 20589203.63 | NE13: 15724112.25 | NF13: 13610055.24 | NG13: 12689971.84 | NH13: 13722473.28 | NI13: 18241623.4 | NJ13: 15508171.73 | NK13: 15704200.3 | NL13: 15536490.98 | NM13: 14402186.76 | NN13: 17340772.48 | NO13: 13378096.65 | NP13: 17674775.29 | NQ13: 15003697.69 | NR13: 10341759.52 | NS13: 15590358.64 | NT13: 13378974.18 | NU13: 14971987.51 | NV13: 12802128.46 | NW13: 13485015.79 | NX13: 12314422.68 | NY13: 15576214.48 | NZ13: 10974924.94 | OA13: 14083949.89 | OB13: 14911011.25 | OC13: 13082732.64 | OD13: 14423566.19 | OE13: 17040376.01 | OF13: 16174126.31 | OG13: 14336531.29 | OH13: 17995911.33 | OI13: 18718655.53 | OJ13: 13515209.76 | OK13: 14930153.2 | OL13: 13868614.11 | OM13: 15193170.96 | ON13: 16886579.92 | OO13: 15629831.83 | OP13: 12856290.04 | OQ13: 15407721.17 | OR13: 16412597.85 | OS13: 13513700.75 | OT13: 15482383.79 | OU13: 16209803.73 | OV13: 16914999.18 | OW13: 14138577.41 | OX13: 15941746.22 | OY13: 17768846.08 | OZ13: 17826784.61 | PA13: 16556090.55 | PB13: 16416998.45 | PC13: 15347355.89 | PD13: 16670633.55 | PE13: 14043885.69 | PF13: 10512954.42 | PG13: 15313090.88 | PH13: 15728979.72 | PI13: 15032083.5 | PJ13: 16778373.36 | PK13: 13666271.51 | PL13: 17870259.7 | PM13: 12558003.1 | PN13: 14648981.9 | PO13: 17239799.34 | PP13: 19648023.86 | PQ13: 17703502.41 | PR13: 14929183.35 | PS13: 15560633.19 | PT13: 16534581.26 | PU13: 12539548.62 | PV13: 13002840.97 | PW13: 13446243.61 | PX13: 14718390.56 | PY13: 13334612.67 | PZ13: 14894130.31 | QA13: 15548895.66 | QB13: 10346907.58 | QC13: 15499671.19 | QD13: 16331804.85 | QE13: 15305067.05 | QF13: 14898694.29 | QG13: 12211395.46 | QH13: 13949881.97 | QI13: 15064911.98 | QJ13: 16273296.37 | QK13: 13603589.1 | QL13: 17065393.76 | QM13: 16750500.07 | QN13: 21014075.07 | QO13: 14702911.18 | QP13: 15868776.37 | QQ13: 16865282.21 | QR13: 12780895.9 | QS13: 13874764.49 | QT13: 16625780.54 | QU13: 17354233.98 | QV13: 16085129.78 | QW13: 16379988.2 | QX13: 18687478.77 | QY13: 17258451.73 | QZ13: 15558346.43 | RA13: 14801123.57 | RB13: 17123517.77 | RC13: 14990534.23 | RD13: 14700498.17 | RE13: 12294877.64 | RF13: 15113106.88 | RG13: 14852433.05 | RH13: 15048412.94 | RI13: 14257401.5 | RJ13: 12556560.6 | RK13: 17455311.62 | RL13: 16162317.6 | RM13: 12894266.16 | RN13: 16344510.5 | RO13: 14477494.23 | RP13: 15996585.82 | RQ13: 18480559.19 | RR13: 14894737.31 | RS13: 15004586.44 | RT13: 11725359.46 | RU13: 15369298.26 | RV13: 19668490.13 | RW13: 18866896.84 | RX13: 11931066.58 | RY13: 14167843 | RZ13: 14488197.52 | SA13: 14813110.95 | SB13: 13471835.85 | SC13: 16084223.61 | SD13: 18098907.76 | SE13: 14577262.97 | SF13: 15634191.43 | SG13: 17727379.99
B14: 17754549.42 | C14: 17691216.25 | D14: 12420154.03 | E14: 15289466.96 | F14: 18410086.8 | G14: 15482003.3 | H14: 16472785.47 | I14: 17271433.86 | J14: 16034385.23 | K14: 19812409.74 | L14: 18957443.82 | M14: 15053359.41 | N14: 14073276.6 | O14: 15752246.56 | P14: 12399423 | Q14: 16409070.43 | R14: 15890630.23 | S14: 14135971.39 | T14: 18911785.17 | U14: 14543761.75 | V14: 12017163.7 | W14: 17169768.28 | X14: 17141819.78 | Y14: 15776907.89 | Z14: 15401843.69 | AA14: 16674303.13 | AB14: 18061239.98 | AC14: 15191512.2 | AD14: 13444557.97 | AE14: 17098555.93 | AF14: 17354447.99 | AG14: 16480640.82 | AH14: 16799186.41 | AI14: 17705632.81 | AJ14: 13045855.91 | AK14: 15334538.28 | AL14: 12012508.33 | AM14: 14463818.71 | AN14: 14906144.69 | AO14: 13719971.25 | AP14: 19150009.09 | AQ14: 16449831.06 | AR14: 13194453.07 | AS14: 14641217.63 | AT14: 12267398.8 | AU14: 13899111.33 | AV14: 16324648.17 | AW14: 15662222.9 | AX14: 12565071.12 | AY14: 16234561.08 | AZ14: 15196889.74 | BA14: 12508915.32 | BB14: 16883842.33 | BC14: 13895091.32 | BD14: 16342806.65 | BE14: 17807731.47 | BF14: 15877389.17 | BG14: 16697414.21 | BH14: 14689930.19 | BI14: 9931794.37 | BJ14: 16187043.14 | BK14: 15386905.93 | BL14: 12968274.86 | BM14: 14336814.65 | BN14: 17387110.39 | BO14: 15524454.01 | BP14: 15201084.94 | BQ14: 17981470.2 | BR14: 16561030.88 | BS14: 15763192.7 | BT14: 15109171.19 | BU14: 17404895.83 | BV14: 15115509.72 | BW14: 12084814.73 | BX14: 15036949.23 | BY14: 14581007.01 | BZ14: 17400408.79 | CA14: 14431407.6 | CB14: 16733280.35 | CC14: 12043674.32 | CD14: 13412873.65 | CE14: 15048365.27 | CF14: 14660025.14 | CG14: 16315883.67 | CH14: 17238021.21 | CI14: 17168090.35 | CJ14: 15883347.37 | CK14: 16194464.76 | CL14: 14623145.42 | CM14: 17629480.56 | CN14: 14449605.81 | CO14: 15360722.19 | CP14: 12018631.57 | CQ14: 16177169.28 | CR14: 15058452.29 | CS14: 13897441.93 | CT14: 13216279.78 | CU14: 13320792.09 | CV14: 12891028.18 | CW14: 16507262.66 | CX14: 13350841.87 | CY14: 18553691.61 | CZ14: 14567619.2 | DA14: 16873910.83 | DB14: 17050848.08 | DC14: 13202253.72 | DD14: 16933543.14 | DE14: 18100114.05 | DF14: 18061908.11 | DG14: 17544336.52 | DH14: 14215320.99 | DI14: 13573312.54 | DJ14: 18429073.03 | DK14: 16777453.99 | DL14: 13181359.59 | DM14: 16223753.99 | DN14: 13764190.33 | DO14: 12028556.09 | DP14: 14186594.62 | DQ14: 12982342.38 | DR14: 15336648.88 | DS14: 14242541.45 | DT14: 14613069.08 | DU14: 15009653.56 | DV14: 15056968.08 | DW14: 18535759.58 | DX14: 16190716.59 | DY14: 16140197.32 | DZ14: 17705222.17 | EA14: 15875490.9 | EB14: 17951383.11 | EC14: 16953150.75 | ED14: 14750525.7 | EE14: 14310079.84 | EF14: 13563913.63 | EG14: 16667084.07 | EH14: 14014856.83 | EI14: 13926619.41 | EJ14: 16525178.29 | EK14: 14541619.61 | EL14: 15097583.04 | EM14: 14513571.38 | EN14: 14887353.98 | EO14: 15966949.35 | EP14: 14176694.05 | EQ14: 16107091.24 | ER14: 19309753.14 | ES14: 14212471.94 | ET14: 17227425.74 | EU14: 15369383.68 | EV14: 12492393.03 | EW14: 13969777.94 | EX14: 13397652.11 | EY14: 13569181.68 | EZ14: 16140314.63 | FA14: 13669557.02 | FB14: 15787435.29 | FC14: 13925943.46 | FD14: 16252519.13 | FE14: 15809098.41 | FF14: 18713699.49 | FG14: 14386910.5 | FH14: 16903902.6 | FI14: 15605243.83 | FJ14: 16491193.02 | FK14: 16083891.53 | FL14: 20873653.22 | FM14: 20311792.67 | FN14: 17943235.71 | FO14: 11869018.74 | FP14: 15968662.75 | FQ14: 15943613.28 | FR14: 15288532.73 | FS14: 20442098.15 | FT14: 15739665.69 | FU14: 17889513.99 | FV14: 15960750.61 | FW14: 17186670.79 | FX14: 15314716.4 | FY14: 15453967.58 | FZ14: 15178473 | GA14: 13919021.65 | GB14: 15140320.66 | GC14: 13941055.56 | GD14: 12750143.47 | GE14: 16952197.25 | GF14: 18775124.16 | GG14: 12442396.44 | GH14: 13471693.44 | GI14: 17807548.25 | GJ14: 17087286.88 | GK14: 11060598.02 | GL14: 15244632.21 | GM14: 14835343.83 | GN14: 13722091.28 | GO14: 14708098.35 | GP14: 11598002.32 | GQ14: 14090468.6 | GR14: 16607526.78 | GS14: 14756105.74 | GT14: 13111144.53 | GU14: 16649034.21 | GV14: 14703069 | GW14: 13277748.68 | GX14: 13889948.6 | GY14: 13027851.72 | GZ14: 16353860.2 | HA14: 17191262.96 | HB14: 15450198.79 | HC14: 13876456.92 | HD14: 11867947.66 | HE14: 14710001.99 | HF14: 18478263.1 | HG14: 16186249.14 | HH14: 11209181.68 | HI14: 14319298.16 | HJ14: 14707185.87 | HK14: 16256562.57 | HL14: 13330541.76 | HM14: 14021085.41 | HN14: 15485402.54 | HO14: 16558945.32 | HP14: 19814905.59 | HQ14: 19457525.76 | HR14: 16914923.93 | HS14: 19312980.41 | HT14: 15707175.56 | HU14: 16438116.04 | HV14: 12254511.71 | HW14: 16983188.78 | HX14: 12654816.11 | HY14: 14497964.55 | HZ14: 13480292.65 | IA14: 17189600 | IB14: 16898709.74 | IC14: 18552195.52 | ID14: 14059302.12 | IE14: 13166181.95 | IF14: 15252975.8 | IG14: 13879283.34 | IH14: 15597479.74 | II14: 14873201.61 | IJ14: 12198761.79 | IK14: 15148397.75 | IL14: 16596368.19 | IM14: 13148003.01 | IN14: 13356880.5 | IO14: 17355309.91 | IP14: 17875082.11 | IQ14: 13582163.29 | IR14: 12747691.32 | IS14: 14021006.99 | IT14: 17185590.55 | IU14: 15377796.85 | IV14: 15395886.04 | IW14: 15158886.34 | IX14: 15778528.73 | IY14: 15067629.15 | IZ14: 16525853.16 | JA14: 14193710.87 | JB14: 14859541.67 | JC14: 16968433.99 | JD14: 13135047.25 | JE14: 14205135.12 | JF14: 12735166.64 | JG14: 14138146.38 | JH14: 16820481.94 | JI14: 15783942.19 | JJ14: 14754402.96 | JK14: 16548169.98 | JL14: 13929289.3 | JM14: 18897897.92 | JN14: 17562915.05 | JO14: 13982236.56 | JP14: 14595995.03 | JQ14: 15897830.97 | JR14: 15529050.08 | JS14: 12144074.68 | JT14: 14123962.53 | JU14: 16032427.72 | JV14: 17410389.24 | JW14: 13790314.16 | JX14: 16380866.59 | JY14: 13471349.35 | JZ14: 12744281.07 | KA14: 13967232.02 | KB14: 12736129.65 | KC14: 14104566.4 | KD14: 14731454.93 | KE14: 17290985.84 | KF14: 15344185.48 | KG14: 14493709.56 | KH14: 14492059.79 | KI14: 17026114.35 | KJ14: 13970088.4 | KK14: 14203997.31 | KL14: 13939194.42 | KM14: 16000671.03 | KN14: 17683540.35 | KO14: 15665604.87 | KP14: 15738400.12 | KQ14: 16256333.74 | KR14: 12930950.62 | KS14: 15726860.54 | KT14: 14355752.62 | KU14: 14328352.19 | KV14: 14092077.99 | KW14: 14225692.34 | KX14: 18953449.79 | KY14: 14890918.76 | KZ14: 15637377.75 | LA14: 14084116.42 | LB14: 15364960.9 | LC14: 14491439.78 | LD14: 19785363.04 | LE14: 14231151.53 | LF14: 13561497.62 | LG14: 16510468.44 | LH14: 12219692.42 | LI14: 16556172.08 | LJ14: 14188252.21 | LK14: 16846073.99 | LL14: 18670441.85 | LM14: 17077058.52 | LN14: 13592032.55 | LO14: 15289662.98 | LP14: 14305484.23 | LQ14: 14125220.4 | LR14: 13525961.51 | LS14: 20301633.1 | LT14: 15107591.17 | LU14: 14839616.27 | LV14: 17209474.11 | LW14: 16320631.62 | LX14: 15830302.47 | LY14: 14630453.21 | LZ14: 13697094.51 | MA14: 12077295.03 | MB14: 17301280.11 | MC14: 13035515.22 | MD14: 16262806.36 | ME14: 17549165.11 | MF14: 16455584.27 | MG14: 14280053.07 | MH14: 16209309.21 | MI14: 14948222.87 | MJ14: 12017408.61 | MK14: 12938072.65 | ML14: 18123618.32 | MM14: 13182840.17 | MN14: 11697157.91 | MO14: 14877468.14 | MP14: 15011978.73 | MQ14: 12367233.15 | MR14: 13961327.83 | MS14: 16190595.27 | MT14: 14362127.99 | MU14: 17152450.37 | MV14: 17438443.49 | MW14: 16932493.53 | MX14: 14549830.29 | MY14: 13704231.56 | MZ14: 14238394.75 | NA14: 14277967.47 | NB14: 13965116.79 | NC14: 18118428.59 | ND14: 12094375.21 | NE14: 14317554.33 | NF14: 16581721.44 | NG14: 13225745.37 | NH14: 15740068.36 | NI14: 14576009.5 | NJ14: 13835736.21 | NK14: 15924281.52 | NL14: 15416933.49 | NM14: 12129168.44 | NN14: 14372578.31 | NO14: 13133141.95 | NP14: 15316379.13 | NQ14: 13336477.85 | NR14: 14916139.97 | NS14: 14887788.17 | NT14: 16550825.79 | NU14: 14781732.94 | NV14: 14400405.05 | NW14: 13554745.13 | NX14: 15448438.68 | NY14: 16608247.63 | NZ14: 16436402.37 | OA14: 13870047.56 | OB14: 17041322.33 | OC14: 15095149.28 | OD14: 11305761.06 | OE14: 14988383.78 | OF14: 16699017.21 | OG14: 16532423.49 | OH14: 15327676.01 | OI14: 14509958.31 | OJ14: 17377467.45 | OK14: 13702476.04 | OL14: 17346133 | OM14: 18235255.68 | ON14: 14244325.14 | OO14: 14381477.23 | OP14: 17085521.13 | OQ14: 13313963.79 | OR14: 15981244.79 | OS14: 13842659.8 | OT14: 12667642.21 | OU14: 15378918.32 | OV14: 12775786.08 | OW14: 11823857.01 | OX14: 17191030.2 | OY14: 15555077.71 | OZ14: 12550438.89 | PA14: 14961648.64 | PB14: 12689497.87 | PC14: 11298057.88 | PD14: 16855826.07 | PE14: 17024772.18 | PF14: 12729873.57 | PG14: 15906554.87 | PH14: 16963362.73 | PI14: 16399043.46 | PJ14: 13699413.69 | PK14: 17483465.82 | PL14: 18270614.4 | PM14: 17038378.28 | PN14: 12483413.26 | PO14: 14405101.44 | PP14: 13782083.95 | PQ14: 15050765.32 | PR14: 16439300.28 | PS14: 16626938.4 | PT14: 18639576.37 | PU14: 15469502.99 | PV14: 15882522.07 | PW14: 14957040.06 | PX14: 20740749.55 | PY14: 14553517.92 | PZ14: 10952706.79 | QA14: 18332965.2 | QB14: 18343695.91 | QC14: 17585740.07 | QD14: 15075405.64 | QE14: 13721484.16 | QF14: 16094808.39 | QG14: 15220282.11 | QH14: 14562220.69 | QI14: 12836891.07 | QJ14: 12807861.34 | QK14: 14492478.59 | QL14: 15052267.27 | QM14: 13291061.31 | QN14: 12679404.4 | QO14: 14702272.67 | QP14: 16007061.47 | QQ14: 12962922.92 | QR14: 18167581.65 | QS14: 15714393.56 | QT14: 12265238.33 | QU14: 17967376.21 | QV14: 11489215.36 | QW14: 16703829.54 | QX14: 17719478.81 | QY14: 15343614.13 | QZ14: 14815871.26 | RA14: 13215346.63 | RB14: 14747477.7 | RC14: 16311882.53 | RD14: 16214800.66 | RE14: 14325958.01 | RF14: 16241509.09 | RG14: 16467260.31 | RH14: 14279314.47 | RI14: 17217666.24 | RJ14: 13866198.27 | RK14: 13961356.26 | RL14: 15769073.16 | RM14: 14168157.11 | RN14: 17452003.2 | RO14: 15637919.93 | RP14: 18044840.93 | RQ14: 16156283.78 | RR14: 18727016.2 | RS14: 14135470.18 | RT14: 11320918.43 | RU14: 12148319.09 | RV14: 14924629.7 | RW14: 12676282.9 | RX14: 15231492.76 | RY14: 12390521.33 | RZ14: 15371767.31 | SA14: 13312183.3 | SB14: 14147676.11 | SC14: 13426968.13 | SD14: 13805153.84 | SE14: 15579830.68 | SF14: 17601299.97 | SG14: 18875930.62
B15: 15472730.05 | C15: 15658214.35 | D15: 17157304.09 | E15: 11625946.8 | F15: 15965166.07 | G15: 15252112.35 | H15: 13974771.79 | I15: 12832779.47 | J15: 15998609.1 | K15: 14561224.04 | L15: 14896976.51 | M15: 12241701.93 | N15: 18017354.8 | O15: 13858311.23 | P15: 19301932.39 | Q15: 14411777.85 | R15: 16856485.97 | S15: 16240537.25 | T15: 14797717.04 | U15: 12930187.29 | V15: 15331613.23 | W15: 16515545.29 | X15: 14574529.56 | Y15: 16063087.79 | Z15: 16317531.83 | AA15: 14020127.89 | AB15: 19046079.91 | AC15: 14126843.54 | AD15: 13762605.63 | AE15: 13055803.89 | AF15: 15276726.09 | AG15: 12620682.11 | AH15: 14769061.07 | AI15: 16546926.39 | AJ15: 15765941.96 | AK15: 15098135.76 | AL15: 14454676.85 | AM15: 15449592.35 | AN15: 13879017.16 | AO15: 15219554.07 | AP15: 14892895.56 | AQ15: 16278409.35 | AR15: 18197575.56 | AS15: 17423671.8 | AT15: 16900640.41 | AU15: 16136067.92 | AV15: 18020110.93 | AW15: 18239376.41 | AX15: 15024850.55 | AY15: 16991416.04 | AZ15: 18678934.86 | BA15: 14716211.36 | BB15: 12143818.32 | BC15: 11860330.4 | BD15: 17718890.29 | BE15: 14781102 | BF15: 12691165.36 | BG15: 16513340.86 | BH15: 13370531.11 | BI15: 14019893.44 | BJ15: 13926123.01 | BK15: 14200006.21 | BL15: 14189892.81 | BM15: 12031184.95 | BN15: 11139515.22 | BO15: 13873050.94 | BP15: 12140563.71 | BQ15: 13541010.32 | BR15: 14187951.74 | BS15: 15258600.98 | BT15: 16006612.36 | BU15: 13289452.5 | BV15: 17782577.21 | BW15: 10811748.16 | BX15: 14073101.67 | BY15: 18844544 | BZ15: 14934633.75 | CA15: 14420399.48 | CB15: 14653502.01 | CC15: 13593991.19 | CD15: 15995104.57 | CE15: 13609870.77 | CF15: 17586054.66 | CG15: 15007684.8 | CH15: 16187937.85 | CI15: 14391433.23 | CJ15: 14184961.7 | CK15: 12761924.59 | CL15: 16409946.62 | CM15: 10291665.14 | CN15: 15308230.19 | CO15: 15379479.99 | CP15: 12828427.75 | CQ15: 17555623.41 | CR15: 14179426.42 | CS15: 14588576.02 | CT15: 15147510.6 | CU15: 13759402.02 | CV15: 13051200.55 | CW15: 17907904.86 | CX15: 20477232.98 | CY15: 16417338.65 | CZ15: 16460557.07 | DA15: 14412706.05 | DB15: 16098085.07 | DC15: 14530177.22 | DD15: 13894690.1 | DE15: 15574579.25 | DF15: 13989966.86 | DG15: 14616830 | DH15: 14181971.74 | DI15: 14543679.88 | DJ15: 13603703.94 | DK15: 11891193.68 | DL15: 17396350.71 | DM15: 15942919.82 | DN15: 16236467.8 | DO15: 13134975.44 | DP15: 15674092.56 | DQ15: 15350804.96 | DR15: 10688223.39 | DS15: 18436986.65 | DT15: 14343584.74 | DU15: 14829817.31 | DV15: 13630776.98 | DW15: 18486359.87 | DX15: 16233936.77 | DY15: 14093315.2 | DZ15: 12956219.65 | EA15: 17830500.91 | EB15: 14727901.51 | EC15: 14036958.74 | ED15: 19989785.69 | EE15: 15687028.35 | EF15: 13173620 | EG15: 17160772.82 | EH15: 15723371.92 | EI15: 16796918.36 | EJ15: 14513955.33 | EK15: 15599279.93 | EL15: 14659837.72 | EM15: 12382134.31 | EN15: 12126697.54 | EO15: 15246006.55 | EP15: 14770135.2 | EQ15: 16099271.39 | ER15: 12976087.83 | ES15: 16369532.56 | ET15: 13450330.62 | EU15: 13793459.51 | EV15: 13382005.91 | EW15: 14828717.3 | EX15: 11673037.75 | EY15: 15171164.61 | EZ15: 14993890.12 | FA15: 12280723.15 | FB15: 15711143.61 | FC15: 13651730.02 | FD15: 13783927.44 | FE15: 18008507.59 | FF15: 15768364.09 | FG15: 14693676.15 | FH15: 16931984 | FI15: 12216651.52 | FJ15: 16050876.68 | FK15: 13940202.31 | FL15: 17527708.84 | FM15: 13151805.71 | FN15: 16975209.46 | FO15: 14213497.31 | FP15: 17707601.15 | FQ15: 15664649.97 | FR15: 18506848.76 | FS15: 14362046.41 | FT15: 13628785.81 | FU15: 16875739.76 | FV15: 16210654.83 | FW15: 15198612.87 | FX15: 13109228.36 | FY15: 14733754.61 | FZ15: 12453603.11 | GA15: 14665012.53 | GB15: 15531454.37 | GC15: 16340465.4 | GD15: 17677923.15 | GE15: 14429591.57 | GF15: 15135554.66 | GG15: 15232231.07 | GH15: 13936530.52 | GI15: 14276545.92 | GJ15: 13716955.01 | GK15: 15178676.63 | GL15: 16258567.82 | GM15: 16335684.8 | GN15: 16440001.58 | GO15: 17166286.1 | GP15: 12200278.61 | GQ15: 14984436.1 | GR15: 14457907.53 | GS15: 13427886.82 | GT15: 14784662.89 | GU15: 12987329.17 | GV15: 13667838.3 | GW15: 18105709 | GX15: 16519789.7 | GY15: 12906443.07 | GZ15: 11285043.36 | HA15: 14792224.3 | HB15: 13991011.54 | HC15: 15050576.74 | HD15: 14393573.68 | HE15: 12861884.08 | HF15: 12310783.84 | HG15: 15752267.6 | HH15: 18312125.72 | HI15: 12206069.65 | HJ15: 18304338.86 | HK15: 9735247.9 | HL15: 14213460.68 | HM15: 16787680.96 | HN15: 14842074.18 | HO15: 13504543.51 | HP15: 13109889.38 | HQ15: 16696693.9 | HR15: 15410275.42 | HS15: 13637030.18 | HT15: 19436675.43 | HU15: 12223055.26 | HV15: 14743584.06 | HW15: 13330001.08 | HX15: 14197479.95 | HY15: 16307325.79 | HZ15: 14583563.05 | IA15: 16036315.56 | IB15: 15729838.4 | IC15: 17942551.53 | ID15: 17918398.24 | IE15: 14942426.67 | IF15: 15798237.46 | IG15: 14037251.52 | IH15: 18902401.41 | II15: 18925709.41 | IJ15: 13085434.55 | IK15: 16892248.35 | IL15: 16956606.32 | IM15: 13961303.96 | IN15: 15191063.42 | IO15: 15605138.48 | IP15: 16253124.92 | IQ15: 16850126.26 | IR15: 15891139.44 | IS15: 15069216.2 | IT15: 15725474.04 | IU15: 15382704.97 | IV15: 14485236.06 | IW15: 15149386.69 | IX15: 18792609.16 | IY15: 16942793.46 | IZ15: 15933856.52 | JA15: 15008070.86 | JB15: 13334264.5 | JC15: 16867165.38 | JD15: 14968634.7 | JE15: 14518226.67 | JF15: 19920013.32 | JG15: 16488903.79 | JH15: 15993395.55 | JI15: 14661662.45 | JJ15: 18650716.42 | JK15: 16482053.7 | JL15: 15109736.2 | JM15: 15737978.95 | JN15: 16218112.33 | JO15: 13368452.51 | JP15: 14761529.28 | JQ15: 18702090.33 | JR15: 15686325.31 | JS15: 13351714.99 | JT15: 12327606.11 | JU15: 18311632.57 | JV15: 15762767.52 | JW15: 15207197.91 | JX15: 14647056.7 | JY15: 15624832.26 | JZ15: 15922238.37 | KA15: 15367306.08 | KB15: 18825959.48 | KC15: 13976165.28 | KD15: 14011784.18 | KE15: 13910547.23 | KF15: 15650886.9 | KG15: 14914151.28 | KH15: 14808653.74 | KI15: 16216457.01 | KJ15: 13960729.18 | KK15: 16468645.28 | KL15: 11680914.32 | KM15: 18314171.16 | KN15: 14116608.34 | KO15: 17862910.01 | KP15: 16848065.63 | KQ15: 13647227.08 | KR15: 16880456.86 | KS15: 17439857.01 | KT15: 14850589.85 | KU15: 14875227.94 | KV15: 14039627.74 | KW15: 14449929.92 | KX15: 19923820.03 | KY15: 13916746.84 | KZ15: 15986395.21 | LA15: 14229391.53 | LB15: 11292721.21 | LC15: 10754714.33 | LD15: 17785597.89 | LE15: 18561961.44 | LF15: 11734023.44 | LG15: 14721699.39 | LH15: 15705502.69 | LI15: 16101130.87 | LJ15: 16306461.72 | LK15: 14988888.2 | LL15: 14374248.27 | LM15: 19007758.07 | LN15: 14548183.89 | LO15: 14916358.65 | LP15: 13622569.77 | LQ15: 16250575.19 | LR15: 11792603.21 | LS15: 14321592.11 | LT15: 14261846.4 | LU15: 18964281.04 | LV15: 14366849.07 | LW15: 14738894.62 | LX15: 13953528.62 | LY15: 16587276.46 | LZ15: 14073796.9 | MA15: 13168444.26 | MB15: 14872718.96 | MC15: 11259129.8 | MD15: 12227846.06 | ME15: 13673367.47 | MF15: 15151873.4 | MG15: 16189834.69 | MH15: 14369865.61 | MI15: 14129869.67 | MJ15: 14596943.18 | MK15: 15153135.13 | ML15: 14154258.91 | MM15: 14656142.44 | MN15: 15114492.23 | MO15: 16786170.22 | MP15: 15200512.92 | MQ15: 16277443 | MR15: 14402074.97 | MS15: 16157637.46 | MT15: 15620379.52 | MU15: 19420558.64 | MV15: 14621542.6 | MW15: 13991326 | MX15: 13727666.2 | MY15: 17337394.09 | MZ15: 16899645.62 | NA15: 17271426.12 | NB15: 9944233.082 | NC15: 17134973.89 | ND15: 13383424.1 | NE15: 15312392.2 | NF15: 14981683.16 | NG15: 17198234.6 | NH15: 14303233.93 | NI15: 13751181.34 | NJ15: 14566851.37 | NK15: 13823036.75 | NL15: 15905789.14 | NM15: 18353652.92 | NN15: 17292746.83 | NO15: 15555382.51 | NP15: 16411993.19 | NQ15: 15960856.77 | NR15: 13224692.17 | NS15: 19530980.59 | NT15: 16429374.2 | NU15: 13991306.99 | NV15: 17476972.71 | NW15: 13784543.1 | NX15: 16230710.61 | NY15: 17209887.71 | NZ15: 15921734.2 | OA15: 14752298.62 | OB15: 13087783.53 | OC15: 12741578.95 | OD15: 15649032.77 | OE15: 17351247.31 | OF15: 13865219.68 | OG15: 13024746.52 | OH15: 12444615.9 | OI15: 14267159.64 | OJ15: 16352755.88 | OK15: 16033508.02 | OL15: 13384113.99 | OM15: 14393422.78 | ON15: 17935610.13 | OO15: 15094818.42 | OP15: 11591171.41 | OQ15: 17247174.21 | OR15: 15563020.54 | OS15: 13455087.96 | OT15: 13416036.42 | OU15: 15595101.35 | OV15: 18346355.5 | OW15: 15601123.33 | OX15: 17999162.36 | OY15: 12509949.67 | OZ15: 18202054.13 | PA15: 16181688.29 | PB15: 18690779.92 | PC15: 16398032.8 | PD15: 14723976.48 | PE15: 17084247.89 | PF15: 15141502.73 | PG15: 16512516.52 | PH15: 14724496.03 | PI15: 18331715.99 | PJ15: 19687709.21 | PK15: 12616854.1 | PL15: 13498801.62 | PM15: 13128173.39 | PN15: 15933619.87 | PO15: 17291181.31 | PP15: 16577943.03 | PQ15: 13527078.51 | PR15: 14133892.64 | PS15: 14972756.38 | PT15: 15115466.66 | PU15: 14084499.92 | PV15: 14692594.91 | PW15: 14255370.7 | PX15: 12851196.85 | PY15: 15594253.19 | PZ15: 15833928.87 | QA15: 18193341.66 | QB15: 13361562.71 | QC15: 11066025.02 | QD15: 15367597.67 | QE15: 16003294.91 | QF15: 17552932.22 | QG15: 15264552.45 | QH15: 16404862.97 | QI15: 14405735.93 | QJ15: 19158896.98 | QK15: 14807096.79 | QL15: 14658967.7 | QM15: 13360906.34 | QN15: 15453018.7 | QO15: 16355498.26 | QP15: 17622161.29 | QQ15: 13145636.01 | QR15: 9993027.54 | QS15: 13878192.97 | QT15: 14886038.59 | QU15: 14135298.85 | QV15: 15567180.97 | QW15: 16254965.93 | QX15: 14034609.83 | QY15: 13880758.44 | QZ15: 16166839.71 | RA15: 17017632.14 | RB15: 15677560.79 | RC15: 16110940.12 | RD15: 16913430.69 | RE15: 16092534.59 | RF15: 10810894.53 | RG15: 14297613.77 | RH15: 15453666.1 | RI15: 14864772.63 | RJ15: 12393208.86 | RK15: 14964940.41 | RL15: 16775152 | RM15: 17710881.72 | RN15: 16788183.04 | RO15: 16568265.13 | RP15: 13670969.1 | RQ15: 18080632.85 | RR15: 14315132.02 | RS15: 14760477.79 | RT15: 15938521.09 | RU15: 13821754.35 | RV15: 13100464.61 | RW15: 14066034.15 | RX15: 14761608.43 | RY15: 12110943.97 | RZ15: 13907011.54 | SA15: 12833616.19 | SB15: 14677599.54 | SC15: 17024949.68 | SD15: 17881111.74 | SE15: 14001438.36 | SF15: 16700642.73 | SG15: 18355742.57
B16: 13852822.3 | C16: 15973867.33 | D16: 14496658.15 | E16: 16403933.22 | F16: 14236243.41 | G16: 14202333.11 | H16: 14403826.41 | I16: 17557310.81 | J16: 13539007.43 | K16: 15144239.26 | L16: 11900108.68 | M16: 12086134.89 | N16: 15459531.77 | O16: 18055945.18 | P16: 12369962.71 | Q16: 18303250.85 | R16: 13870263.66 | S16: 14351271.07 | T16: 11080746.03 | U16: 14521293.16 | V16: 13548019.69 | W16: 14303926.26 | X16: 17439344.7 | Y16: 15128962.27 | Z16: 18444708.41 | AA16: 15229114.72 | AB16: 14889659.47 | AC16: 16301486.6 | AD16: 16583570.77 | AE16: 14953450.03 | AF16: 16941402.03 | AG16: 15276853.52 | AH16: 15081404.43 | AI16: 15681231.54 | AJ16: 13832296.72 | AK16: 16355301.08 | AL16: 16447984.64 | AM16: 16564510.01 | AN16: 14332986.02 | AO16: 11518262.99 | AP16: 15434788.96 | AQ16: 14724234.16 | AR16: 17002178.23 | AS16: 19695066.6 | AT16: 14392334.17 | AU16: 16952319.32 | AV16: 10262618.19 | AW16: 17853451.45 | AX16: 13579648.98 | AY16: 15916430.55 | AZ16: 18345671.1 | BA16: 15394428.83 | BB16: 19191742.45 | BC16: 13022703.26 | BD16: 14256326.25 | BE16: 16804359.51 | BF16: 17857673.08 | BG16: 17902307.4 | BH16: 17483628.01 | BI16: 14890760.48 | BJ16: 15017785.59 | BK16: 14740930.86 | BL16: 14286821.35 | BM16: 18182435.46 | BN16: 18223909.82 | BO16: 17290959.11 | BP16: 11310129.17 | BQ16: 15040329.29 | BR16: 13553262.91 | BS16: 16009763.46 | BT16: 13301695.55 | BU16: 16520099.66 | BV16: 14061162.59 | BW16: 16179832.75 | BX16: 16769202.32 | BY16: 15640414.56 | BZ16: 14617133.29 | CA16: 15810644.88 | CB16: 13873937.81 | CC16: 12451456.89 | CD16: 13965841.21 | CE16: 12494303.06 | CF16: 15005019.85 | CG16: 14053164.8 | CH16: 17132613.39 | CI16: 15274997.76 | CJ16: 16472592.86 | CK16: 17400519.44 | CL16: 14568227.69 | CM16: 15385738.28 | CN16: 16133374.9 | CO16: 14813469.16 | CP16: 17014737.34 | CQ16: 13597224.92 | CR16: 14289133.11 | CS16: 13337676.11 | CT16: 18017364.13 | CU16: 13580635.34 | CV16: 14977933.84 | CW16: 13544173.14 | CX16: 19136233.54 | CY16: 15288678.5 | CZ16: 15664723.07 | DA16: 17545341.83 | DB16: 16228092.25 | DC16: 19731331.5 | DD16: 17014496.21 | DE16: 16905439.68 | DF16: 17145301.15 | DG16: 14672653.29 | DH16: 17198173.98 | DI16: 16780178.52 | DJ16: 16125070.73 | DK16: 19157807.42 | DL16: 17163448.64 | DM16: 14831032.47 | DN16: 15480605.95 | DO16: 12106112.33 | DP16: 13456601 | DQ16: 14640071.34 | DR16: 16139273.56 | DS16: 15822244.98 | DT16: 14418099.74 | DU16: 14946380.73 | DV16: 13215106.67 | DW16: 15828325.01 | DX16: 16047451.81 | DY16: 14979378.9 | DZ16: 12962111.05 | EA16: 14409875.08 | EB16: 13269990.87 | EC16: 14192069.96 | ED16: 16394586.96 | EE16: 17925626.52 | EF16: 14961289.71 | EG16: 19337713.2 | EH16: 16442379.21 | EI16: 15489724.35 | EJ16: 14338163.54 | EK16: 15850689.59 | EL16: 15281029.69 | EM16: 12930025.64 | EN16: 16617285.41 | EO16: 14240707.95 | EP16: 17161324.03 | EQ16: 16840976.15 | ER16: 14630450.8 | ES16: 17215276.05 | ET16: 14749829.48 | EU16: 13876216.22 | EV16: 15759025.65 | EW16: 15617008.56 | EX16: 14719930.65 | EY16: 15249323.9 | EZ16: 15418809.61 | FA16: 14418243.19 | FB16: 16451789.76 | FC16: 16281823.32 | FD16: 14189579.34 | FE16: 17251794.65 | FF16: 16443858.76 | FG16: 14515447.21 | FH16: 16045582.88 | FI16: 14936724.31 | FJ16: 15441596.26 | FK16: 14727444.25 | FL16: 14219748.13 | FM16: 20005069.94 | FN16: 15871299.46 | FO16: 15372050.27 | FP16: 16268737.65 | FQ16: 13870633.41 | FR16: 17216882.16 | FS16: 13131537.19 | FT16: 16129906.29 | FU16: 16730553.22 | FV16: 15393836.86 | FW16: 11898702.11 | FX16: 16056993.77 | FY16: 17242152.07 | FZ16: 16433044.37 | GA16: 16039101.33 | GB16: 19846001.27 | GC16: 16878479.03 | GD16: 17241577.42 | GE16: 17723475.67 | GF16: 13636747.52 | GG16: 14145749.89 | GH16: 17975347.58 | GI16: 11601263.64 | GJ16: 13771409.97 | GK16: 15989846.09 | GL16: 15216701.2 | GM16: 17035883.42 | GN16: 12630697.54 | GO16: 19364721.7 | GP16: 14339977.62 | GQ16: 14036719.7 | GR16: 14501483.22 | GS16: 14627171.99 | GT16: 16528683.94 | GU16: 16177494.55 | GV16: 10908034.92 | GW16: 16509732.82 | GX16: 17118511.64 | GY16: 16428017.56 | GZ16: 13431962.53 | HA16: 13968077.43 | HB16: 16654856.6 | HC16: 13727424.43 | HD16: 13381132.67 | HE16: 13480283.95 | HF16: 15673910.81 | HG16: 15691000.34 | HH16: 14067996.82 | HI16: 15583036.96 | HJ16: 14695963.36 | HK16: 14993181.54 | HL16: 14849920.08 | HM16: 16323836.68 | HN16: 13246034.7 | HO16: 15489761.93 | HP16: 13242440.27 | HQ16: 18220859.71 | HR16: 11344163.44 | HS16: 15859529.34 | HT16: 13658395.78 | HU16: 16267976.75 | HV16: 18207445.45 | HW16: 15981855.39 | HX16: 15186291.04 | HY16: 13214711.81 | HZ16: 17551702.86 | IA16: 11685124.54 | IB16: 17017680.85 | IC16: 17406855.1 | ID16: 16126074.77 | IE16: 14737005.01 | IF16: 16932598.87 | IG16: 12425202.59 | IH16: 12621439.06 | II16: 14862808.97 | IJ16: 14764277.82 | IK16: 14279226.61 | IL16: 14874524.99 | IM16: 15307691.61 | IN16: 14358560.98 | IO16: 16838066.61 | IP16: 12666286.12 | IQ16: 15680135.92 | IR16: 16404554.28 | IS16: 13432679.71 | IT16: 12265535.92 | IU16: 20342296.61 | IV16: 15566407.74 | IW16: 17528820.44 | IX16: 15281658.94 | IY16: 14244367.33 | IZ16: 16779087.08 | JA16: 13467344.36 | JB16: 15717296.25 | JC16: 14487411.49 | JD16: 17586364.81 | JE16: 15715908.44 | JF16: 15316194.76 | JG16: 14238798.28 | JH16: 16438309 | JI16: 15141804.92 | JJ16: 15728725.26 | JK16: 16995711.59 | JL16: 12293957.59 | JM16: 17293337.3 | JN16: 18056843.96 | JO16: 17979868.38 | JP16: 16567804.88 | JQ16: 15342903.67 | JR16: 16964827.87 | JS16: 16380539.96 | JT16: 14828607.98 | JU16: 15072185.21 | JV16: 11646905.19 | JW16: 15988136.72 | JX16: 13992649.35 | JY16: 20008291.6 | JZ16: 14221416.69 | KA16: 19739779.61 | KB16: 12287005.97 | KC16: 15188717.09 | KD16: 16675527.97 | KE16: 9183497.159 | KF16: 17149114.23 | KG16: 18566127.27 | KH16: 15522402.44 | KI16: 15907176.61 | KJ16: 13158265.89 | KK16: 13688271.99 | KL16: 17341188.09 | KM16: 15119653.72 | KN16: 13590969.57 | KO16: 11991345.18 | KP16: 14634434.6 | KQ16: 16917832.43 | KR16: 12804578.26 | KS16: 15195549.29 | KT16: 14337912.94 | KU16: 17054473.69 | KV16: 18160644.37 | KW16: 17877634.55 | KX16: 17774169.2 | KY16: 17974734.58 | KZ16: 13871053.65 | LA16: 15816255.32 | LB16: 16092248.4 | LC16: 13175519 | LD16: 15838282.49 | LE16: 13779537.23 | LF16: 15159968.6 | LG16: 15865761.37 | LH16: 18097344.87 | LI16: 14680703.6 | LJ16: 16380682.5 | LK16: 14293676.12 | LL16: 13539783.34 | LM16: 15902413.51 | LN16: 15892012.68 | LO16: 13956110.84 | LP16: 17598821.66 | LQ16: 13637234.52 | LR16: 15499009.1 | LS16: 15038948.28 | LT16: 16377559.03 | LU16: 18022395.34 | LV16: 16950192.91 | LW16: 10893388.48 | LX16: 16454706.41 | LY16: 16318337.23 | LZ16: 14284341.09 | MA16: 19686711.02 | MB16: 16068893.09 | MC16: 16199178.64 | MD16: 16196567.67 | ME16: 11108029.8 | MF16: 19882727.1 | MG16: 12065737.16 | MH16: 11761874.59 | MI16: 14823287.79 | MJ16: 15168234.9 | MK16: 17018956.1 | ML16: 13439313.87 | MM16: 13304532.24 | MN16: 15106431.54 | MO16: 15324728.48 | MP16: 15040700.12 | MQ16: 16825175.71 | MR16: 17567565.29 | MS16: 13899138.51 | MT16: 15544145.32 | MU16: 17030710.17 | MV16: 13242912.53 | MW16: 17207507.04 | MX16: 14402700.02 | MY16: 13180480.25 | MZ16: 13438235.78 | NA16: 15397867.35 | NB16: 17090821.44 | NC16: 16745380.05 | ND16: 10725186.13 | NE16: 15191800.18 | NF16: 15302822.2 | NG16: 14794649.63 | NH16: 16337288.59 | NI16: 14422273.21 | NJ16: 15174600.16 | NK16: 14079676.24 | NL16: 18203127.51 | NM16: 14372924.26 | NN16: 17900371.26 | NO16: 13659175.06 | NP16: 11823924.78 | NQ16: 12188578.2 | NR16: 13081800.61 | NS16: 16345219.08 | NT16: 13620358.09 | NU16: 13739990.34 | NV16: 16534735.87 | NW16: 17615679.64 | NX16: 16378810.52 | NY16: 16059288.2 | NZ16: 12554551.34 | OA16: 14533721.62 | OB16: 12853782.06 | OC16: 14054203.53 | OD16: 13285956.58 | OE16: 18255528.59 | OF16: 13659359.53 | OG16: 15855606.96 | OH16: 14907098.3 | OI16: 16353187.03 | OJ16: 14115461.81 | OK16: 14145153.07 | OL16: 18333583.83 | OM16: 13688819.48 | ON16: 15988292.81 | OO16: 14649669.99 | OP16: 16642444.41 | OQ16: 16213235.42 | OR16: 17146119.25 | OS16: 16892376.72 | OT16: 19367804.41 | OU16: 14603647.86 | OV16: 15217533.14 | OW16: 18694185.71 | OX16: 15579629.53 | OY16: 15877627.11 | OZ16: 17716398.49 | PA16: 12919739.35 | PB16: 17975205.44 | PC16: 13434083.85 | PD16: 15510931.71 | PE16: 16164099.62 | PF16: 15960781.39 | PG16: 16290200.38 | PH16: 15975784.28 | PI16: 16031586.96 | PJ16: 18969030.28 | PK16: 15332202.97 | PL16: 16176290.3 | PM16: 14751811.66 | PN16: 16268158.6 | PO16: 18428253.51 | PP16: 18680897.33 | PQ16: 15973427.32 | PR16: 15989989.01 | PS16: 14451390.48 | PT16: 15817324.46 | PU16: 13382054.64 | PV16: 18420524 | PW16: 15682519.1 | PX16: 14701397.12 | PY16: 10177212.99 | PZ16: 16842695.3 | QA16: 14782349.79 | QB16: 17016535.03 | QC16: 14054053.34 | QD16: 15688341.66 | QE16: 16138058.07 | QF16: 15846647.58 | QG16: 15364553.81 | QH16: 17370116.8 | QI16: 14017415.86 | QJ16: 13873023.91 | QK16: 15716759.16 | QL16: 17075149.92 | QM16: 13154182.83 | QN16: 17088314.97 | QO16: 17407320.53 | QP16: 14472762.76 | QQ16: 17913922.36 | QR16: 17035948.37 | QS16: 15015661.37 | QT16: 15798531.87 | QU16: 15612169.49 | QV16: 14616542 | QW16: 13776631.64 | QX16: 15313223.16 | QY16: 16998901.17 | QZ16: 12031760.23 | RA16: 15752344.99 | RB16: 16208382.39 | RC16: 16758159.71 | RD16: 15475751.26 | RE16: 18908774.65 | RF16: 15730563.57 | RG16: 15560338.31 | RH16: 14556912.12 | RI16: 14033323.76 | RJ16: 15991070.09 | RK16: 15839638.45 | RL16: 17303311.96 | RM16: 12665217.61 | RN16: 16872884.34 | RO16: 15524184.75 | RP16: 15891217.66 | RQ16: 14866904.82 | RR16: 18360042.17 | RS16: 14111702.79 | RT16: 13123364.66 | RU16: 17870958.63 | RV16: 12248127.98 | RW16: 16588105.12 | RX16: 17394206.03 | RY16: 15749179.86 | RZ16: 11911399.23 | SA16: 18982108.64 | SB16: 16935605.61 | SC16: 13326099.01 | SD16: 16388496.17 | SE16: 16599346.48 | SF16: 13378207.92 | SG16: 14130253.15
B17: 16770899.35 | C17: 15704104.71 | D17: 14764535.41 | E17: 17529423.15 | F17: 15029341.18 | G17: 14964862.55 | H17: 13936408.42 | I17: 16732117.14 | J17: 16336690.5 | K17: 15102306.59 | L17: 18423436.36 | M17: 17517037.24 | N17: 19895470.14 | O17: 16606231.42 | P17: 14588783.75 | Q17: 13121345.36 | R17: 14183778.58 | S17: 17160576.4 | T17: 13998374.91 | U17: 13861334.21 | V17: 16336916.9 | W17: 14892230.1 | X17: 12786461.08 | Y17: 17050990.11 | Z17: 14200577.67 | AA17: 17366079.2 | AB17: 12519984.47 | AC17: 18097637.89 | AD17: 15333800.46 | AE17: 17402949.01 | AF17: 15185132.47 | AG17: 11288714.21 | AH17: 15841678.17 | AI17: 14806785.26 | AJ17: 14098068.04 | AK17: 19195278.74 | AL17: 17881248.27 | AM17: 15402864.8 | AN17: 16838365.08 | AO17: 14117431.71 | AP17: 17496888.08 | AQ17: 14268398.71 | AR17: 18825563.77 | AS17: 14055809.75 | AT17: 16420779.87 | AU17: 16369554.94 | AV17: 15634326.72 | AW17: 15602515.2 | AX17: 15155492.86 | AY17: 14796710.33 | AZ17: 13910221.23 | BA17: 17114038.7 | BB17: 16170363.32 | BC17: 11795899.67 | BD17: 14646638.05 | BE17: 9964865.463 | BF17: 15159908.35 | BG17: 13796032.85 | BH17: 15017241.29 | BI17: 14080267.96 | BJ17: 13715001.24 | BK17: 18382993.77 | BL17: 18054650.94 | BM17: 14112383.4 | BN17: 13205446.8 | BO17: 12830593.67 | BP17: 17548543.78 | BQ17: 16647801.66 | BR17: 14718419.27 | BS17: 15446309.73 | BT17: 16845601.1 | BU17: 11689049.89 | BV17: 11058975.53 | BW17: 17244000.12 | BX17: 15322471.77 | BY17: 16053229.96 | BZ17: 15337195.08 | CA17: 15043478.24 | CB17: 14974699.77 | CC17: 14931075.49 | CD17: 14653709.25 | CE17: 13042104.43 | CF17: 15537540.95 | CG17: 16468441.92 | CH17: 14853016.65 | CI17: 12770450.87 | CJ17: 13431378 | CK17: 13012501.36 | CL17: 15407221.3 | CM17: 13143805.42 | CN17: 16448286.51 | CO17: 14713303.78 | CP17: 14966904.58 | CQ17: 17012546.92 | CR17: 17589946.38 | CS17: 16525414.92 | CT17: 12661834.78 | CU17: 11374555.82 | CV17: 14345945.87 | CW17: 18568578.13 | CX17: 13184573.34 | CY17: 16771743.4 | CZ17: 14926079.06 | DA17: 12602318.16 | DB17: 17401940.23 | DC17: 19251758.05 | DD17: 14031750.21 | DE17: 12826557.77 | DF17: 11835171.83 | DG17: 18273123.35 | DH17: 13408586.12 | DI17: 13360635.65 | DJ17: 15307962.49 | DK17: 14033718.57 | DL17: 15736441.41 | DM17: 13388950.9 | DN17: 14797257.71 | DO17: 14245748.27 | DP17: 15314205.81 | DQ17: 15182983.8 | DR17: 14569315.49 | DS17: 13040225.95 | DT17: 14359613.9 | DU17: 14714106.78 | DV17: 18905789.79 | DW17: 13598857.14 | DX17: 16284539.1 | DY17: 15764653.73 | DZ17: 12293376.08 | EA17: 15688198.86 | EB17: 15803639.57 | EC17: 13887835.08 | ED17: 14829708.41 | EE17: 12504086.93 | EF17: 12369563.03 | EG17: 16368407.47 | EH17: 14700700.37 | EI17: 16719091.14 | EJ17: 15444135.59 | EK17: 16461805.78 | EL17: 17417112.1 | EM17: 14620050.38 | EN17: 15037059.38 | EO17: 13175475.34 | EP17: 16783775.9 | EQ17: 13796491.1 | ER17: 11826925.19 | ES17: 13219653.84 | ET17: 16027516.25 | EU17: 15906007.33 | EV17: 16209236.93 | EW17: 21630462.61 | EX17: 12593773.33 | EY17: 15390426.7 | EZ17: 13099090.96 | FA17: 17572585.86 | FB17: 16746231.09 | FC17: 15791077.43 | FD17: 11703267.74 | FE17: 17029742.63 | FF17: 18911047.64 | FG17: 16050870.84 | FH17: 13974413.49 | FI17: 15287758.63 | FJ17: 13944845.46 | FK17: 13895457.31 | FL17: 16030503.74 | FM17: 16195016 | FN17: 13247533.91 | FO17: 16149657.64 | FP17: 17639912.42 | FQ17: 17869709.11 | FR17: 13509154.18 | FS17: 16565896.05 | FT17: 15485614.7 | FU17: 15940509.53 | FV17: 12173445.91 | FW17: 15756108.2 | FX17: 10816200.71 | FY17: 16753553.27 | FZ17: 16008380.09 | GA17: 16746924.18 | GB17: 15319394.07 | GC17: 17201576.15 | GD17: 16798298.03 | GE17: 16701845.25 | GF17: 16618606.89 | GG17: 15617733.19 | GH17: 15255035.22 | GI17: 14483743.17 | GJ17: 12868614.01 | GK17: 11204337.91 | GL17: 11535332.04 | GM17: 16221364.48 | GN17: 12578630.43 | GO17: 17014729.74 | GP17: 16088912.61 | GQ17: 14932003.45 | GR17: 18038793.44 | GS17: 13123986.87 | GT17: 13515047.06 | GU17: 16426583.64 | GV17: 16782418.83 | GW17: 14496097.63 | GX17: 17724921.23 | GY17: 15711535.73 | GZ17: 14991884.43 | HA17: 12516050.92 | HB17: 13216576.05 | HC17: 14134804.63 | HD17: 15770430.27 | HE17: 15758511.13 | HF17: 11653879.93 | HG17: 17162162.92 | HH17: 15320263.6 | HI17: 14928901.44 | HJ17: 16624496.86 | HK17: 17346068.94 | HL17: 14880016.18 | HM17: 13586311.88 | HN17: 17431394.23 | HO17: 13466328.8 | HP17: 18032867.67 | HQ17: 13748347.94 | HR17: 16313969.14 | HS17: 14418944.46 | HT17: 12723841.94 | HU17: 12709912.29 | HV17: 12680874.37 | HW17: 17592522.93 | HX17: 13976033.39 | HY17: 14291618.09 | HZ17: 16032853.38 | IA17: 12689676.54 | IB17: 13264609.09 | IC17: 16049879.11 | ID17: 15286187.29 | IE17: 12516373.3 | IF17: 16059811.76 | IG17: 13714159.46 | IH17: 17288469.52 | II17: 18358861.54 | IJ17: 13857801.66 | IK17: 12405557.77 | IL17: 12315514.32 | IM17: 14673716.11 | IN17: 15499435.05 | IO17: 13315719.82 | IP17: 13871083.51 | IQ17: 15748943.37 | IR17: 12710473.13 | IS17: 15027521.36 | IT17: 13370357.76 | IU17: 14917857.27 | IV17: 16844794.17 | IW17: 14767235.31 | IX17: 15940811.33 | IY17: 16334796.18 | IZ17: 17814109.55 | JA17: 14352443.2 | JB17: 11999396.77 | JC17: 13529117.12 | JD17: 16852024.7 | JE17: 15991255.96 | JF17: 14500596.53 | JG17: 14072903.27 | JH17: 13697494.72 | JI17: 15216976.27 | JJ17: 17419024.19 | JK17: 19260598.56 | JL17: 17004506.45 | JM17: 13223293.04 | JN17: 12927941.96 | JO17: 16997861.21 | JP17: 15484635.16 | JQ17: 16978437.63 | JR17: 16537090.35 | JS17: 16479827.66 | JT17: 14297304.94 | JU17: 13070683.93 | JV17: 16799486.69 | JW17: 15414313.34 | JX17: 12536943.78 | JY17: 16190675.32 | JZ17: 12708706.52 | KA17: 16608345.41 | KB17: 15556089.42 | KC17: 14920949.58 | KD17: 13378196.87 | KE17: 14591209.4 | KF17: 14570395.27 | KG17: 11113683.45 | KH17: 15832163.22 | KI17: 12180857.1 | KJ17: 12618438.37 | KK17: 17316449.58 | KL17: 17359923.01 | KM17: 14216216.76 | KN17: 16325396.49 | KO17: 14156983.78 | KP17: 13619005.89 | KQ17: 18467418.62 | KR17: 14987681.55 | KS17: 18911818.65 | KT17: 19080163.48 | KU17: 15326617.58 | KV17: 13520562.71 | KW17: 14797664.73 | KX17: 15346918.71 | KY17: 15967079.92 | KZ17: 16260773.01 | LA17: 14152422.92 | LB17: 16851541.62 | LC17: 14007783.22 | LD17: 13067009.49 | LE17: 13017442.19 | LF17: 17258469.01 | LG17: 15829806.12 | LH17: 17755108.26 | LI17: 18176403.98 | LJ17: 12532610.8 | LK17: 19742017.88 | LL17: 13374307.93 | LM17: 16109177.35 | LN17: 16103662.58 | LO17: 12540765.46 | LP17: 16189991.62 | LQ17: 16986521.86 | LR17: 16878278.72 | LS17: 14477219.22 | LT17: 9638923.093 | LU17: 16088799.2 | LV17: 17303551.61 | LW17: 13459766.63 | LX17: 14600344.47 | LY17: 17589233.21 | LZ17: 15307336.22 | MA17: 13946981.85 | MB17: 16586252.61 | MC17: 15546726.1 | MD17: 16970293.83 | ME17: 16454855.28 | MF17: 16534331.19 | MG17: 16504156.51 | MH17: 14548756.13 | MI17: 12887669.57 | MJ17: 15784754.01 | MK17: 16440124.96 | ML17: 17634347.97 | MM17: 14628528.12 | MN17: 13114146.54 | MO17: 19699102.87 | MP17: 14325854.23 | MQ17: 14941292.23 | MR17: 16370598.22 | MS17: 17370687.66 | MT17: 15700573.71 | MU17: 16308937.16 | MV17: 12308021.81 | MW17: 16985183.02 | MX17: 12392178.1 | MY17: 16227818.24 | MZ17: 16793995.13 | NA17: 17733649.28 | NB17: 15757094.93 | NC17: 16957149.05 | ND17: 16510564.96 | NE17: 13436887.4 | NF17: 16972721.25 | NG17: 18995497.03 | NH17: 15020126.52 | NI17: 13380383.56 | NJ17: 18346075.2 | NK17: 14695430.97 | NL17: 15281203.4 | NM17: 15998431.12 | NN17: 13585949.77 | NO17: 11974293.24 | NP17: 17164557.59 | NQ17: 15650082.1 | NR17: 14854643.87 | NS17: 16204837.9 | NT17: 17597418.35 | NU17: 17247565.27 | NV17: 14416513.07 | NW17: 11816861.9 | NX17: 17059413.14 | NY17: 17534413.49 | NZ17: 13460275.12 | OA17: 15451979.92 | OB17: 13324797.86 | OC17: 13535975.13 | OD17: 15808435.83 | OE17: 14813866.17 | OF17: 13687672.32 | OG17: 13037069.86 | OH17: 14149298.8 | OI17: 15489976.29 | OJ17: 12433730.75 | OK17: 16059319.98 | OL17: 16478757.98 | OM17: 15965974.23 | ON17: 10610706.42 | OO17: 15437220.54 | OP17: 16830028.03 | OQ17: 16304352.95 | OR17: 14215013.68 | OS17: 16105129.57 | OT17: 17385911.26 | OU17: 14898826.64 | OV17: 15334274.58 | OW17: 14459941.23 | OX17: 15368481.64 | OY17: 17034932.33 | OZ17: 13281468.66 | PA17: 13428328.17 | PB17: 14801951.29 | PC17: 13732518.66 | PD17: 13560604.47 | PE17: 12047342.84 | PF17: 17089747.02 | PG17: 16289000.07 | PH17: 14005944.73 | PI17: 18103871.39 | PJ17: 16013310.36 | PK17: 13206282.07 | PL17: 15400269.79 | PM17: 15106858.56 | PN17: 13604003.03 | PO17: 13454955.75 | PP17: 14491264.63 | PQ17: 16115026.53 | PR17: 15718328.51 | PS17: 13271510 | PT17: 17927913.55 | PU17: 12464728.22 | PV17: 14463725.43 | PW17: 13510596.97 | PX17: 14615259.87 | PY17: 16655679.94 | PZ17: 13657365.52 | QA17: 16434303.4 | QB17: 15238246.11 | QC17: 20035665.37 | QD17: 14456486.25 | QE17: 15838605.9 | QF17: 14104085.78 | QG17: 16707589.04 | QH17: 17417824.53 | QI17: 14474915.35 | QJ17: 14514939.05 | QK17: 14637202.46 | QL17: 14115111.1 | QM17: 13643631.51 | QN17: 15177046.32 | QO17: 15104256.32 | QP17: 16312856.36 | QQ17: 18653170.31 | QR17: 15792966.6 | QS17: 11224269.35 | QT17: 18108408.72 | QU17: 13479257.09 | QV17: 15074123.87 | QW17: 17500538.42 | QX17: 14371136.39 | QY17: 16688348.64 | QZ17: 19577321.84 | RA17: 17056075.54 | RB17: 14736477.7 | RC17: 15502781.98 | RD17: 13076537.68 | RE17: 17868294.46 | RF17: 15058515.76 | RG17: 15265211.7 | RH17: 19322338.08 | RI17: 15637011.85 | RJ17: 16849874.39 | RK17: 14309750.25 | RL17: 14448421.29 | RM17: 18720754.22 | RN17: 14222292.63 | RO17: 19604213.97 | RP17: 17014902.11 | RQ17: 17036477.26 | RR17: 14729815.16 | RS17: 13451977.05 | RT17: 15360560.03 | RU17: 15215984.52 | RV17: 15925374.69 | RW17: 15227485.73 | RX17: 12831694.08 | RY17: 16911436.94 | RZ17: 16334280.07 | SA17: 15254890.5 | SB17: 15314681.45 | SC17: 16047248.95 | SD17: 16370256.49 | SE17: 16125301.06 | SF17: 17976929.91 | SG17: 13278050.97
B18: 12883153.26 | C18: 12481532.41 | D18: 12854611.54 | E18: 17174955.45 | F18: 17116893.04 | G18: 19046773.42 | H18: 14847636.9 | I18: 16248559.74 | J18: 14583905.78 | K18: 16924550.55 | L18: 16469003.67 | M18: 12453299.17 | N18: 17065756.77 | O18: 15176654.11 | P18: 17965329.13 | Q18: 15062804.92 | R18: 14205842.96 | S18: 12287639.92 | T18: 13374637.78 | U18: 14232579.4 | V18: 14132258.2 | W18: 16095456.29 | X18: 13975791.43 | Y18: 15650010.22 | Z18: 17263991.15 | AA18: 15001173.27 | AB18: 12066088.11 | AC18: 18671109.84 | AD18: 14681866.12 | AE18: 17846460.9 | AF18: 18717937 | AG18: 15859769.08 | AH18: 12216072.32 | AI18: 20093070.17 | AJ18: 11839634.2 | AK18: 14455740.93 | AL18: 13390715.45 | AM18: 16579530.44 | AN18: 15312420.34 | AO18: 13948249.22 | AP18: 14596084.92 | AQ18: 14523856.18 | AR18: 14995048.92 | AS18: 17631992.37 | AT18: 16011060.62 | AU18: 15495983.03 | AV18: 14041312.73 | AW18: 17548197.92 | AX18: 15736892.84 | AY18: 16888793.58 | AZ18: 16061451.86 | BA18: 15265937.95 | BB18: 17141257.43 | BC18: 18794360.22 | BD18: 12978324.1 | BE18: 16572116.65 | BF18: 16094174.62 | BG18: 14333861.21 | BH18: 11953229.61 | BI18: 18080433.82 | BJ18: 12918514.78 | BK18: 18662771.41 | BL18: 17635786.58 | BM18: 17020002.65 | BN18: 15657485.7 | BO18: 14942140.52 | BP18: 18182416.05 | BQ18: 15833476.14 | BR18: 16717901.81 | BS18: 17469727.82 | BT18: 16678665.87 | BU18: 14594207.93 | BV18: 14665507.83 | BW18: 12159784.02 | BX18: 14719511.13 | BY18: 14894955.7 | BZ18: 16412727.03 | CA18: 16066368.86 | CB18: 17252014.49 | CC18: 13582807.35 | CD18: 16570479.96 | CE18: 14754429.34 | CF18: 16271741.43 | CG18: 19257058.72 | CH18: 17701932.49 | CI18: 13099473.71 | CJ18: 10619771.61 | CK18: 15674706.74 | CL18: 16002746.31 | CM18: 18660055.44 | CN18: 15815694.37 | CO18: 19279088.36 | CP18: 17720554.07 | CQ18: 15856536.01 | CR18: 12273311.58 | CS18: 13641122.91 | CT18: 16660762.05 | CU18: 15388095.91 | CV18: 13249738.31 | CW18: 14113605.25 | CX18: 17932252.26 | CY18: 16306291.85 | CZ18: 13703394.38 | DA18: 16046149.04 | DB18: 13967227.98 | DC18: 15422097.81 | DD18: 15202391.36 | DE18: 17954555.22 | DF18: 16888909.72 | DG18: 13472874.4 | DH18: 15745330.77 | DI18: 17244830.18 | DJ18: 13490623.15 | DK18: 15353548.64 | DL18: 11528112.43 | DM18: 12192848.46 | DN18: 16834089.63 | DO18: 15552262.5 | DP18: 16849146.92 | DQ18: 14988498.26 | DR18: 16516684.9 | DS18: 17149955.89 | DT18: 14164603.13 | DU18: 14696511.06 | DV18: 14176967.28 | DW18: 13440482.08 | DX18: 12940336.48 | DY18: 16023855.8 | DZ18: 11835522.87 | EA18: 12943920.02 | EB18: 14605553.04 | EC18: 13507586.05 | ED18: 17309902.51 | EE18: 13449718.07 | EF18: 16735433.75 | EG18: 14143106.79 | EH18: 17120481.18 | EI18: 12791327.97 | EJ18: 19068171.14 | EK18: 17637493.05 | EL18: 12532657.71 | EM18: 11986323.38 | EN18: 14673027.83 | EO18: 13455443.04 | EP18: 16423342.36 | EQ18: 17647853.2 | ER18: 16763782.65 | ES18: 14156428.76 | ET18: 15751959.43 | EU18: 13982925 | EV18: 14622006.54 | EW18: 11713850.45 | EX18: 10815125.36 | EY18: 15364282.64 | EZ18: 15952936.99 | FA18: 13166355.99 | FB18: 17505688.44 | FC18: 15059372.16 | FD18: 15657318.33 | FE18: 14170050.65 | FF18: 13841832.82 | FG18: 15164830.21 | FH18: 14789914.29 | FI18: 18970374.59 | FJ18: 16508423.23 | FK18: 13873203.59 | FL18: 17382762.64 | FM18: 16611433.53 | FN18: 15893674.34 | FO18: 18737575.1 | FP18: 15023334.87 | FQ18: 14943293.43 | FR18: 15033661.53 | FS18: 17494069.22 | FT18: 16035080.16 | FU18: 13521681.64 | FV18: 15357448.22 | FW18: 17992373.15 | FX18: 15836105.49 | FY18: 13744590.74 | FZ18: 11631642.08 | GA18: 14234473.08 | GB18: 17842036.34 | GC18: 19184648.34 | GD18: 13964812.12 | GE18: 16679861.55 | GF18: 14612495.75 | GG18: 18471780.62 | GH18: 13957871.73 | GI18: 13826120.36 | GJ18: 14622814.18 | GK18: 14494417.01 | GL18: 18567666.59 | GM18: 13964241.47 | GN18: 13046070.62 | GO18: 18509615.63 | GP18: 16673018.22 | GQ18: 14606942.39 | GR18: 17814775.08 | GS18: 15175664.8 | GT18: 12495014.73 | GU18: 13495197.71 | GV18: 18203221.04 | GW18: 15879667.6 | GX18: 15417701.61 | GY18: 15019920.06 | GZ18: 13465896.44 | HA18: 19748325.83 | HB18: 18805342.23 | HC18: 15255049.84 | HD18: 14307457.21 | HE18: 17617972.61 | HF18: 16949008.6 | HG18: 15728581.59 | HH18: 11936255.95 | HI18: 12313103.98 | HJ18: 14071330.25 | HK18: 14418880.23 | HL18: 15766534.68 | HM18: 14676140.76 | HN18: 18562067.58 | HO18: 16930545.32 | HP18: 12937918.07 | HQ18: 15138319.73 | HR18: 16484297.64 | HS18: 14718274.21 | HT18: 16876328.75 | HU18: 13904220.98 | HV18: 19064895.44 | HW18: 16618525.26 | HX18: 13190604.62 | HY18: 15184088.33 | HZ18: 15953329.87 | IA18: 17052637.1 | IB18: 12335698.59 | IC18: 17568986.92 | ID18: 11947835.66 | IE18: 13016142.84 | IF18: 15717280.18 | IG18: 13424634.91 | IH18: 15006037.6 | II18: 11141607.07 | IJ18: 13476858.17 | IK18: 16561788.65 | IL18: 16024927.32 | IM18: 16396701.91 | IN18: 16061171.2 | IO18: 12688839.5 | IP18: 14344602.01 | IQ18: 12274905.59 | IR18: 17235295.47 | IS18: 13502544.43 | IT18: 15627962.43 | IU18: 14342805.64 | IV18: 19333268.93 | IW18: 15275983.96 | IX18: 10797089.3 | IY18: 11816023.16 | IZ18: 15656085.19 | JA18: 16078010.64 | JB18: 17919401.38 | JC18: 13684645.02 | JD18: 17657030.47 | JE18: 14763462.71 | JF18: 14897152.91 | JG18: 13091149.93 | JH18: 16356808.94 | JI18: 13289600.19 | JJ18: 16769098.6 | JK18: 14198716.1 | JL18: 12733689.61 | JM18: 13153073.94 | JN18: 15294532.97 | JO18: 14279004.35 | JP18: 14272335 | JQ18: 14215219.04 | JR18: 15838038.23 | JS18: 15377939.72 | JT18: 14981867.64 | JU18: 18211006.06 | JV18: 19734341.67 | JW18: 16578444.85 | JX18: 15755616.31 | JY18: 13972090.96 | JZ18: 11720818.81 | KA18: 14975965.47 | KB18: 15235031.86 | KC18: 15622223.52 | KD18: 13159604.38 | KE18: 13509002.45 | KF18: 16994574.02 | KG18: 16412605.45 | KH18: 17930100.67 | KI18: 18129637.79 | KJ18: 19438302.63 | KK18: 13413480.06 | KL18: 15262462.99 | KM18: 17155011.74 | KN18: 15076858.57 | KO18: 17703448.94 | KP18: 13875117.73 | KQ18: 15718618.97 | KR18: 16537670.55 | KS18: 15332958.07 | KT18: 13641045.65 | KU18: 18431489.75 | KV18: 12998372.1 | KW18: 17072132.23 | KX18: 17103630.13 | KY18: 14534748.16 | KZ18: 12049413.6 | LA18: 15058694.85 | LB18: 13379850.52 | LC18: 14851166.87 | LD18: 15113522.06 | LE18: 12387741.73 | LF18: 17487155.86 | LG18: 15967466.5 | LH18: 15891253.45 | LI18: 14448528.24 | LJ18: 14365475.9 | LK18: 15166465.19 | LL18: 11855138.89 | LM18: 18333261.44 | LN18: 16412269.53 | LO18: 15308083.81 | LP18: 18701621.21 | LQ18: 15915087.7 | LR18: 15589157.78 | LS18: 12183313.86 | LT18: 16082711 | LU18: 14096786.19 | LV18: 13129866.34 | LW18: 18376703.68 | LX18: 17663549.28 | LY18: 15647553.71 | LZ18: 16869456.67 | MA18: 14337868.81 | MB18: 16586018.19 | MC18: 14479343.65 | MD18: 14635081.34 | ME18: 18531827.16 | MF18: 16266774.9 | MG18: 15157559.21 | MH18: 16116710.89 | MI18: 13979033.5 | MJ18: 13493563.18 | MK18: 17775574.14 | ML18: 16710924.52 | MM18: 18981180 | MN18: 18853197.94 | MO18: 11925075.45 | MP18: 14911865.42 | MQ18: 16010444.19 | MR18: 16610744.21 | MS18: 15676303.94 | MT18: 16170265.58 | MU18: 17489873.58 | MV18: 13963670.9 | MW18: 14679546.6 | MX18: 11570501.25 | MY18: 15906626.36 | MZ18: 15124027.73 | NA18: 15198134.73 | NB18: 16329395.71 | NC18: 13071188.08 | ND18: 14541257.01 | NE18: 13463739.68 | NF18: 18960973.09 | NG18: 16028642.8 | NH18: 13902439.82 | NI18: 11218657.7 | NJ18: 16645283.11 | NK18: 19235920.72 | NL18: 16102412.99 | NM18: 17289908.03 | NN18: 13907155.54 | NO18: 13515720.03 | NP18: 15176265.83 | NQ18: 17740201.43 | NR18: 11691678.86 | NS18: 16851076.43 | NT18: 16329605.94 | NU18: 14982657.76 | NV18: 13021463.01 | NW18: 17244146.1 | NX18: 14948198 | NY18: 19854225.29 | NZ18: 17264198.87 | OA18: 14951304.94 | OB18: 15268118.52 | OC18: 14330563.51 | OD18: 12343777.04 | OE18: 14892824.79 | OF18: 15519072.97 | OG18: 12943827.23 | OH18: 14587230.46 | OI18: 14499095.16 | OJ18: 16602058.11 | OK18: 13707191.84 | OL18: 13260584.99 | OM18: 19148665.12 | ON18: 15847904.43 | OO18: 13717183.55 | OP18: 15512881.92 | OQ18: 16826827.28 | OR18: 15049124.68 | OS18: 14459026.85 | OT18: 14794137.17 | OU18: 16606024.38 | OV18: 11813371.94 | OW18: 12519562.26 | OX18: 16757276.86 | OY18: 15516617.42 | OZ18: 14487527.67 | PA18: 16995320.66 | PB18: 18268878.72 | PC18: 16752814.74 | PD18: 17402814.22 | PE18: 16929521.46 | PF18: 17401433.66 | PG18: 16786130.98 | PH18: 17485255.83 | PI18: 13656466.92 | PJ18: 14475459.71 | PK18: 17192156.59 | PL18: 15204110.27 | PM18: 18410066.05 | PN18: 15386551.4 | PO18: 17177866.66 | PP18: 17435162.26 | PQ18: 16709354.68 | PR18: 15503758.35 | PS18: 14756053.7 | PT18: 13282312.2 | PU18: 12705958.26 | PV18: 17431568.02 | PW18: 18191702.62 | PX18: 18333114.57 | PY18: 19624090.17 | PZ18: 11945071.17 | QA18: 17056897.78 | QB18: 16901822.7 | QC18: 13181728.81 | QD18: 16478749.21 | QE18: 16966972.97 | QF18: 14460129.01 | QG18: 16407228.81 | QH18: 16038000.84 | QI18: 15205375.09 | QJ18: 19665333.36 | QK18: 13299414.04 | QL18: 15268466.45 | QM18: 14677194.27 | QN18: 15933246.56 | QO18: 8949273.016 | QP18: 16147176.6 | QQ18: 15302960.06 | QR18: 12914175.52 | QS18: 13490608.29 | QT18: 17172472.38 | QU18: 13130651.51 | QV18: 16300072.7 | QW18: 16179080.44 | QX18: 17421599.41 | QY18: 19716593.89 | QZ18: 18204375.78 | RA18: 16484309.17 | RB18: 15050726.89 | RC18: 13913835.25 | RD18: 13878975.69 | RE18: 11396462.82 | RF18: 13939321.34 | RG18: 16058775.15 | RH18: 15494252.73 | RI18: 11776172.64 | RJ18: 17001060.85 | RK18: 15880947.65 | RL18: 15498563.86 | RM18: 16456074.07 | RN18: 14686758.67 | RO18: 11095237.52 | RP18: 14504938.66 | RQ18: 14353671.58 | RR18: 14286419.97 | RS18: 16155399.03 | RT18: 15235129.23 | RU18: 15095978.95 | RV18: 15478780.83 | RW18: 13401316.17 | RX18: 13192714.49 | RY18: 15941219.98 | RZ18: 16695966.47 | SA18: 15529169.23 | SB18: 17301548.59 | SC18: 16801497.66 | SD18: 17112493.07 | SE18: 15195587.27 | SF18: 15396335.69 | SG18: 15014450.74
B19: 17374583.99 | C19: 18220488.87 | D19: 19550952.39 | E19: 15249379.43 | F19: 11094585.41 | G19: 14885457.81 | H19: 15930394.76 | I19: 14182401.26 | J19: 16940760.73 | K19: 15811822.66 | L19: 15669114.2 | M19: 15143184.66 | N19: 15227041.66 | O19: 16255451.42 | P19: 13771291.66 | Q19: 16994729.65 | R19: 16221861.87 | S19: 15176693.61 | T19: 15034407.45 | U19: 10918477.34 | V19: 17611403.57 | W19: 14760481.5 | X19: 14303420.81 | Y19: 14348058.41 | Z19: 14771904.16 | AA19: 16751435.28 | AB19: 18460084.63 | AC19: 16681314.3 | AD19: 15083192.17 | AE19: 11841212.04 | AF19: 12574756.04 | AG19: 11176074.86 | AH19: 17238874.23 | AI19: 13843287.39 | AJ19: 16342899.62 | AK19: 14905720.29 | AL19: 16009416.89 | AM19: 15651267.8 | AN19: 12396358.54 | AO19: 15998374.23 | AP19: 15745061.62 | AQ19: 11874967.75 | AR19: 14148986.33 | AS19: 15096273.56 | AT19: 12285373.06 | AU19: 13173357.12 | AV19: 15382142.87 | AW19: 15859686.69 | AX19: 12060606.18 | AY19: 15268650.17 | AZ19: 12984249.92 | BA19: 11886957.06 | BB19: 15394580.1 | BC19: 10509538.03 | BD19: 14464719.77 | BE19: 14903630.51 | BF19: 16049475.69 | BG19: 11879530.65 | BH19: 12255260.2 | BI19: 15250289.58 | BJ19: 14308026.55 | BK19: 15275372.72 | BL19: 14443915.42 | BM19: 15315247.64 | BN19: 15443453.5 | BO19: 15294820.59 | BP19: 13470178.02 | BQ19: 15521280.02 | BR19: 14399224.98 | BS19: 13378770.07 | BT19: 20349073.68 | BU19: 17309396.58 | BV19: 14254525.27 | BW19: 15216937.6 | BX19: 15418812.71 | BY19: 16747475.38 | BZ19: 15423452.68 | CA19: 19875378.99 | CB19: 17935615.63 | CC19: 14714938.95 | CD19: 12326246.36 | CE19: 14144547.31 | CF19: 13349726 | CG19: 11821505.95 | CH19: 14793416.9 | CI19: 14357503.42 | CJ19: 17406322.96 | CK19: 18362124.3 | CL19: 11621817.54 | CM19: 16302353.25 | CN19: 14313387.93 | CO19: 14007667.53 | CP19: 13941559.34 | CQ19: 12773134.23 | CR19: 17113931.41 | CS19: 14217990.55 | CT19: 16799695.42 | CU19: 13489432.39 | CV19: 15288863.84 | CW19: 19479063.39 | CX19: 17417278.19 | CY19: 13938305.5 | CZ19: 17548551.83 | DA19: 11886007.46 | DB19: 13232554.32 | DC19: 14858297.93 | DD19: 14363363.85 | DE19: 21574530.51 | DF19: 13713343.3 | DG19: 16066457.82 | DH19: 18802960.11 | DI19: 14527168.55 | DJ19: 14411578.67 | DK19: 16574994.4 | DL19: 15300001.69 | DM19: 11883844.42 | DN19: 18570051.94 | DO19: 17332732.13 | DP19: 16614919.78 | DQ19: 13996562.43 | DR19: 12983107.06 | DS19: 17442083.88 | DT19: 13265960.42 | DU19: 16058046.44 | DV19: 15531124.23 | DW19: 17354914.18 | DX19: 18470623.75 | DY19: 13480475.81 | DZ19: 15842228.29 | EA19: 14160904.43 | EB19: 13132461.42 | EC19: 14461202.94 | ED19: 14966576.79 | EE19: 15288429.46 | EF19: 14588691.4 | EG19: 17741656.75 | EH19: 14048685.31 | EI19: 13838866.35 | EJ19: 18725802.42 | EK19: 15455367.94 | EL19: 13404106.24 | EM19: 15342177.28 | EN19: 11054882.47 | EO19: 15971088.86 | EP19: 15290693.79 | EQ19: 14088433.86 | ER19: 12805104.61 | ES19: 14103107.06 | ET19: 14507198.58 | EU19: 16248623.45 | EV19: 16163640.47 | EW19: 15665997.99 | EX19: 13826661.81 | EY19: 16197131.83 | EZ19: 19052259.25 | FA19: 12244029.49 | FB19: 17260327.09 | FC19: 14662539.83 | FD19: 17287799.36 | FE19: 14427568.99 | FF19: 16179245.56 | FG19: 14862301.97 | FH19: 16136733.1 | FI19: 14176594.44 | FJ19: 16016806.45 | FK19: 15551972.13 | FL19: 16065749.88 | FM19: 14783676.09 | FN19: 16551031.97 | FO19: 16917121.56 | FP19: 16042139.71 | FQ19: 16330514.64 | FR19: 13608377.93 | FS19: 15617431.03 | FT19: 16202812.04 | FU19: 14830829.29 | FV19: 13052076.08 | FW19: 16846770.85 | FX19: 14224995.65 | FY19: 15654175.63 | FZ19: 11642617.45 | GA19: 14625914.71 | GB19: 15867155.2 | GC19: 17205994.18 | GD19: 17839521.09 | GE19: 13161135.37 | GF19: 15590892.84 | GG19: 14818690.47 | GH19: 15240524.7 | GI19: 14689794.98 | GJ19: 14335863.87 | GK19: 15334539.64 | GL19: 13759129.5 | GM19: 14719480.03 | GN19: 15140911.68 | GO19: 16894588.31 | GP19: 17694947.57 | GQ19: 19178369.89 | GR19: 16128943.69 | GS19: 15275015.72 | GT19: 15340628.42 | GU19: 14125187.45 | GV19: 16098916.75 | GW19: 15601397.22 | GX19: 16753210.02 | GY19: 17099244.41 | GZ19: 15484799.31 | HA19: 15046380.01 | HB19: 15416340.45 | HC19: 14466802.79 | HD19: 10014844.11 | HE19: 19049410.61 | HF19: 12073099.87 | HG19: 15538232.32 | HH19: 13917575.52 | HI19: 19471744.42 | HJ19: 15415656.39 | HK19: 12711877.64 | HL19: 12320570.25 | HM19: 16087822.03 | HN19: 16428374.97 | HO19: 15266122.01 | HP19: 12127443.96 | HQ19: 19643013.09 | HR19: 17030135.12 | HS19: 17206795.45 | HT19: 10148280.51 | HU19: 15868074.48 | HV19: 18334132.15 | HW19: 17587989.69 | HX19: 14731489.03 | HY19: 14914115.74 | HZ19: 17349027.66 | IA19: 16148554.41 | IB19: 16213857.84 | IC19: 14767851.14 | ID19: 15152962.38 | IE19: 12633667.01 | IF19: 15676268.75 | IG19: 11522697.41 | IH19: 15196298.21 | II19: 12714672.57 | IJ19: 13653206.43 | IK19: 16047395.35 | IL19: 17111533.46 | IM19: 15344418.95 | IN19: 15852126.95 | IO19: 18551134.3 | IP19: 20654058.28 | IQ19: 14386222.17 | IR19: 16637891.15 | IS19: 14334447.25 | IT19: 13546720.96 | IU19: 11009528.16 | IV19: 17026495.36 | IW19: 12544688.39 | IX19: 15883206.16 | IY19: 18158231.03 | IZ19: 15771175.68 | JA19: 16474631.02 | JB19: 15329436.36 | JC19: 12503789.88 | JD19: 13889303.18 | JE19: 12006168.14 | JF19: 13606716.76 | JG19: 14996122.96 | JH19: 12863504.95 | JI19: 17109703.17 | JJ19: 13543029.11 | JK19: 16955798.91 | JL19: 13058249.5 | JM19: 17367064.18 | JN19: 13401477.07 | JO19: 16392990.81 | JP19: 15939674.51 | JQ19: 18603842.91 | JR19: 13916783.54 | JS19: 15626599.13 | JT19: 15558656.92 | JU19: 11903440.43 | JV19: 13771261.15 | JW19: 13365819.01 | JX19: 16377693.41 | JY19: 13214184.29 | JZ19: 12044811.1 | KA19: 15546765.11 | KB19: 15407215.74 | KC19: 15487656.62 | KD19: 14037094.52 | KE19: 16396650.16 | KF19: 15845620.32 | KG19: 15948627.32 | KH19: 14087486.23 | KI19: 17364344.32 | KJ19: 14933750.02 | KK19: 17468674.77 | KL19: 14990662.08 | KM19: 14369737.81 | KN19: 12920214.13 | KO19: 15291342.43 | KP19: 13556621.59 | KQ19: 14937843.48 | KR19: 16056010.02 | KS19: 12506985.9 | KT19: 14751752.33 | KU19: 13454193.45 | KV19: 13099504.28 | KW19: 15844582.1 | KX19: 12662612.27 | KY19: 16472033.17 | KZ19: 15448918.01 | LA19: 13343470.11 | LB19: 14980814.61 | LC19: 13549850.72 | LD19: 13179640.45 | LE19: 15257060.66 | LF19: 16372261.54 | LG19: 12725953.1 | LH19: 15631757.04 | LI19: 15682637.9 | LJ19: 15383300 | LK19: 14525088.25 | LL19: 18412907.91 | LM19: 16267538.91 | LN19: 11451230.66 | LO19: 15911996.85 | LP19: 14448858.69 | LQ19: 13738880.57 | LR19: 17988822.79 | LS19: 14343590.61 | LT19: 20986482.46 | LU19: 13179596.94 | LV19: 15986915.35 | LW19: 15007908.62 | LX19: 16102435.53 | LY19: 17227185.14 | LZ19: 16841098.61 | MA19: 19663998 | MB19: 15096594.28 | MC19: 14621062.9 | MD19: 16214613.99 | ME19: 15931690.27 | MF19: 16352313.14 | MG19: 17537275.41 | MH19: 17745438.04 | MI19: 12194519.43 | MJ19: 14462464.31 | MK19: 16316884.91 | ML19: 14759219.89 | MM19: 14162939.67 | MN19: 13529830.89 | MO19: 14240530.27 | MP19: 16176203.34 | MQ19: 14030325.98 | MR19: 20113497.08 | MS19: 15196167.14 | MT19: 14826449.21 | MU19: 14923741.74 | MV19: 14186210.29 | MW19: 14560960.07 | MX19: 16439692.15 | MY19: 15544809.79 | MZ19: 14607790.27 | NA19: 16371158.78 | NB19: 14254251.92 | NC19: 16319077.13 | ND19: 12232726.97 | NE19: 12477333.2 | NF19: 18536012.4 | NG19: 12568509.75 | NH19: 15669074.11 | NI19: 12479107.4 | NJ19: 18933041.57 | NK19: 16791861.68 | NL19: 17372181.31 | NM19: 14451934.47 | NN19: 13447373.86 | NO19: 15618198.84 | NP19: 15002822.68 | NQ19: 15679915.12 | NR19: 15621707.7 | NS19: 13626279.91 | NT19: 16820681.54 | NU19: 18943829.71 | NV19: 15517284.08 | NW19: 14785487.96 | NX19: 14582175.81 | NY19: 10792480.96 | NZ19: 14442859.43 | OA19: 15044096.85 | OB19: 11334789.52 | OC19: 15953162.25 | OD19: 16653565.75 | OE19: 13943468.13 | OF19: 14484138.12 | OG19: 12876379.87 | OH19: 14314322.47 | OI19: 13405996.4 | OJ19: 15972486.26 | OK19: 15218421.84 | OL19: 15618172.37 | OM19: 15810284.09 | ON19: 14259975.78 | OO19: 14024513.59 | OP19: 17005636.38 | OQ19: 9967519.168 | OR19: 16729758.66 | OS19: 16491036.71 | OT19: 11672687.7 | OU19: 14982755.09 | OV19: 12748885.53 | OW19: 13857871.99 | OX19: 18128051.25 | OY19: 13809309.98 | OZ19: 14576629.97 | PA19: 16936668.81 | PB19: 15231381.01 | PC19: 16744372.71 | PD19: 16842036.58 | PE19: 20593672.3 | PF19: 13223061.18 | PG19: 10849214.75 | PH19: 14895703.46 | PI19: 15650930.77 | PJ19: 14762800.15 | PK19: 15165030.29 | PL19: 12687663.18 | PM19: 16641596.21 | PN19: 16292452.86 | PO19: 15280581.37 | PP19: 11047922.52 | PQ19: 15182502.73 | PR19: 13725328.27 | PS19: 21949932.7 | PT19: 15063183.02 | PU19: 10821189.87 | PV19: 13187878.57 | PW19: 13468178.37 | PX19: 18057664.7 | PY19: 14451357.63 | PZ19: 15762362.61 | QA19: 16007161.63 | QB19: 16054414.88 | QC19: 15199616.12 | QD19: 13569948.71 | QE19: 13009225.19 | QF19: 15326769.71 | QG19: 13652786.23 | QH19: 12180532.67 | QI19: 14496487.56 | QJ19: 16222560.79 | QK19: 11267796.08 | QL19: 13011512.76 | QM19: 16471153.13 | QN19: 15981160.74 | QO19: 11835309.98 | QP19: 14013194.16 | QQ19: 15941971.59 | QR19: 17292281.59 | QS19: 15434641.18 | QT19: 15805167.39 | QU19: 16299993.73 | QV19: 16129200.78 | QW19: 19972606.97 | QX19: 15542860.9 | QY19: 15986283.67 | QZ19: 15355480.97 | RA19: 14401766.15 | RB19: 15690404.72 | RC19: 14483689.21 | RD19: 14569226.99 | RE19: 15467607.1 | RF19: 17898124.82 | RG19: 12730705.15 | RH19: 14689669.93 | RI19: 12409448.56 | RJ19: 12056273.98 | RK19: 13787079.87 | RL19: 13771238.92 | RM19: 10724017.94 | RN19: 15120795.4 | RO19: 11936452.22 | RP19: 15901248.24 | RQ19: 16964939.77 | RR19: 12867763.69 | RS19: 15187599.12 | RT19: 16046199.87 | RU19: 14598300.47 | RV19: 15465684.07 | RW19: 17139815.91 | RX19: 14209915.44 | RY19: 13724943.55 | RZ19: 14929872.03 | SA19: 15607735.65 | SB19: 16913743.45 | SC19: 16013204.71 | SD19: 18969345.23 | SE19: 14328503.7 | SF19: 16378764.64 | SG19: 14317484.26
B20: 15700388.49 | C20: 14399558.91 | D20: 15350834.59 | E20: 16514893.47 | F20: 15306286.96 | G20: 16686441.34 | H20: 14093899.37 | I20: 15739580.09 | J20: 17172290.81 | K20: 15824207.32 | L20: 15277155.67 | M20: 12827962.86 | N20: 17592085.94 | O20: 15431007 | P20: 18248279.9 | Q20: 14460271.35 | R20: 16918353.39 | S20: 14082371.14 | T20: 14889690.95 | U20: 15904299 | V20: 16653745.79 | W20: 15253791.23 | X20: 13829785.42 | Y20: 13636283.78 | Z20: 14332074.79 | AA20: 14552439.41 | AB20: 14338294.55 | AC20: 14278542.17 | AD20: 15594533.19 | AE20: 17683933.26 | AF20: 14630180.17 | AG20: 15798224.8 | AH20: 13582883.49 | AI20: 13160682.2 | AJ20: 14562594.05 | AK20: 14528319.63 | AL20: 17541436.77 | AM20: 15361313.01 | AN20: 13704006.59 | AO20: 15922217.76 | AP20: 16605474.37 | AQ20: 15680781.94 | AR20: 17439995.55 | AS20: 14031935.07 | AT20: 13677399.45 | AU20: 17990357.29 | AV20: 18343152.33 | AW20: 15850373.14 | AX20: 15512300.76 | AY20: 15175786.23 | AZ20: 17120363.11 | BA20: 11982134.49 | BB20: 15921994.69 | BC20: 15523634.4 | BD20: 12800174.96 | BE20: 13636406.04 | BF20: 15342597.52 | BG20: 12359108.34 | BH20: 15600617.9 | BI20: 14239572.66 | BJ20: 14261249.79 | BK20: 16870994.3 | BL20: 14307197.82 | BM20: 18564487.74 | BN20: 16246089.81 | BO20: 15042833.69 | BP20: 17207258.39 | BQ20: 15824945.78 | BR20: 17052099.02 | BS20: 15079454.72 | BT20: 16795861.22 | BU20: 17854143.7 | BV20: 13574217.53 | BW20: 15821928.21 | BX20: 16502790.46 | BY20: 14736628.1 | BZ20: 11915382.64 | CA20: 15698041.09 | CB20: 12488335.24 | CC20: 14673922.64 | CD20: 15632043.4 | CE20: 11274600.25 | CF20: 15946841.22 | CG20: 12630699.01 | CH20: 18388689.96 | CI20: 18477877.15 | CJ20: 11204004.49 | CK20: 13383375.37 | CL20: 12340291.03 | CM20: 17305125.99 | CN20: 15688149.58 | CO20: 15673176.94 | CP20: 17215747.82 | CQ20: 12987298.15 | CR20: 16949478.45 | CS20: 17223966.53 | CT20: 15848838.88 | CU20: 16310792.82 | CV20: 14599972.94 | CW20: 14141872.91 | CX20: 15828949.66 | CY20: 15839448.37 | CZ20: 15189875.29 | DA20: 14483791.5 | DB20: 16170842.5 | DC20: 15788808.76 | DD20: 16716174.64 | DE20: 15159761.42 | DF20: 14082201.94 | DG20: 15211052.36 | DH20: 17061957.89 | DI20: 14732213.8 | DJ20: 16306105.19 | DK20: 13648735.39 | DL20: 15579091.56 | DM20: 16197504.45 | DN20: 14589788.13 | DO20: 15689273.54 | DP20: 13941140.58 | DQ20: 16392559.66 | DR20: 15663702.48 | DS20: 14239263.02 | DT20: 14467561.33 | DU20: 14811699.25 | DV20: 10635710.43 | DW20: 14610482.07 | DX20: 14426252.24 | DY20: 14639384.72 | DZ20: 17417420.22 | EA20: 12560553.4 | EB20: 17365574.46 | EC20: 16474926.6 | ED20: 14625532.36 | EE20: 13483475.29 | EF20: 13601653.28 | EG20: 19600388.11 | EH20: 17787915.36 | EI20: 13350649.9 | EJ20: 14417100.98 | EK20: 15890117.21 | EL20: 14581403.47 | EM20: 15102075.53 | EN20: 12286405.22 | EO20: 15161863.28 | EP20: 14913948.22 | EQ20: 16949906.59 | ER20: 16027252.28 | ES20: 14991874.93 | ET20: 18764151.67 | EU20: 13232587.29 | EV20: 16952900.92 | EW20: 16232293.19 | EX20: 14849572.98 | EY20: 15982534.08 | EZ20: 17184770.64 | FA20: 14045176.48 | FB20: 17893650.16 | FC20: 15996434.27 | FD20: 13945547.8 | FE20: 15430828.78 | FF20: 18014628.55 | FG20: 16394374.28 | FH20: 17223167.6 | FI20: 17677853.78 | FJ20: 13872801.42 | FK20: 14706782.52 | FL20: 13519780.08 | FM20: 15563505.37 | FN20: 12465267.07 | FO20: 15592175.82 | FP20: 17929019.75 | FQ20: 16519046.28 | FR20: 12211884.53 | FS20: 16539744.41 | FT20: 16291860.83 | FU20: 13301681.42 | FV20: 15970167.34 | FW20: 13580677.19 | FX20: 14845773.89 | FY20: 14240228 | FZ20: 12988583.25 | GA20: 13875073.9 | GB20: 13308108.07 | GC20: 12378884.04 | GD20: 16412881.12 | GE20: 11160707.04 | GF20: 13654455.45 | GG20: 14528491.2 | GH20: 16054804.34 | GI20: 16057565.99 | GJ20: 14853577.02 | GK20: 13044110.31 | GL20: 16526086.54 | GM20: 14616675.4 | GN20: 16686071.57 | GO20: 17512493.41 | GP20: 18479380.58 | GQ20: 16249769.2 | GR20: 13782764.47 | GS20: 15342623.52 | GT20: 15224115.11 | GU20: 15342466.5 | GV20: 16440565.62 | GW20: 17734363.97 | GX20: 14682815.23 | GY20: 16465928.22 | GZ20: 15862153.56 | HA20: 12857830.8 | HB20: 15551376.22 | HC20: 13792945.77 | HD20: 12684354.08 | HE20: 13973658.58 | HF20: 14819608.46 | HG20: 14320907.49 | HH20: 14661232.36 | HI20: 17575190.8 | HJ20: 16755821.36 | HK20: 17154370.61 | HL20: 16914497.26 | HM20: 11498115.34 | HN20: 16031277.19 | HO20: 15410154.62 | HP20: 14639048.05 | HQ20: 15086813.89 | HR20: 16770970.19 | HS20: 16153671.45 | HT20: 13425510.52 | HU20: 17924296.84 | HV20: 13513575.67 | HW20: 14236879.55 | HX20: 14756611.5 | HY20: 17174451.28 | HZ20: 16387437.65 | IA20: 14362435.89 | IB20: 15989793.32 | IC20: 20406308.42 | ID20: 13918887.9 | IE20: 12219154.13 | IF20: 12145572.68 | IG20: 16725167.51 | IH20: 11551568.11 | II20: 13078984.61 | IJ20: 15792036.09 | IK20: 14596624.44 | IL20: 11513674.52 | IM20: 13725482.12 | IN20: 16590806.95 | IO20: 18200498.93 | IP20: 14496343.21 | IQ20: 13664959.42 | IR20: 12978817.75 | IS20: 15258785.49 | IT20: 16233415.35 | IU20: 16289207.22 | IV20: 15254384.26 | IW20: 16752000.38 | IX20: 12998810.04 | IY20: 15168575.25 | IZ20: 17071972.23 | JA20: 13180109.08 | JB20: 14323675.35 | JC20: 14656638.07 | JD20: 14748135.37 | JE20: 11448646.45 | JF20: 13031448.08 | JG20: 15066363.84 | JH20: 14190306.6 | JI20: 15563093.36 | JJ20: 14497046.81 | JK20: 11575938.52 | JL20: 17124159 | JM20: 12658386.14 | JN20: 16360776.26 | JO20: 14999147.51 | JP20: 14655754.48 | JQ20: 16567971.71 | JR20: 16130944.13 | JS20: 14095971.5 | JT20: 12551065.29 | JU20: 17102748.01 | JV20: 12731581.41 | JW20: 14546034.11 | JX20: 16012745.7 | JY20: 10740616.46 | JZ20: 17601472.64 | KA20: 15599546.46 | KB20: 15930375.2 | KC20: 12691267.61 | KD20: 15477393.7 | KE20: 15331592.34 | KF20: 15416224.1 | KG20: 19718533.02 | KH20: 15698471.18 | KI20: 16317418.37 | KJ20: 19814882.29 | KK20: 15031685.54 | KL20: 15499030.56 | KM20: 15637401.57 | KN20: 13609825.6 | KO20: 15667718.96 | KP20: 16598070.44 | KQ20: 17129374.52 | KR20: 13621026.41 | KS20: 14202284.57 | KT20: 14280838.96 | KU20: 12701152.28 | KV20: 13098777.26 | KW20: 15906127.46 | KX20: 12357361.37 | KY20: 12077995.36 | KZ20: 15211646.83 | LA20: 16354668.91 | LB20: 13879846.71 | LC20: 15007856.69 | LD20: 14889829.63 | LE20: 15242571.58 | LF20: 20396285.41 | LG20: 13919160.43 | LH20: 13520762.49 | LI20: 14891206.3 | LJ20: 13380497.68 | LK20: 14889575.59 | LL20: 12059360.3 | LM20: 15107600.14 | LN20: 11642364.3 | LO20: 11374415.77 | LP20: 17470892.3 | LQ20: 14126090.65 | LR20: 16363361.88 | LS20: 16492256.66 | LT20: 13794256.25 | LU20: 19818159.75 | LV20: 12558406.27 | LW20: 14837065.96 | LX20: 17761885.46 | LY20: 16353512.09 | LZ20: 13132239.3 | MA20: 16097841.36 | MB20: 12523474.09 | MC20: 17332211.02 | MD20: 15249112.05 | ME20: 13301351.54 | MF20: 17142544.68 | MG20: 15162855.74 | MH20: 11631946.04 | MI20: 13430465.52 | MJ20: 16529887.6 | MK20: 13486560.6 | ML20: 13545754.56 | MM20: 13865095.5 | MN20: 15842845.86 | MO20: 18768912.6 | MP20: 15251385.49 | MQ20: 11857152.36 | MR20: 17347897.04 | MS20: 15043416 | MT20: 14095424.72 | MU20: 14575030.86 | MV20: 14797159.19 | MW20: 13298487.49 | MX20: 14633125.84 | MY20: 15066277.01 | MZ20: 17460492.43 | NA20: 12735137.35 | NB20: 11088425.86 | NC20: 12201475.6 | ND20: 12492040.39 | NE20: 12530631.61 | NF20: 14809722.42 | NG20: 16831325.63 | NH20: 14345045.85 | NI20: 12968373.32 | NJ20: 16362868.22 | NK20: 13587445.76 | NL20: 16545592.82 | NM20: 16261464.88 | NN20: 16574342.19 | NO20: 13960373.43 | NP20: 12373400.3 | NQ20: 11789601.37 | NR20: 15160144.13 | NS20: 13839974.82 | NT20: 16621661.1 | NU20: 14790466.41 | NV20: 14162703.86 | NW20: 17370068.74 | NX20: 14140842.17 | NY20: 17731509.3 | NZ20: 19024619.26 | OA20: 15569063.67 | OB20: 16591039.82 | OC20: 14487497.82 | OD20: 16202407.9 | OE20: 11728076.41 | OF20: 13398209.99 | OG20: 12019864.29 | OH20: 14807764.48 | OI20: 13070569.51 | OJ20: 14458825.42 | OK20: 13964742.23 | OL20: 17084397.02 | OM20: 16264756.19 | ON20: 15316669.47 | OO20: 15200950.71 | OP20: 14424298.33 | OQ20: 14396180.75 | OR20: 18761605.92 | OS20: 19419346.43 | OT20: 16941802.78 | OU20: 16080663.68 | OV20: 16318158.69 | OW20: 13417618.84 | OX20: 18010604.35 | OY20: 13906672.54 | OZ20: 15947332.25 | PA20: 12931955.04 | PB20: 13522144.72 | PC20: 16957805.79 | PD20: 14182196.45 | PE20: 15083325.87 | PF20: 14466406.02 | PG20: 17245007.55 | PH20: 15396045.97 | PI20: 13339854.46 | PJ20: 16021583.98 | PK20: 12390265.81 | PL20: 15980564.64 | PM20: 13768950.27 | PN20: 16627674.45 | PO20: 15488455.22 | PP20: 13764779.57 | PQ20: 18528673.85 | PR20: 15090296.17 | PS20: 18613547.09 | PT20: 14157484.7 | PU20: 16233166.66 | PV20: 13673610.45 | PW20: 17879714.7 | PX20: 16778923.82 | PY20: 13176784.42 | PZ20: 13375168.2 | QA20: 16696930.06 | QB20: 14987731.59 | QC20: 12060042.73 | QD20: 17391627.15 | QE20: 18094683.01 | QF20: 12078917.59 | QG20: 16102758.97 | QH20: 9926892.455 | QI20: 10137552.57 | QJ20: 14216864.68 | QK20: 12475810.37 | QL20: 13654095.36 | QM20: 17606372.38 | QN20: 15566539.29 | QO20: 15365724.34 | QP20: 14618373.7 | QQ20: 16463703.21 | QR20: 19967408.5 | QS20: 15116778.92 | QT20: 17396388.75 | QU20: 15213316.01 | QV20: 14254505.82 | QW20: 13402033.48 | QX20: 14497263.21 | QY20: 13432308.26 | QZ20: 12569057.67 | RA20: 16079832.09 | RB20: 14960657.69 | RC20: 17001031.94 | RD20: 16870306.2 | RE20: 13502286.26 | RF20: 15484238.32 | RG20: 15368471.6 | RH20: 14909490.06 | RI20: 15459663.74 | RJ20: 13141301.54 | RK20: 17000393.83 | RL20: 13246890.35 | RM20: 17194182.85 | RN20: 10637292.96 | RO20: 13605324.29 | RP20: 17160628.59 | RQ20: 14616984.58 | RR20: 14715125.59 | RS20: 16720516.21 | RT20: 17629312.64 | RU20: 16767079.98 | RV20: 14994866.37 | RW20: 17629350.26 | RX20: 14512540.99 | RY20: 16146832.15 | RZ20: 13019854.22 | SA20: 14130308.5 | SB20: 15839226.47 | SC20: 17630531.52 | SD20: 15710887.81 | SE20: 13866454.2 | SF20: 16836410.55 | SG20: 14496293.06
B21: 17153707.69 | C21: 12867999.78 | D21: 15073579.92 | E21: 15662038.26 | F21: 17223252.72 | G21: 17022039.42 | H21: 15289564.96 | I21: 15451322.38 | J21: 17312226.6 | K21: 12422259 | L21: 15243388.74 | M21: 13417708.09 | N21: 13417804.44 | O21: 15477887.24 | P21: 15882138.17 | Q21: 16530896.37 | R21: 12040879.93 | S21: 15591316.65 | T21: 15621841.38 | U21: 13486971.59 | V21: 18347427.82 | W21: 10242667.68 | X21: 14782228.15 | Y21: 14817229.69 | Z21: 14157465.27 | AA21: 14883863.37 | AB21: 16095884.59 | AC21: 13744729.61 | AD21: 16018748.49 | AE21: 16053134.3 | AF21: 16962434.31 | AG21: 19570454.85 | AH21: 14625771.58 | AI21: 13617899.1 | AJ21: 16775657.17 | AK21: 13140257.31 | AL21: 17640220.15 | AM21: 14817328.6 | AN21: 17030832.07 | AO21: 15122254.77 | AP21: 17338708.28 | AQ21: 15155907.91 | AR21: 14467904.62 | AS21: 16333137.99 | AT21: 15838794.2 | AU21: 13158126.77 | AV21: 14810958.75 | AW21: 12635749.29 | AX21: 14157974 | AY21: 14314283.61 | AZ21: 18787931.23 | BA21: 14165633.2 | BB21: 13776091.49 | BC21: 19392644.44 | BD21: 16099061.04 | BE21: 16094160.32 | BF21: 15076288.08 | BG21: 16043885.57 | BH21: 13045573.84 | BI21: 11256059.28 | BJ21: 15243460.03 | BK21: 14990211.46 | BL21: 15223564.08 | BM21: 17137351.5 | BN21: 15804469.64 | BO21: 16846473.88 | BP21: 13288449.28 | BQ21: 11856445.9 | BR21: 15004381.18 | BS21: 14910416.6 | BT21: 16631866.45 | BU21: 16578351.62 | BV21: 15375704.28 | BW21: 14596207.74 | BX21: 14152244.3 | BY21: 14866000.14 | BZ21: 13761508.97 | CA21: 12340832.59 | CB21: 17295478.18 | CC21: 19002625.15 | CD21: 13626509.76 | CE21: 18121460.6 | CF21: 16353432.44 | CG21: 17733039.53 | CH21: 14644896.46 | CI21: 15645740.21 | CJ21: 14002646.44 | CK21: 15754030.21 | CL21: 14770236.25 | CM21: 14644519.12 | CN21: 12535924.73 | CO21: 13645654.73 | CP21: 13092498.75 | CQ21: 12958382.46 | CR21: 18409823.26 | CS21: 19662748.62 | CT21: 12335405.38 | CU21: 13012488.81 | CV21: 18885161.48 | CW21: 16920132.16 | CX21: 13069559.32 | CY21: 12184106.07 | CZ21: 16631642.34 | DA21: 14646599.31 | DB21: 16997912.62 | DC21: 11983628.21 | DD21: 14333158.6 | DE21: 12883482.9 | DF21: 16734030.06 | DG21: 14622297.56 | DH21: 16317326.71 | DI21: 10590317.66 | DJ21: 16087283.05 | DK21: 16230357.47 | DL21: 15625062.51 | DM21: 12979201.45 | DN21: 16839113.91 | DO21: 13560389.15 | DP21: 18514522.46 | DQ21: 15211165 | DR21: 17867173.37 | DS21: 17673429.97 | DT21: 16826186.18 | DU21: 16685182.99 | DV21: 13032476.95 | DW21: 13378476.76 | DX21: 13107635.54 | DY21: 13149663.75 | DZ21: 14567424.35 | EA21: 16467390 | EB21: 17013671.19 | EC21: 15536948.65 | ED21: 13499599.94 | EE21: 15377885.2 | EF21: 16387414.37 | EG21: 13868120.26 | EH21: 16356735.29 | EI21: 13555776.7 | EJ21: 16162933.16 | EK21: 15646912.93 | EL21: 16114812.46 | EM21: 13796765.04 | EN21: 14091175.9 | EO21: 13558857.01 | EP21: 15353954.17 | EQ21: 15809220.1 | ER21: 18550628.89 | ES21: 14339832.51 | ET21: 14104648.05 | EU21: 18580366.48 | EV21: 14594976.29 | EW21: 14106818.89 | EX21: 15888373.07 | EY21: 15460694.01 | EZ21: 13804729.13 | FA21: 17256469.93 | FB21: 15980592 | FC21: 13963102.28 | FD21: 12008806.14 | FE21: 20086050.09 | FF21: 16008481.66 | FG21: 15522302.09 | FH21: 14062005.32 | FI21: 15511117.4 | FJ21: 16129422.31 | FK21: 14941763.32 | FL21: 13663105.49 | FM21: 12793289.82 | FN21: 15160377.08 | FO21: 11117868.17 | FP21: 12087773.63 | FQ21: 16559258.29 | FR21: 14794616.25 | FS21: 15573242.01 | FT21: 13589378.9 | FU21: 13947008.39 | FV21: 16759271.68 | FW21: 13441129.29 | FX21: 17007407.82 | FY21: 14631510.29 | FZ21: 13888233.8 | GA21: 14958103.88 | GB21: 18511504.55 | GC21: 14362112.68 | GD21: 17256090.39 | GE21: 14424791.07 | GF21: 16038272.88 | GG21: 15342328.28 | GH21: 15246691.38 | GI21: 14952752.34 | GJ21: 15911123.68 | GK21: 15711727.21 | GL21: 13471632.39 | GM21: 17177762.44 | GN21: 15336456.74 | GO21: 16219326.01 | GP21: 17493398.46 | GQ21: 16599715.67 | GR21: 15435836.02 | GS21: 15691134.42 | GT21: 15875239.96 | GU21: 14955773.8 | GV21: 13764974.67 | GW21: 15175542.72 | GX21: 12942690.21 | GY21: 14238201.56 | GZ21: 14927419.75 | HA21: 14136793.4 | HB21: 16634759.78 | HC21: 12390297.54 | HD21: 17768483.1 | HE21: 18391080.84 | HF21: 14832669.18 | HG21: 15097627.69 | HH21: 15783833.25 | HI21: 15449229.53 | HJ21: 15470243.94 | HK21: 18291664.46 | HL21: 15547402.85 | HM21: 15836635.69 | HN21: 13692669.48 | HO21: 16942315.63 | HP21: 12974532.02 | HQ21: 17250851.53 | HR21: 13316088.01 | HS21: 15979330.17 | HT21: 16846735.23 | HU21: 15706497.27 | HV21: 14480930.9 | HW21: 15655223.22 | HX21: 14940253.09 | HY21: 12117347.07 | HZ21: 13840665.91 | IA21: 15313075.24 | IB21: 15868223.61 | IC21: 12846165.28 | ID21: 15297272.84 | IE21: 14470023.38 | IF21: 15341645.18 | IG21: 18174786.01 | IH21: 14921055.23 | II21: 15561310.93 | IJ21: 14487096.2 | IK21: 18275420.04 | IL21: 15431801.94 | IM21: 13924048.26 | IN21: 15246249.53 | IO21: 12974258.71 | IP21: 15228351.8 | IQ21: 15741207.12 | IR21: 13388317.22 | IS21: 12417005.55 | IT21: 18047120.58 | IU21: 18214961.64 | IV21: 11835038.79 | IW21: 14702840.37 | IX21: 18068989.92 | IY21: 15541311.81 | IZ21: 15417927.48 | JA21: 17565921.64 | JB21: 14661656.2 | JC21: 17488637.07 | JD21: 16532669.85 | JE21: 12293988.87 | JF21: 13409009.54 | JG21: 17438809.32 | JH21: 14565698.34 | JI21: 14443196.72 | JJ21: 14913240.91 | JK21: 15599793.15 | JL21: 17334818.34 | JM21: 16707592.32 | JN21: 13277601.45 | JO21: 18130781.39 | JP21: 12915631.01 | JQ21: 16909644.43 | JR21: 18868250.31 | JS21: 12326712.34 | JT21: 15949086.01 | JU21: 14804042.52 | JV21: 12083946.61 | JW21: 15809219.2 | JX21: 17519249.81 | JY21: 19477462.6 | JZ21: 13033067.22 | KA21: 14736207.85 | KB21: 11125059.48 | KC21: 15642765.44 | KD21: 13328962.01 | KE21: 16476396.16 | KF21: 15896351.47 | KG21: 15181729.66 | KH21: 12703801.97 | KI21: 15239800.31 | KJ21: 17476686.91 | KK21: 13387508.78 | KL21: 12929195.7 | KM21: 16636110.94 | KN21: 15058645.62 | KO21: 13208897.05 | KP21: 15435173.27 | KQ21: 15070377.51 | KR21: 15753886.52 | KS21: 16972505.66 | KT21: 16258061.51 | KU21: 15857931.63 | KV21: 17930514.1 | KW21: 17580877.24 | KX21: 20477641.89 | KY21: 12734904.56 | KZ21: 15135759.67 | LA21: 15800570.87 | LB21: 15124059.53 | LC21: 13658892.16 | LD21: 15931395.84 | LE21: 15161956.15 | LF21: 15525775.9 | LG21: 17830038.42 | LH21: 15909720.78 | LI21: 16797614.32 | LJ21: 14461259.33 | LK21: 17122854.95 | LL21: 11877512.83 | LM21: 17461093.79 | LN21: 15571299.26 | LO21: 18187914.99 | LP21: 15664267.91 | LQ21: 15431749.3 | LR21: 13835880.96 | LS21: 17617851.07 | LT21: 17727399.71 | LU21: 13412830.16 | LV21: 15167347.04 | LW21: 16060949.92 | LX21: 12888619.46 | LY21: 15152723.3 | LZ21: 12829320.64 | MA21: 16922222.4 | MB21: 16592951.52 | MC21: 19205325.47 | MD21: 15054739.38 | ME21: 19422609.22 | MF21: 20175977.19 | MG21: 13782528.23 | MH21: 16679676.64 | MI21: 14260346.6 | MJ21: 18734500.37 | MK21: 15564640.65 | ML21: 18813273.23 | MM21: 15741830 | MN21: 14957321.06 | MO21: 17453247.45 | MP21: 9632699.072 | MQ21: 14819229.26 | MR21: 14080523.62 | MS21: 15556227.06 | MT21: 15353109.41 | MU21: 17323297.07 | MV21: 16992009.86 | MW21: 13132334.96 | MX21: 17067339.95 | MY21: 14271254 | MZ21: 13363672.66 | NA21: 14266791.73 | NB21: 15804491.37 | NC21: 15585953.32 | ND21: 16230445.17 | NE21: 15528938.42 | NF21: 13143567.48 | NG21: 16882557.93 | NH21: 12276879.24 | NI21: 15213823.85 | NJ21: 13563461.42 | NK21: 14759262.78 | NL21: 16501361.92 | NM21: 15780887.2 | NN21: 11649511.82 | NO21: 14563453.76 | NP21: 15026695.19 | NQ21: 13934618.76 | NR21: 15532170.25 | NS21: 16533573.87 | NT21: 16030426.1 | NU21: 17468988.47 | NV21: 13002314.69 | NW21: 14016833.73 | NX21: 17237162.05 | NY21: 17091660.71 | NZ21: 14705554.84 | OA21: 17246946.71 | OB21: 16032558.59 | OC21: 12692138.75 | OD21: 14615658.89 | OE21: 16816812.09 | OF21: 12677293.99 | OG21: 16545908.39 | OH21: 17099394.26 | OI21: 15116071.2 | OJ21: 17821303.1 | OK21: 15614988.51 | OL21: 18018156.4 | OM21: 16910237.49 | ON21: 15869430.46 | OO21: 15223273.72 | OP21: 16270533.9 | OQ21: 13268981.94 | OR21: 14480240.65 | OS21: 17460868 | OT21: 16353545.53 | OU21: 14454090.39 | OV21: 16471960.41 | OW21: 13746945.14 | OX21: 15680064.58 | OY21: 17281359.51 | OZ21: 15950232.88 | PA21: 16590673.82 | PB21: 12940081.74 | PC21: 15193153.75 | PD21: 15686820.11 | PE21: 15257028.02 | PF21: 13693777.53 | PG21: 15827402.16 | PH21: 13176978.13 | PI21: 14969973.13 | PJ21: 12404481.21 | PK21: 14033340.13 | PL21: 12708062.62 | PM21: 16552202.2 | PN21: 15186389.52 | PO21: 13655422.43 | PP21: 15657269.1 | PQ21: 12920961.27 | PR21: 16514766.55 | PS21: 14700422.32 | PT21: 16370366.72 | PU21: 17257445.65 | PV21: 16553486.32 | PW21: 15246586.54 | PX21: 15703530.19 | PY21: 13713582.4 | PZ21: 18475668.09 | QA21: 17539827.55 | QB21: 16051367.62 | QC21: 12671209.93 | QD21: 16283145.55 | QE21: 15109904.17 | QF21: 17729858.45 | QG21: 18357441.11 | QH21: 16343904.39 | QI21: 10923373.45 | QJ21: 17744191.21 | QK21: 13215395.13 | QL21: 14945702.97 | QM21: 13461604.42 | QN21: 15187546.89 | QO21: 14927700.32 | QP21: 19743304.02 | QQ21: 16085310.04 | QR21: 13138499.6 | QS21: 13471700.14 | QT21: 15427388.63 | QU21: 14241544.81 | QV21: 13500087.21 | QW21: 14577264.31 | QX21: 13539631.54 | QY21: 14220142.39 | QZ21: 17414415.04 | RA21: 12247199.01 | RB21: 13247039.19 | RC21: 16417612.49 | RD21: 15016235.57 | RE21: 15898807.91 | RF21: 14696037.37 | RG21: 14582808.44 | RH21: 14364971.36 | RI21: 15425887.25 | RJ21: 13992113.61 | RK21: 15996377.67 | RL21: 14524646.66 | RM21: 15847295.93 | RN21: 17021185.9 | RO21: 16283591.91 | RP21: 14166341.43 | RQ21: 14905797.34 | RR21: 16915426.08 | RS21: 16408086.36 | RT21: 14726019.61 | RU21: 14883459.6 | RV21: 14055370.07 | RW21: 13061464.94 | RX21: 15667454.39 | RY21: 15347548.43 | RZ21: 15867146.06 | SA21: 15645250.12 | SB21: 16571015.5 | SC21: 15575535 | SD21: 16501637.27 | SE21: 11925703.11 | SF21: 13825423.18 | SG21: 10795060.79
B22: 16257118.08 | C22: 12263029.9 | D22: 16173303.25 | E22: 15499144.84 | F22: 14347536.53 | G22: 17589856.99 | H22: 13988438.23 | I22: 16056943.51 | J22: 16353345.56 | K22: 15711568.82 | L22: 14546155.72 | M22: 15067595.75 | N22: 17291073.71 | O22: 15179290.82 | P22: 15400486.13 | Q22: 14068287.36 | R22: 15382248.98 | S22: 16363939.73 | T22: 14627552.36 | U22: 15919760.26 | V22: 18845638.81 | W22: 13901888.65 | X22: 13529413.58 | Y22: 15942392.15 | Z22: 16377877.95 | AA22: 14489259.76 | AB22: 17840908.7 | AC22: 15313184.05 | AD22: 15663505.75 | AE22: 11790139.96 | AF22: 15300869.98 | AG22: 14907707.27 | AH22: 16738975.67 | AI22: 13941979.34 | AJ22: 12560443.38 | AK22: 14847212.83 | AL22: 14773679.37 | AM22: 12212042.5 | AN22: 14214926.04 | AO22: 14568226.74 | AP22: 18603375.35 | AQ22: 17407789.69 | AR22: 14592027.24 | AS22: 13353741.76 | AT22: 14724198.32 | AU22: 15535851.08 | AV22: 13919910.3 | AW22: 17438406.49 | AX22: 17099582.94 | AY22: 15246000.85 | AZ22: 15779638.46 | BA22: 15510916.84 | BB22: 15593281.45 | BC22: 12641289.83 | BD22: 15497453.98 | BE22: 18748019.92 | BF22: 14425001.87 | BG22: 15852658.35 | BH22: 14643313.42 | BI22: 14417259.72 | BJ22: 17740926.37 | BK22: 16161555.88 | BL22: 13810862.75 | BM22: 13804546.51 | BN22: 11661930.71 | BO22: 15207537.17 | BP22: 16284156.63 | BQ22: 17177780.22 | BR22: 17256250.6 | BS22: 14281099.42 | BT22: 13261941.52 | BU22: 14833043.99 | BV22: 15940831.34 | BW22: 18965533.87 | BX22: 15355190.47 | BY22: 15477025.19 | BZ22: 13761557.88 | CA22: 14854889.18 | CB22: 18480636.89 | CC22: 12341124.06 | CD22: 14143348.05 | CE22: 14634661.55 | CF22: 12083423.54 | CG22: 16775380.24 | CH22: 14976726.45 | CI22: 12799839.48 | CJ22: 13750919.52 | CK22: 15886554.72 | CL22: 12234865.95 | CM22: 14295279.51 | CN22: 14907998.68 | CO22: 12105834.79 | CP22: 12361009.34 | CQ22: 15418908.23 | CR22: 17012459.58 | CS22: 14988730.88 | CT22: 15513940.73 | CU22: 13824546.58 | CV22: 15668499.7 | CW22: 12454436.01 | CX22: 14811530.09 | CY22: 11220120.11 | CZ22: 15534379.87 | DA22: 17047410.64 | DB22: 10052500.96 | DC22: 15491467.66 | DD22: 13313445.26 | DE22: 14553204.4 | DF22: 19283945.96 | DG22: 13429329.08 | DH22: 15058922.77 | DI22: 17086498.52 | DJ22: 13692396.01 | DK22: 15184933.48 | DL22: 14589108.01 | DM22: 16097177.48 | DN22: 16270290 | DO22: 17670398.44 | DP22: 16055801.42 | DQ22: 15125239.53 | DR22: 13766834.93 | DS22: 15945065.9 | DT22: 16040018.68 | DU22: 13459041.07 | DV22: 13543762.7 | DW22: 15519271.6 | DX22: 20114981.44 | DY22: 12036275.51 | DZ22: 15984035.71 | EA22: 17416655.85 | EB22: 13692845.15 | EC22: 16712411.64 | ED22: 15968776.69 | EE22: 16892785.91 | EF22: 13216662.13 | EG22: 14066279.05 | EH22: 15674430.03 | EI22: 15393352.88 | EJ22: 14613406.59 | EK22: 14820821.91 | EL22: 14398634.82 | EM22: 17350796.77 | EN22: 15964251.78 | EO22: 15680856.55 | EP22: 16457437.36 | EQ22: 14495518.8 | ER22: 14789581.24 | ES22: 16592902.93 | ET22: 17277059.09 | EU22: 15157280.73 | EV22: 16565284.5 | EW22: 17064095.6 | EX22: 14099186.89 | EY22: 13341363.26 | EZ22: 14045434.52 | FA22: 14996645.06 | FB22: 12186153.9 | FC22: 13115763.3 | FD22: 16075448.51 | FE22: 14564084.58 | FF22: 20454636.59 | FG22: 17023533.83 | FH22: 13424049.4 | FI22: 15479642.56 | FJ22: 16586895.69 | FK22: 11024441.93 | FL22: 17167578.41 | FM22: 17219465.92 | FN22: 17121115.91 | FO22: 14723492.14 | FP22: 18219202.03 | FQ22: 13579168.49 | FR22: 14674249.73 | FS22: 18470442.02 | FT22: 16159268.5 | FU22: 15942137.56 | FV22: 17449596.77 | FW22: 14159815.06 | FX22: 15500798.97 | FY22: 14244498.58 | FZ22: 13687028.63 | GA22: 15979222.26 | GB22: 14589546.55 | GC22: 14028767.99 | GD22: 17289793.4 | GE22: 11689760.65 | GF22: 16390824.79 | GG22: 14360964.78 | GH22: 17110566.63 | GI22: 15959074.83 | GJ22: 17809431.74 | GK22: 15350075.51 | GL22: 14835308.87 | GM22: 15554546.58 | GN22: 15879931.45 | GO22: 16187037.82 | GP22: 17799081.11 | GQ22: 14831863.33 | GR22: 15165747.04 | GS22: 15218691.5 | GT22: 17433929.29 | GU22: 12692677.7 | GV22: 15547245.44 | GW22: 15377300.7 | GX22: 13363637.14 | GY22: 12737956.76 | GZ22: 16413293.68 | HA22: 10231424.42 | HB22: 14685650.88 | HC22: 16809260.75 | HD22: 17232035.97 | HE22: 14666284.74 | HF22: 15744721.93 | HG22: 14967372.24 | HH22: 18362872.62 | HI22: 16039093.83 | HJ22: 13658127.74 | HK22: 14947764.54 | HL22: 16908629.75 | HM22: 12589464.76 | HN22: 14907013.74 | HO22: 11971060.5 | HP22: 17010497.69 | HQ22: 14332704.41 | HR22: 11788159.88 | HS22: 13189928.27 | HT22: 16586039.75 | HU22: 17415894.82 | HV22: 12559452.38 | HW22: 15893841.44 | HX22: 14042455.62 | HY22: 15418672.81 | HZ22: 14532473.51 | IA22: 13693515.22 | IB22: 14104427.88 | IC22: 13693459.68 | ID22: 16352634.24 | IE22: 16634698.44 | IF22: 14123517.73 | IG22: 13936271.01 | IH22: 15313747.98 | II22: 13909773.45 | IJ22: 13403575.45 | IK22: 11473830.08 | IL22: 14219124.96 | IM22: 15503550.09 | IN22: 16010249.18 | IO22: 16450903.04 | IP22: 13359904.31 | IQ22: 15290773.43 | IR22: 13325561.27 | IS22: 15966966.07 | IT22: 16173595.83 | IU22: 17635805.59 | IV22: 14964603.89 | IW22: 16749875.16 | IX22: 18045956.33 | IY22: 16774562.49 | IZ22: 15480947.11 | JA22: 15330876.19 | JB22: 18677652.43 | JC22: 16806318.67 | JD22: 15925531.61 | JE22: 16590469.83 | JF22: 14259715.01 | JG22: 16495793.66 | JH22: 15287729.93 | JI22: 17125960.59 | JJ22: 13201841.9 | JK22: 16494861.64 | JL22: 18886976.02 | JM22: 17763936.48 | JN22: 16888107.71 | JO22: 14384633.37 | JP22: 11638261.35 | JQ22: 15575713.6 | JR22: 11960053.21 | JS22: 15720668.12 | JT22: 15648079.4 | JU22: 13349199.15 | JV22: 18647898.32 | JW22: 13981261.13 | JX22: 15618929.45 | JY22: 14897468.78 | JZ22: 14557939.06 | KA22: 15079858.64 | KB22: 13198479.46 | KC22: 14188478.17 | KD22: 15561873.03 | KE22: 14460026.05 | KF22: 17041698.92 | KG22: 16172654.41 | KH22: 14614113.76 | KI22: 16391299.26 | KJ22: 15180887.08 | KK22: 15815374.86 | KL22: 14418800.36 | KM22: 13600955.89 | KN22: 16897230.62 | KO22: 16130093.61 | KP22: 15825063.31 | KQ22: 10883261.47 | KR22: 12419801.73 | KS22: 18025980.19 | KT22: 14141866.48 | KU22: 13537206.68 | KV22: 15034731.68 | KW22: 13395697.69 | KX22: 14409343.69 | KY22: 16727145.2 | KZ22: 17975927.45 | LA22: 12566570.03 | LB22: 16018770.85 | LC22: 13054702.1 | LD22: 15597340.15 | LE22: 15149759.28 | LF22: 15717911.17 | LG22: 15831977.84 | LH22: 10619705.31 | LI22: 15314819.8 | LJ22: 14633263.76 | LK22: 15600597.13 | LL22: 14461880 | LM22: 14701505.2 | LN22: 14015793.94 | LO22: 17367605.61 | LP22: 15292761.43 | LQ22: 19185536.48 | LR22: 12249435.77 | LS22: 17308879.3 | LT22: 15392972.67 | LU22: 14713661.57 | LV22: 19210163.87 | LW22: 12778555.01 | LX22: 18647746.19 | LY22: 15750676.5 | LZ22: 16791138.11 | MA22: 17250043.5 | MB22: 14053178.62 | MC22: 17082084.58 | MD22: 13667217.97 | ME22: 16535431.31 | MF22: 16667680.08 | MG22: 15007638.83 | MH22: 15258664.1 | MI22: 17079992.04 | MJ22: 11804284.67 | MK22: 14344387.23 | ML22: 13907845.99 | MM22: 13664355.63 | MN22: 19028515.63 | MO22: 17360509.71 | MP22: 13427655.08 | MQ22: 16683361.04 | MR22: 16203366.64 | MS22: 12100483.46 | MT22: 17991737.35 | MU22: 18906087.48 | MV22: 15045129.26 | MW22: 18276563.95 | MX22: 16631739.36 | MY22: 11576734.01 | MZ22: 12941686.27 | NA22: 12262228.25 | NB22: 15266583.19 | NC22: 14876488.77 | ND22: 14593031.46 | NE22: 13722974.12 | NF22: 17254740.06 | NG22: 12025603.13 | NH22: 17877565.76 | NI22: 19923038.88 | NJ22: 15190862.41 | NK22: 18371556.16 | NL22: 9926240.629 | NM22: 13763778.1 | NN22: 17129010.89 | NO22: 13798932.06 | NP22: 13662987.65 | NQ22: 13564003.01 | NR22: 14481378.11 | NS22: 14646765.83 | NT22: 14523167.4 | NU22: 17071870.71 | NV22: 13959797.51 | NW22: 11801289.74 | NX22: 14747867.97 | NY22: 14735618.6 | NZ22: 16621203.74 | OA22: 14275827.57 | OB22: 12768537.4 | OC22: 15695567.93 | OD22: 16064589.37 | OE22: 15111854.91 | OF22: 15418315.29 | OG22: 14212200.72 | OH22: 13976995.2 | OI22: 14383174.08 | OJ22: 16006104.43 | OK22: 15218927.94 | OL22: 14573152.13 | OM22: 16440192.47 | ON22: 15839947.49 | OO22: 16450532.91 | OP22: 16138056.84 | OQ22: 16257490.95 | OR22: 19174199.87 | OS22: 13950932.78 | OT22: 14850236.44 | OU22: 19306538.06 | OV22: 16433902.33 | OW22: 15172651.58 | OX22: 17390960.85 | OY22: 14233757.97 | OZ22: 12316449.12 | PA22: 16281128.67 | PB22: 14947698.28 | PC22: 14667848.81 | PD22: 14751734.86 | PE22: 18386508.72 | PF22: 13379628.78 | PG22: 14813721.54 | PH22: 14804282 | PI22: 15171852.8 | PJ22: 17881021.38 | PK22: 15299398.47 | PL22: 15551267.13 | PM22: 14838506.44 | PN22: 14689691.59 | PO22: 16030895.73 | PP22: 16662940.45 | PQ22: 14085204.78 | PR22: 14606864.01 | PS22: 16142137.2 | PT22: 12256360.16 | PU22: 16210400.03 | PV22: 12319090.8 | PW22: 17832771.86 | PX22: 16093710.85 | PY22: 15780252.12 | PZ22: 13105102.08 | QA22: 12810438.91 | QB22: 14556251.34 | QC22: 14872095.73 | QD22: 12833731.59 | QE22: 13211800.75 | QF22: 16440262.82 | QG22: 13312369.28 | QH22: 14441992.98 | QI22: 17107313.86 | QJ22: 15554548.22 | QK22: 15805366.53 | QL22: 12500451.1 | QM22: 11764540.02 | QN22: 14041992.32 | QO22: 12884861.89 | QP22: 11326836.75 | QQ22: 18015714.51 | QR22: 19123815.69 | QS22: 12010989.53 | QT22: 17181461.4 | QU22: 15260953.66 | QV22: 14684739.72 | QW22: 16795513.76 | QX22: 15261545.55 | QY22: 13144934.11 | QZ22: 13543076.87 | RA22: 15291364.85 | RB22: 15359773.68 | RC22: 17382998.86 | RD22: 12352480.47 | RE22: 15406263.86 | RF22: 17930633.41 | RG22: 12201253.59 | RH22: 15729318.23 | RI22: 13953789.43 | RJ22: 18261565.18 | RK22: 17899039.99 | RL22: 13873256.43 | RM22: 16088745.71 | RN22: 15252190.73 | RO22: 16256678.07 | RP22: 16536013.19 | RQ22: 18235367.73 | RR22: 16981896.24 | RS22: 14487399.5 | RT22: 12658046.58 | RU22: 12684490.58 | RV22: 18704100.55 | RW22: 13593875.09 | RX22: 13147983.71 | RY22: 13709728.4 | RZ22: 16976078.51 | SA22: 15391139.36 | SB22: 16874165.24 | SC22: 16099279.49 | SD22: 15411959.95 | SE22: 16209617.11 | SF22: 16645983.72 | SG22: 16427349.36
B23: 15633387.16 | C23: 13647440.18 | D23: 18408862.54 | E23: 11831446.96 | F23: 11513250.25 | G23: 17906235.59 | H23: 16536510.12 | I23: 15691276.14 | J23: 16850040.28 | K23: 16059940.22 | L23: 15495032.28 | M23: 15138724.81 | N23: 18155008.01 | O23: 18172205.34 | P23: 17980436.97 | Q23: 15691977.4 | R23: 15399256.08 | S23: 12070399.42 | T23: 12635818.48 | U23: 13514072.71 | V23: 14522767.59 | W23: 15779133.05 | X23: 15932660.33 | Y23: 15474288.09 | Z23: 17873783.85 | AA23: 16552379.15 | AB23: 15408027.6 | AC23: 14397577.2 | AD23: 17236512.96 | AE23: 14409462.88 | AF23: 13487008.84 | AG23: 16362727.44 | AH23: 14707306.88 | AI23: 14272078.42 | AJ23: 14433636.49 | AK23: 18423337.87 | AL23: 16487273.42 | AM23: 13829088.45 | AN23: 17517860.23 | AO23: 15674511.72 | AP23: 16133499.65 | AQ23: 14879660.67 | AR23: 13745742.38 | AS23: 14585611.7 | AT23: 13504046.19 | AU23: 15753768.82 | AV23: 13459950.31 | AW23: 15209241.97 | AX23: 15482644.37 | AY23: 11433935.34 | AZ23: 16229093.4 | BA23: 15916707.69 | BB23: 18616979.87 | BC23: 14954878.81 | BD23: 16127670.27 | BE23: 15737292.65 | BF23: 18903345.3 | BG23: 15606854.6 | BH23: 16339491.34 | BI23: 14318596.66 | BJ23: 15804855.4 | BK23: 11326489.83 | BL23: 13745964.21 | BM23: 16094942.23 | BN23: 15858092.55 | BO23: 17115178.85 | BP23: 14456354.15 | BQ23: 16693637.93 | BR23: 12174906.6 | BS23: 16236431.6 | BT23: 15629957.51 | BU23: 15939532.96 | BV23: 15760709.35 | BW23: 14284879.48 | BX23: 16669731.71 | BY23: 14534712.9 | BZ23: 17561089.92 | CA23: 16764353.38 | CB23: 14178643.42 | CC23: 13877521.68 | CD23: 15013083.52 | CE23: 14275176.91 | CF23: 16196666.13 | CG23: 17196745.89 | CH23: 17647788.4 | CI23: 21233575.8 | CJ23: 13958470.32 | CK23: 13892540.19 | CL23: 16556526.04 | CM23: 11513196.4 | CN23: 16776441.64 | CO23: 18100433.37 | CP23: 14804785.24 | CQ23: 17977267.76 | CR23: 16519367.18 | CS23: 15982723.59 | CT23: 15526739.69 | CU23: 14528638.57 | CV23: 16708901.69 | CW23: 13705015.67 | CX23: 18194599.16 | CY23: 21327101.32 | CZ23: 12756435.85 | DA23: 16855282.83 | DB23: 14360250.41 | DC23: 12535640.11 | DD23: 15493114.58 | DE23: 13068435.32 | DF23: 15975118.83 | DG23: 19672011.9 | DH23: 14753851.28 | DI23: 14694727.93 | DJ23: 13618079.65 | DK23: 15292697 | DL23: 11823795.58 | DM23: 15077697.41 | DN23: 13051997.93 | DO23: 16219982.59 | DP23: 17984295.81 | DQ23: 13640202.86 | DR23: 12367469.31 | DS23: 14532200.71 | DT23: 19910866.77 | DU23: 12813201.2 | DV23: 22989579.26 | DW23: 15534647.11 | DX23: 15329185.76 | DY23: 16667889.21 | DZ23: 15324409.21 | EA23: 16553795.04 | EB23: 12182956.95 | EC23: 14431979.36 | ED23: 13536242.98 | EE23: 19451498.64 | EF23: 12961416.38 | EG23: 15935164.73 | EH23: 16053308.31 | EI23: 16333153.71 | EJ23: 13460378.95 | EK23: 13824013.61 | EL23: 14446912.73 | EM23: 14323666.39 | EN23: 16434940.1 | EO23: 17197944.71 | EP23: 18034011.64 | EQ23: 14466117.6 | ER23: 15815268.16 | ES23: 16035964.08 | ET23: 12931583.52 | EU23: 16070559.01 | EV23: 18778527.93 | EW23: 18036801.6 | EX23: 12203775.73 | EY23: 12168300.23 | EZ23: 12722866.95 | FA23: 14074068.64 | FB23: 14128498.64 | FC23: 17906458.09 | FD23: 14603501.49 | FE23: 19213221.05 | FF23: 12513373.46 | FG23: 15106161.59 | FH23: 15678354.65 | FI23: 18641584.5 | FJ23: 17352669.4 | FK23: 13689010.37 | FL23: 14107952.16 | FM23: 18401423.49 | FN23: 15405542.62 | FO23: 16215234.19 | FP23: 16828683.49 | FQ23: 14065672.55 | FR23: 15705687.74 | FS23: 11740008.38 | FT23: 15052885.15 | FU23: 15364521.37 | FV23: 12285792.5 | FW23: 14445166.32 | FX23: 17333444.99 | FY23: 17257110.83 | FZ23: 15967490.3 | GA23: 18166020.01 | GB23: 14092916.36 | GC23: 15483189.11 | GD23: 14303018.07 | GE23: 15542573.97 | GF23: 15703189.58 | GG23: 11225856.27 | GH23: 15970952.42 | GI23: 13038093.41 | GJ23: 11904603.62 | GK23: 13201205.48 | GL23: 15559819.55 | GM23: 15081039.77 | GN23: 14115428.58 | GO23: 17075817.35 | GP23: 18029792.44 | GQ23: 17822259.83 | GR23: 13862861.19 | GS23: 12038630.34 | GT23: 17562495.96 | GU23: 14909167.96 | GV23: 14895849.99 | GW23: 16896911.9 | GX23: 13973596.28 | GY23: 11411650 | GZ23: 14379006.93 | HA23: 9886629.025 | HB23: 14150305.93 | HC23: 15997655.17 | HD23: 17521638.25 | HE23: 16145068.6 | HF23: 14338828.4 | HG23: 14309473.38 | HH23: 16039386.86 | HI23: 15165119.34 | HJ23: 13935454.05 | HK23: 12515581.87 | HL23: 14205833.62 | HM23: 17663480.93 | HN23: 13138039.27 | HO23: 16264399.51 | HP23: 13155548.21 | HQ23: 15975166.79 | HR23: 14861023.87 | HS23: 15681162.94 | HT23: 13644712.88 | HU23: 12665282.97 | HV23: 15839302.34 | HW23: 16063210.05 | HX23: 15686248.37 | HY23: 15596832.16 | HZ23: 10666588.53 | IA23: 13677131.43 | IB23: 15010596.79 | IC23: 14126953.57 | ID23: 15168693.76 | IE23: 14120645.86 | IF23: 17392243.42 | IG23: 15227775.04 | IH23: 12888173.01 | II23: 16527702.49 | IJ23: 18387817.72 | IK23: 11604432.14 | IL23: 13647625.7 | IM23: 12029611.8 | IN23: 15844834.86 | IO23: 16649159.86 | IP23: 16680275.55 | IQ23: 13226687.1 | IR23: 14689451.26 | IS23: 13510036.34 | IT23: 16727776.03 | IU23: 16003552.21 | IV23: 14618075.68 | IW23: 14997819.58 | IX23: 14410586.36 | IY23: 15066737.21 | IZ23: 14967977.33 | JA23: 14756079.76 | JB23: 16190505.73 | JC23: 17328387.04 | JD23: 17529733.08 | JE23: 16457995.56 | JF23: 14540682.75 | JG23: 15847885.35 | JH23: 16667524.23 | JI23: 15108515.53 | JJ23: 15556157.77 | JK23: 14119443.09 | JL23: 14859871.56 | JM23: 14608675.66 | JN23: 13056506.72 | JO23: 16337246.31 | JP23: 12842061.15 | JQ23: 16298591.49 | JR23: 15801026.31 | JS23: 14700686.38 | JT23: 15389164.67 | JU23: 13830649.99 | JV23: 15690747.34 | JW23: 15259502.02 | JX23: 15138897.03 | JY23: 20228323.89 | JZ23: 17481578.66 | KA23: 14545879.98 | KB23: 16648623.34 | KC23: 12425613.99 | KD23: 17643761.65 | KE23: 14829773.87 | KF23: 14427388.41 | KG23: 16239009.18 | KH23: 17230445.74 | KI23: 17023689.57 | KJ23: 14432831.22 | KK23: 16507574.01 | KL23: 17398713.74 | KM23: 18363082.57 | KN23: 16196960.79 | KO23: 15480680.93 | KP23: 16381189.77 | KQ23: 16731382.68 | KR23: 12907175.66 | KS23: 12930443.96 | KT23: 13411841.33 | KU23: 16190718.71 | KV23: 14088324.29 | KW23: 18024283.4 | KX23: 14885110.49 | KY23: 17722459.95 | KZ23: 17206229.35 | LA23: 10116131.3 | LB23: 14468887.38 | LC23: 15180906.72 | LD23: 18670216.86 | LE23: 13365532.92 | LF23: 12806427.3 | LG23: 14042876 | LH23: 19429104.39 | LI23: 16962942.4 | LJ23: 15297628.94 | LK23: 16416741.53 | LL23: 17793897.04 | LM23: 12477080.32 | LN23: 15972878.14 | LO23: 18415125.65 | LP23: 13215585.02 | LQ23: 13881006.58 | LR23: 13481231.03 | LS23: 13505722.87 | LT23: 14501342.51 | LU23: 17210225.21 | LV23: 19975266.54 | LW23: 16866653.14 | LX23: 16049002.96 | LY23: 8584181.171 | LZ23: 14697710.9 | MA23: 17127189.86 | MB23: 12058290.03 | MC23: 14101009.09 | MD23: 13033308.47 | ME23: 14832571.78 | MF23: 15992903.92 | MG23: 12767750.31 | MH23: 15573021.13 | MI23: 14955459.91 | MJ23: 17411652.83 | MK23: 17903582.15 | ML23: 19376004.53 | MM23: 15647737.71 | MN23: 14363317.81 | MO23: 15142743.83 | MP23: 15881573.81 | MQ23: 12884255.4 | MR23: 16717863.09 | MS23: 17430714.91 | MT23: 13127725.45 | MU23: 13588759.95 | MV23: 13666447.18 | MW23: 14449381.18 | MX23: 15188825.5 | MY23: 17361289.14 | MZ23: 17611259.78 | NA23: 12565353.67 | NB23: 18858110.96 | NC23: 13035262.86 | ND23: 12791287.43 | NE23: 12012606.46 | NF23: 15432642.78 | NG23: 17023303.15 | NH23: 14952267.9 | NI23: 16397820.47 | NJ23: 11398636.38 | NK23: 14479758.39 | NL23: 18165877.25 | NM23: 14799557.06 | NN23: 13887006.21 | NO23: 12436415.98 | NP23: 13285945.3 | NQ23: 11592332.95 | NR23: 15926506.14 | NS23: 15194771.44 | NT23: 14108712.66 | NU23: 16421894.96 | NV23: 12769635.49 | NW23: 19996776.05 | NX23: 15666100.66 | NY23: 17494605.78 | NZ23: 14609388.27 | OA23: 15551991.18 | OB23: 19024253.55 | OC23: 15564108.21 | OD23: 10838974.25 | OE23: 15614205.77 | OF23: 16128042.87 | OG23: 15786855.51 | OH23: 13886084.03 | OI23: 14755054.97 | OJ23: 11737168.56 | OK23: 16404787.55 | OL23: 13697858.57 | OM23: 17856977.64 | ON23: 15967113.45 | OO23: 14937143.69 | OP23: 15470391.98 | OQ23: 14778249.15 | OR23: 18208566.58 | OS23: 14636908.97 | OT23: 15946162.68 | OU23: 15445853.11 | OV23: 17360051.85 | OW23: 19964769.69 | OX23: 17589458.5 | OY23: 17146378.63 | OZ23: 16138723.71 | PA23: 16878494.86 | PB23: 16152218.06 | PC23: 16830445.02 | PD23: 13347163.42 | PE23: 17592087.3 | PF23: 13613976.21 | PG23: 17023244.52 | PH23: 15419612 | PI23: 18218484.98 | PJ23: 13247495.53 | PK23: 17647859.9 | PL23: 15395973.16 | PM23: 12255444.82 | PN23: 17871484.23 | PO23: 15899837.22 | PP23: 15399400.55 | PQ23: 17855221.55 | PR23: 16114750.74 | PS23: 17775771.32 | PT23: 17873441.09 | PU23: 14441633.25 | PV23: 16042861.33 | PW23: 14471572.91 | PX23: 15449605.9 | PY23: 13557972.97 | PZ23: 16645053.56 | QA23: 16905582.64 | QB23: 14206743 | QC23: 17298007.44 | QD23: 16866699.03 | QE23: 13392800.85 | QF23: 13210127.43 | QG23: 18228006.54 | QH23: 12536838.77 | QI23: 15769322.51 | QJ23: 14844089.98 | QK23: 16109385.95 | QL23: 13442891.63 | QM23: 15009403.27 | QN23: 18229216.7 | QO23: 19592834.35 | QP23: 15261026.84 | QQ23: 12943885.07 | QR23: 15309854.54 | QS23: 16586946.11 | QT23: 14077977.26 | QU23: 18039369.85 | QV23: 15345762.28 | QW23: 16531315.47 | QX23: 17879832.48 | QY23: 12613176.7 | QZ23: 18969997.39 | RA23: 12356213.97 | RB23: 16216080.69 | RC23: 12435581.26 | RD23: 15211598.86 | RE23: 13630619.04 | RF23: 12840584.37 | RG23: 14859365.77 | RH23: 18870837.85 | RI23: 16346581.4 | RJ23: 14296333.17 | RK23: 13290637.51 | RL23: 15093595.26 | RM23: 16335462.83 | RN23: 17645192.63 | RO23: 13678757.34 | RP23: 14459434.64 | RQ23: 14928312.63 | RR23: 13430820.19 | RS23: 14840939.64 | RT23: 14227544.76 | RU23: 13798399.19 | RV23: 14470156.7 | RW23: 17813400.06 | RX23: 16660061.6 | RY23: 13855185.32 | RZ23: 11386161.76 | SA23: 14382968.01 | SB23: 13635167.81 | SC23: 15023445.79 | SD23: 12488480.73 | SE23: 15499182.45 | SF23: 13123843.13 | SG23: 15024013.08

Sheet List3
A1: Spolehlivé hodnoty | F1: Spol. hodnota | G1: =List1!I3/100 -> 0.8
B2: Max | C2: Min | D2: Počet prvků | E2: Poč. inter | F2: Délka int.
A3: 1. rok | B3: =MAX(List2!A4:SF4) -> 21060935.44 | C3: =MIN(List2!A4:SF4) -> 10088484.41 | D3: =COUNT(List2!A4:SSF4) -> 500 | E3: =ROUNDUP(2.5*POWER(D3,1/4),0) -> 12 | F3: =(B3-C3)/E3 -> 914370.9191
A4: 2. rok | B4: =MAX(List2!A5:SF5) -> 21079312.83 | C4: =MIN(List2!A5:SF5) -> 10458547.66 | D4: =COUNT(List2!A5:SSF5) -> 500 | E4: 12 | F4: 885063.7642
A5: 3. rok | B5: =MAX(List2!A6:SF6) -> 20727734.88 | C5: =MIN(List2!A6:SF6) -> 10602682.84 | D5: =COUNT(List2!A6:SSF6) -> 500 | E5: 12 | F5: 843754.3367
A6: 4. rok | B6: =MAX(List2!A7:SF7) -> 20261855.3 | C6: =MIN(List2!A7:SF7) -> 9540852.685 | D6: =COUNT(List2!A7:SSF7) -> 500 | E6: 12 | F6: 893416.8846
A7: 5. rok | B7: =MAX(List2!A8:SF8) -> 20376602.57 | C7: =MIN(List2!A8:SF8) -> 9772498.324 | D7: =COUNT(List2!A8:SSF8) -> 500 | E7: 12 | F7: 883675.3542
A8: 6. rok | B8: =MAX(List2!A9:SF9) -> 20559021.27 | C8: =MIN(List2!A9:SF9) -> 9677710.595 | D8: =COUNT(List2!A9:SSF9) -> 500 | E8: 12 | F8: 906775.8896
A9: 7. rok | B9: =MAX(List2!A10:SF10) -> 22337963.1 | C9: =MIN(List2!A10:SF10) -> 10023815.42 | D9: =COUNT(List2!A10:SSF10) -> 500 | E9: 12 | F9: 1026178.974
A10: 8. rok | B10: =MAX(List2!A11:SF11) -> 21149467.37 | C10: =MIN(List2!A11:SF11) -> 9428437.033 | D10: =COUNT(List2!A11:SSF11) -> 500 | E10: 12 | F10: 976752.5282
A11: 9. rok | B11: =MAX(List2!A12:SF12) -> 21436702.11 | C11: =MIN(List2!A12:SF12) -> 6787097.785 | D11: =COUNT(List2!A12:SSF12) -> 500 | E11: 12 | F11: 1220800.361
A12: 10. rok | B12: =MAX(List2!A13:SF13) -> 21014075.07 | C12: =MIN(List2!A13:SF13) -> 9711963.733 | D12: =COUNT(List2!A13:SSF13) -> 500 | E12: 12 | F12: 941842.6119
A13: 11. rok | B13: =MAX(List2!A14:SF14) -> 20873653.22 | C13: =MIN(List2!A14:SF14) -> 9931794.37 | D13: =COUNT(List2!A14:SSF14) -> 500 | E13: 12 | F13: 911821.5704
A14: 12. rok | B14: =MAX(List2!A15:SF15) -> 20477232.98 | C14: =MIN(List2!A15:SF15) -> 9735247.9 | D14: =COUNT(List2!A15:SSF15) -> 500 | E14: 12 | F14: 895165.4233
A15: 13. rok | B15: =MAX(List2!A16:SF16) -> 20342296.61 | C15: =MIN(List2!A16:SF16) -> 9183497.159 | D15: =COUNT(List2!A16:SSF16) -> 500 | E15: 12 | F15: 929899.9545
A16: 14. rok | B16: =MAX(List2!A17:SF17) -> 21630462.61 | C16: =MIN(List2!A17:SF17) -> 9638923.093 | D16: =COUNT(List2!A17:SSF17) -> 500 | E16: 12 | F16: 999294.9596
A17: 15. rok | B17: =MAX(List2!A18:SF18) -> 20093070.17 | C17: =MIN(List2!A18:SF18) -> 8949273.016 | D17: =COUNT(List2!A18:SSF18) -> 500 | E17: 12 | F17: 928649.7629
A18: 16. rok | B18: =MAX(List2!A19:SF19) -> 21949932.7 | C18: =MIN(List2!A19:SF19) -> 9967519.168 | D18: =COUNT(List2!A19:SSF19) -> 500 | E18: 12 | F18: 998534.4611
A19: 17. rok | B19: =MAX(List2!A20:SF20) -> 20406308.42 | C19: =MIN(List2!A20:SF20) -> 9926892.455 | D19: =COUNT(List2!A20:SSF20) -> 500 | E19: 12 | F19: 873284.6637
A20: 18. rok | B20: =MAX(List2!A21:SF21) -> 20477641.89 | C20: =MIN(List2!A21:SF21) -> 9632699.072 | D20: =COUNT(List2!A21:SSF21) -> 500 | E20: 12 | F20: 903745.2351
A21: 19. rok | B21: =MAX(List2!A22:SF22) -> 20454636.59 | C21: =MIN(List2!A22:SF22) -> 9926240.629 | D21: =COUNT(List2!A22:SSF22) -> 500 | E21: 12 | F21: 877366.3302
A22: 20. rok | B22: =MAX(List2!A23:SF23) -> 22989579.26 | C22: =MIN(List2!A23:SF23) -> 8584181.171 | D22: =COUNT(List2!A23:SSF23) -> 500 | E22: 12 | F22: 1200449.84
I25: Min | J25: =MIN(List2!A4:SF4) -> 10088484.41
I26: Max | J26: =MAX(List2!A4:SF4) -> 21060935.44
I27: 1 | J27: =(FREQUENCY(List2!$A$4:$SF$4,K27))/$D$3 -> 0.002 | K27: =C3 -> 10088484.41 | L27: =FREQUENCY(List2!$A$4:$SF$4,K27) -> 1 | M27: =L27 -> 1 | N27: =$G$1 -> 0.8
I28: 2 | J28: =(FREQUENCY(List2!$A$4:$SF$4,K28))/$D$3 -> 0.014 | K28: =K27+$F$3 -> 11002855.33 | L28: =FREQUENCY(List2!$A$4:$SF$4,K28) -> 7 | M28: =L28-L27 -> 6 | N28: =$G$1 -> 0.8
I29: 3 | J29: =(FREQUENCY(List2!$A$4:$SF$4,K29))/$D$3 -> 0.04 | K29: =K28+$F$3 -> 11917226.25 | L29: =FREQUENCY(List2!$A$4:$SF$4,K29) -> 20 | M29: =L29-L28 -> 13 | N29: 0.8
I30: 4 | J30: =(FREQUENCY(List2!$A$4:$SF$4,K30))/$D$3 -> 0.118 | K30: 12831597.17 | L30: =FREQUENCY(List2!$A$4:$SF$4,K30) -> 59 | M30: 39 | N30: 0.8
I31: 5 | J31: =(FREQUENCY(List2!$A$4:$SF$4,K31))/$D$3 -> 0.236 | K31: 13745968.09 | L31: =FREQUENCY(List2!$A$4:$SF$4,K31) -> 118 | M31: 59 | N31: 0.8
I32: 6 | J32: =(FREQUENCY(List2!$A$4:$SF$4,K32))/$D$3 -> 0.392 | K32: 14660339 | L32: =FREQUENCY(List2!$A$4:$SF$4,K32) -> 196 | M32: 78 | N32: 0.8
I33: 7 | J33: =(FREQUENCY(List2!$A$4:$SF$4,K33))/$D$3 -> 0.604 | K33: 15574709.92 | L33: =FREQUENCY(List2!$A$4:$SF$4,K33) -> 302 | M33: 106 | N33: 0.8
I34: 8 | J34: =(FREQUENCY(List2!$A$4:$SF$4,K34))/$D$3 -> 0.772 | K34: 16489080.84 | L34: =FREQUENCY(List2!$A$4:$SF$4,K34) -> 386 | M34: 84 | N34: 0.8
I35: 9 | J35: =(FREQUENCY(List2!$A$4:$SF$4,K35))/$D$3 -> 0.89 | K35: 17403451.76 | L35: =FREQUENCY(List2!$A$4:$SF$4,K35) -> 445 | M35: 59 | N35: 0.8
I36: 10 | J36: =(FREQUENCY(List2!$A$4:$SF$4,K36))/$D$3 -> 0.952 | K36: 18317822.68 | L36: =FREQUENCY(List2!$A$4:$SF$4,K36) -> 476 | M36: 31 | N36: 0.8
I37: 11 | J37: =(FREQUENCY(List2!$A$4:$SF$4,K37))/$D$3 -> 0.978 | K37: 19232193.6 | L37: =FREQUENCY(List2!$A$4:$SF$4,K37) -> 489 | M37: 13 | N37: 0.8
I38: 12 | J38: =(FREQUENCY(List2!$A$4:$SF$4,K38))/$D$3 -> 0.99 | K38: =K37+$F$3 -> 20146564.52 | L38: =FREQUENCY(List2!$A$4:$SF$4,K38) -> 495 | M38: 6 | N38: 0.8
I39: 13 | J39: =(FREQUENCY(List2!$A$4:$SF$4,K39))/$D$3 -> 0.998 | K39: 21060935.44 | L39: =FREQUENCY(List2!$A$4:$SSF$4,K39) -> 500 | M39: 5 | N39: 0.8
J40: Percentil | K40: =_xlfn.PERCENTILE.INC(List2!A4:SF4,L40) -> 16623352.2 | L40: =G1 -> 0.8
K43: Spolehlivé hodnoty CF | L43: Simulované CF | M43: Investice
J44: 1 | K44: =_xlfn.PERCENTILE.INC(List2!A4:SF4,$L$40) -> 16623352.2 | L44: =K44 -> 16623352.2 | M44: =List1!B3 -> 117500000 | N44: =J44 -> 1 | O44: =IF(J44=$G$59,L44,0) -> 0 | P44: =IF(J44<>$G$59,L44,0) -> 16623352.2 | Q44: =IF(P44=0,"NÁVRATNOST","") -> 
J45: 2 | K45: =_xlfn.PERCENTILE.INC(List2!A5:SF5,$L$40) -> 16747200.95 | L45: =L44+K45 -> 33370553.15 | M45: =M44 -> 117500000 | N45: 2 | O45: 0 | P45: 33370553.15
J46: 3 | K46: =_xlfn.PERCENTILE.INC(List2!A6:SF6,$L$40) -> 16990023.3 | L46: 50360576.45 | M46: 117500000 | N46: 3 | O46: 0 | P46: 50360576.45
J47: 4 | K47: =_xlfn.PERCENTILE.INC(List2!A7:SF7,$L$40) -> 16852999.13 | L47: 67213575.58 | M47: 117500000 | N47: 4 | O47: 0 | P47: 67213575.58
J48: 5 | K48: =_xlfn.PERCENTILE.INC(List2!A8:SF8,$L$40) -> 16778013.81 | L48: 83991589.39 | M48: 117500000 | N48: 5 | O48: 0 | P48: 83991589.39
J49: 6 | K49: =_xlfn.PERCENTILE.INC(List2!A9:SF9,$L$40) -> 16792853.45 | L49: 100784442.8 | M49: 117500000 | N49: 6 | O49: 0 | P49: 100784442.8
J50: 7 | K50: =_xlfn.PERCENTILE.INC(List2!A10:SF10,$L$40) -> 17037973 | L50: 117822415.8 | M50: 117500000 | N50: 7 | O50: 117822415.8 | P50: 0 | Q50: =IF(P50=0,"NÁVRATNOST","") -> NÁVRATNOST
J51: 8 | K51: =_xlfn.PERCENTILE.INC(List2!A11:SF11,$L$40) -> 16664728.48 | L51: 134487144.3 | M51: 117500000 | N51: 8 | O51: 0 | P51: 134487144.3 | Q51: =IF(P51=0,"NÁVRATNOST","") -> 
J52: 9 | K52: =_xlfn.PERCENTILE.INC(List2!A12:SF12,$L$40) -> 16685457.02 | L52: 151172601.3 | M52: 117500000 | N52: 9 | O52: 0 | P52: 151172601.3
J53: 10 | K53: =_xlfn.PERCENTILE.INC(List2!A13:SF13,$L$40) -> 16836191.03 | L53: 168008792.4 | M53: 117500000 | N53: 10 | O53: 0 | P53: 168008792.4
J54: 11 | K54: =_xlfn.PERCENTILE.INC(List2!A14:SF14,$L$40) -> 16932913.37 | L54: 184941705.7 | M54: 117500000 | N54: 11 | O54: 0 | P54: 184941705.7
J55: 12 | K55: =_xlfn.PERCENTILE.INC(List2!A15:SF15,$L$40) -> 16730446.44 | L55: 201672152.2 | M55: 117500000 | N55: 12 | O55: 0 | P55: 201672152.2
J56: 13 | K56: =_xlfn.PERCENTILE.INC(List2!A16:SF16,$L$40) -> 17007105.42 | L56: 218679257.6 | M56: 117500000 | N56: 13 | O56: 0 | P56: 218679257.6
J57: 14 | K57: =_xlfn.PERCENTILE.INC(List2!A17:SF17,$L$40) -> 16847310.41 | L57: 235526568 | M57: 117500000 | N57: 14 | O57: 0 | P57: 235526568
J58: 15 | K58: =_xlfn.PERCENTILE.INC(List2!A18:SF18,$L$40) -> 17114253.06 | L58: 252640821.1 | M58: 117500000 | N58: 15 | O58: 0 | P58: 252640821.1
F59: Doba návratnosti | G59: =VLOOKUP(G60,L44:N63,3)+1 -> 7 | H59: let | J59: 16 | K59: =_xlfn.PERCENTILE.INC(List2!A19:SF19,$L$40) -> 16481193.3 | L59: 269122014.4 | M59: 117500000 | N59: 16 | O59: 0 | P59: 269122014.4
F60: Investice | G60: =M44 -> 117500000 | J60: 17 | K60: =_xlfn.PERCENTILE.INC(List2!A20:SF20,$L$40) -> 16686219.48 | L60: 285808233.9 | M60: 117500000 | N60: 17 | O60: 0 | P60: 285808233.9
J61: 18 | K61: =_xlfn.PERCENTILE.INC(List2!A21:SF21,$L$40) -> 16820561.73 | L61: 302628795.6 | M61: 117500000 | N61: 18 | O61: 0 | P61: 302628795.6
J62: 19 | K62: =_xlfn.PERCENTILE.INC(List2!A22:SF22,$L$40) -> 16743335.47 | L62: 319372131 | M62: 117500000 | N62: 19 | O62: 0 | P62: 319372131
J63: 20 | K63: =_xlfn.PERCENTILE.INC(List2!A23:SF23,$L$40) -> 16987063.24 | L63: 336359194.3 | M63: 117500000 | N63: 20 | O63: 0 | P63: 336359194.3
L66: =List1!B12 -> 50000 | M66: t/ rok
C67: =CONCATENATE("Statické CF bez rizik ",L66," t/rok") -> Statické CF bez rizik 50000 t/rok | J67: Determn CF bez rizik | K67: 15800000 | L67: Statické CF bez rizik
J68: 1 | K68: =$K$67 -> 15800000 | L68: =K68 -> 15800000 | M68: =M44 -> 117500000 | N68: =J68 -> 1 | O68: =IF(J68=$G$87,L68,0) -> 0 | P68: =IF(J68<>$G$87,L68,0) -> 15800000
J69: 2 | K69: =$K$67 -> 15800000 | L69: =K69+L68 -> 31600000 | M69: 117500000 | N69: 2 | O69: =IF(J69=$G$87,L69,0) -> 0 | P69: =IF(J69<>$G$87,L69,0) -> 31600000
J70: 3 | K70: 15800000 | L70: =K70+L69 -> 47400000 | M70: 117500000 | N70: 3 | O70: =IF(J70=$G$87,L70,0) -> 0 | P70: =IF(J70<>$G$87,L70,0) -> 47400000
J71: 4 | K71: 15800000 | L71: 63200000 | M71: 117500000 | N71: 4 | O71: =IF(J71=$G$87,L71,0) -> 0 | P71: =IF(J71<>$G$87,L71,0) -> 63200000
J72: 5 | K72: 15800000 | L72: 79000000 | M72: 117500000 | N72: 5 | O72: =IF(J72=$G$87,L72,0) -> 0 | P72: =IF(J72<>$G$87,L72,0) -> 79000000
J73: 6 | K73: 15800000 | L73: 94800000 | M73: 117500000 | N73: 6 | O73: =IF(J73=$G$87,L73,0) -> 0 | P73: =IF(J73<>$G$87,L73,0) -> 94800000
J74: 7 | K74: 15800000 | L74: 110600000 | M74: 117500000 | N74: 7 | O74: =IF(J74=$G$87,L74,0) -> 0 | P74: =IF(J74<>$G$87,L74,0) -> 110600000
J75: 8 | K75: 15800000 | L75: 126400000 | M75: 117500000 | N75: 8 | O75: =IF(J75=$G$87,L75,0) -> 126400000 | P75: =IF(J75<>$G$87,L75,0) -> 0
J76: 9 | K76: 15800000 | L76: 142200000 | M76: 117500000 | N76: 9 | O76: =IF(J76=$G$87,L76,0) -> 0 | P76: =IF(J76<>$G$87,L76,0) -> 142200000
J77: 10 | K77: 15800000 | L77: 158000000 | M77: 117500000 | N77: 10 | O77: =IF(J77=$G$87,L77,0) -> 0 | P77: =IF(J77<>$G$87,L77,0) -> 158000000
J78: 11 | K78: 15800000 | L78: 173800000 | M78: 117500000 | N78: 11 | O78: =IF(J78=$G$87,L78,0) -> 0 | P78: =IF(J78<>$G$87,L78,0) -> 173800000
J79: 12 | K79: 15800000 | L79: 189600000 | M79: 117500000 | N79: 12 | O79: =IF(J79=$G$87,L79,0) -> 0 | P79: =IF(J79<>$G$87,L79,0) -> 189600000
J80: 13 | K80: 15800000 | L80: 205400000 | M80: 117500000 | N80: 13 | O80: =IF(J80=$G$87,L80,0) -> 0 | P80: =IF(J80<>$G$87,L80,0) -> 205400000
J81: 14 | K81: 15800000 | L81: 221200000 | M81: 117500000 | N81: 14 | O81: =IF(J81=$G$87,L81,0) -> 0 | P81: =IF(J81<>$G$87,L81,0) -> 221200000
J82: 15 | K82: 15800000 | L82: 237000000 | M82: 117500000 | N82: 15 | O82: =IF(J82=$G$87,L82,0) -> 0 | P82: =IF(J82<>$G$87,L82,0) -> 237000000
J83: 16 | K83: 15800000 | L83: 252800000 | M83: 117500000 | N83: 16 | O83: =IF(J83=$G$87,L83,0) -> 0 | P83: =IF(J83<>$G$87,L83,0) -> 252800000
J84: 17 | K84: 15800000 | L84: 268600000 | M84: 117500000 | N84: 17 | O84: =IF(J84=$G$87,L84,0) -> 0 | P84: =IF(J84<>$G$87,L84,0) -> 268600000
J85: 18 | K85: 15800000 | L85: 284400000 | M85: 117500000 | N85: 18 | O85: =IF(J85=$G$87,L85,0) -> 0 | P85: =IF(J85<>$G$87,L85,0) -> 284400000
J86: 19 | K86: 15800000 | L86: 300200000 | M86: 117500000 | N86: 19 | O86: =IF(J86=$G$87,L86,0) -> 0 | P86: =IF(J86<>$G$87,L86,0) -> 300200000
F87: Doba návratnosti | G87: =VLOOKUP(M44,L68:N87,3)+1 -> 8 | H87: let | J87: 20 | K87: 15800000 | L87: 316000000 | M87: 117500000 | N87: 20 | O87: =IF(J87=$G$87,L87,0) -> 0 | P87: =IF(J87<>$G$87,L87,0) -> 316000000
C90: =CONCATENATE("Statické CF s riziky ", L66," t/rok") -> Statické CF s riziky 50000 t/rok
J91: Determn CF s riziky | K91: =List1!B13 -> 15237000 | L91: Statické CF s riziky | M91: Investice
J92: 1 | K92: =K91 -> 15237000 | L92: =K92 -> 15237000 | M92: =M68 -> 117500000 | N92: =J92 -> 1 | O92: =IF(J92=$G$111,L92,0) -> 0 | P92: =IF(J92<>$G$111,L92,0) -> 15237000
J93: 2 | K93: =K92 -> 15237000 | L93: =K93+L92 -> 30474000 | M93: 117500000 | N93: 2 | O93: =IF(J93=$G$111,L93,0) -> 0 | P93: =IF(J93<>$G$111,L93,0) -> 30474000
J94: 3 | K94: 15237000 | L94: =K94+L93 -> 45711000 | M94: 117500000 | N94: 3 | O94: =IF(J94=$G$111,L94,0) -> 0 | P94: =IF(J94<>$G$111,L94,0) -> 45711000
J95: 4 | K95: 15237000 | L95: 60948000 | M95: 117500000 | N95: 4 | O95: =IF(J95=$G$111,L95,0) -> 0 | P95: =IF(J95<>$G$111,L95,0) -> 60948000
J96: 5 | K96: 15237000 | L96: 76185000 | M96: 117500000 | N96: 5 | O96: =IF(J96=$G$111,L96,0) -> 0 | P96: =IF(J96<>$G$111,L96,0) -> 76185000
J97: 6 | K97: 15237000 | L97: 91422000 | M97: 117500000 | N97: 6 | O97: =IF(J97=$G$111,L97,0) -> 0 | P97: =IF(J97<>$G$111,L97,0) -> 91422000
J98: 7 | K98: 15237000 | L98: 106659000 | M98: 117500000 | N98: 7 | O98: =IF(J98=$G$111,L98,0) -> 0 | P98: =IF(J98<>$G$111,L98,0) -> 106659000
J99: 8 | K99: 15237000 | L99: 121896000 | M99: 117500000 | N99: 8 | O99: =IF(J99=$G$111,L99,0) -> 121896000 | P99: =IF(J99<>$G$111,L99,0) -> 0
J100: 9 | K100: 15237000 | L100: 137133000 | M100: 117500000 | N100: 9 | O100: =IF(J100=$G$111,L100,0) -> 0 | P100: =IF(J100<>$G$111,L100,0) -> 137133000
J101: 10 | K101: 15237000 | L101: 152370000 | M101: 117500000 | N101: 10 | O101: =IF(J101=$G$111,L101,0) -> 0 | P101: =IF(J101<>$G$111,L101,0) -> 152370000
J102: 11 | K102: 15237000 | L102: 167607000 | M102: 117500000 | N102: 11 | O102: =IF(J102=$G$111,L102,0) -> 0 | P102: =IF(J102<>$G$111,L102,0) -> 167607000
J103: 12 | K103: 15237000 | L103: 182844000 | M103: 117500000 | N103: 12 | O103: =IF(J103=$G$111,L103,0) -> 0 | P103: =IF(J103<>$G$111,L103,0) -> 182844000
J104: 13 | K104: 15237000 | L104: 198081000 | M104: 117500000 | N104: 13 | O104: =IF(J104=$G$111,L104,0) -> 0 | P104: =IF(J104<>$G$111,L104,0) -> 198081000
J105: 14 | K105: 15237000 | L105: 213318000 | M105: 117500000 | N105: 14 | O105: =IF(J105=$G$111,L105,0) -> 0 | P105: =IF(J105<>$G$111,L105,0) -> 213318000
J106: 15 | K106: 15237000 | L106: 228555000 | M106: 117500000 | N106: 15 | O106: =IF(J106=$G$111,L106,0) -> 0 | P106: =IF(J106<>$G$111,L106,0) -> 228555000
J107: 16 | K107: 15237000 | L107: 243792000 | M107: 117500000 | N107: 16 | O107: =IF(J107=$G$111,L107,0) -> 0 | P107: =IF(J107<>$G$111,L107,0) -> 243792000
J108: 17 | K108: 15237000 | L108: 259029000 | M108: 117500000 | N108: 17 | O108: =IF(J108=$G$111,L108,0) -> 0 | P108: =IF(J108<>$G$111,L108,0) -> 259029000
J109: 18 | K109: 15237000 | L109: 274266000 | M109: 117500000 | N109: 18 | O109: =IF(J109=$G$111,L109,0) -> 0 | P109: =IF(J109<>$G$111,L109,0) -> 274266000
J110: 19 | K110: 15237000 | L110: 289503000 | M110: 117500000 | N110: 19 | O110: =IF(J110=$G$111,L110,0) -> 0 | P110: =IF(J110<>$G$111,L110,0) -> 289503000
F111: Doba návratnosti | G111: =VLOOKUP(M44,L92:N111,3)+1 -> 8 | H111: let | J111: 20 | K111: 15237000 | L111: 304740000 | M111: 117500000 | N111: 20 | O111: =IF(J111=$G$111,L111,0) -> 0 | P111: =IF(J111<>$G$111,L111,0) -> 304740000
K114: =List1!B16 -> 40000 | L114: t/rok
J115: Determn CF bez rizik | K115: =List1!B18 -> 12640000 | L115: Statické CF | M115: Investice
C116: =CONCATENATE("Statické CF bez rizik ", K114," t/rok") -> Statické CF bez rizik 40000 t/rok | J116: 1 | K116: =K115 -> 12640000 | L116: =K116 -> 12640000 | M116: =M92 -> 117500000 | N116: =J116 -> 1 | O116: =IF(J116=$G$134,L116,0) -> 0 | P116: =IF(J116<>$G$134,L116,0) -> 12640000
J117: 2 | K117: =K116 -> 12640000 | L117: =K117+L116 -> 25280000 | M117: 117500000 | N117: 2 | O117: =IF(J117=$G$134,L117,0) -> 0 | P117: =IF(J117<>$G$134,L117,0) -> 25280000
J118: 3 | K118: 12640000 | L118: =K118+L117 -> 37920000 | M118: 117500000 | N118: 3 | O118: 0 | P118: 37920000
J119: 4 | K119: 12640000 | L119: 50560000 | M119: 117500000 | N119: 4 | O119: 0 | P119: 50560000
J120: 5 | K120: 12640000 | L120: 63200000 | M120: 117500000 | N120: 5 | O120: 0 | P120: 63200000
J121: 6 | K121: 12640000 | L121: 75840000 | M121: 117500000 | N121: 6 | O121: 0 | P121: 75840000
J122: 7 | K122: 12640000 | L122: 88480000 | M122: 117500000 | N122: 7 | O122: 0 | P122: 88480000
J123: 8 | K123: 12640000 | L123: 101120000 | M123: 117500000 | N123: 8 | O123: 0 | P123: 101120000
J124: 9 | K124: 12640000 | L124: 113760000 | M124: 117500000 | N124: 9 | O124: 0 | P124: 113760000
J125: 10 | K125: 12640000 | L125: 126400000 | M125: 117500000 | N125: 10 | O125: 126400000 | P125: 0
J126: 11 | K126: 12640000 | L126: 139040000 | M126: 117500000 | N126: 11 | O126: 0 | P126: 139040000
J127: 12 | K127: 12640000 | L127: 151680000 | M127: 117500000 | N127: 12 | O127: 0 | P127: 151680000
J128: 13 | K128: 12640000 | L128: 164320000 | M128: 117500000 | N128: 13 | O128: 0 | P128: 164320000
J129: 14 | K129: 12640000 | L129: 176960000 | M129: 117500000 | N129: 14 | O129: 0 | P129: 176960000
J130: 15 | K130: 12640000 | L130: 189600000 | M130: 117500000 | N130: 15 | O130: 0 | P130: 189600000
J131: 16 | K131: 12640000 | L131: 202240000 | M131: 117500000 | N131: 16 | O131: 0 | P131: 202240000
J132: 17 | K132: 12640000 | L132: 214880000 | M132: 117500000 | N132: 17 | O132: 0 | P132: 214880000
J133: 18 | K133: 12640000 | L133: 227520000 | M133: 117500000 | N133: 18 | O133: 0 | P133: 227520000
F134: Doba návratnosti | G134: =VLOOKUP(M116,L116:N135,3)+1 -> 10 | H134: let | J134: 19 | K134: 12640000 | L134: 240160000 | M134: 117500000 | N134: 19 | O134: 0 | P134: 240160000
J135: 20 | K135: 12640000 | L135: 252800000 | M135: 117500000 | N135: 20 | O135: 0 | P135: 252800000
C137: =CONCATENATE("Statické CF s riziky ", K114," t/rok") -> Statické CF s riziky 40000 t/rok
J139: Determn CF s riziky | K139: =List1!B17 -> 12077000 | L139: Statické CF s riziky | M139: Investice
J140: 1 | K140: =K139 -> 12077000 | L140: =K140 -> 12077000 | M140: =M116 -> 117500000 | N140: =J140 -> 1 | O140: =IF(J140=$G$158,L140,0) -> 0 | P140: =IF(J140<>$G$158,L140,0) -> 12077000
J141: 2 | K141: =K140 -> 12077000 | L141: =K141+L140 -> 24154000 | M141: 117500000 | N141: 2 | O141: =IF(J141=$G$158,L141,0) -> 0 | P141: =IF(J141<>$G$158,L141,0) -> 24154000
J142: 3 | K142: 12077000 | L142: =K142+L141 -> 36231000 | M142: 117500000 | N142: 3 | O142: 0 | P142: 36231000
J143: 4 | K143: 12077000 | L143: 48308000 | M143: 117500000 | N143: 4 | O143: 0 | P143: 48308000
J144: 5 | K144: 12077000 | L144: 60385000 | M144: 117500000 | N144: 5 | O144: 0 | P144: 60385000
J145: 6 | K145: 12077000 | L145: 72462000 | M145: 117500000 | N145: 6 | O145: 0 | P145: 72462000
J146: 7 | K146: 12077000 | L146: 84539000 | M146: 117500000 | N146: 7 | O146: 0 | P146: 84539000
J147: 8 | K147: 12077000 | L147: 96616000 | M147: 117500000 | N147: 8 | O147: 0 | P147: 96616000
J148: 9 | K148: 12077000 | L148: 108693000 | M148: 117500000 | N148: 9 | O148: 0 | P148: 108693000
J149: 10 | K149: 12077000 | L149: 120770000 | M149: 117500000 | N149: 10 | O149: 120770000 | P149: 0
J150: 11 | K150: 12077000 | L150: 132847000 | M150: 117500000 | N150: 11 | O150: 0 | P150: 132847000
J151: 12 | K151: 12077000 | L151: 144924000 | M151: 117500000 | N151: 12 | O151: 0 | P151: 144924000
J152: 13 | K152: 12077000 | L152: 157001000 | M152: 117500000 | N152: 13 | O152: 0 | P152: 157001000
J153: 14 | K153: 12077000 | L153: 169078000 | M153: 117500000 | N153: 14 | O153: 0 | P153: 169078000
J154: 15 | K154: 12077000 | L154: 181155000 | M154: 117500000 | N154: 15 | O154: 0 | P154: 181155000
J155: 16 | K155: 12077000 | L155: 193232000 | M155: 117500000 | N155: 16 | O155: 0 | P155: 193232000
J156: 17 | K156: 12077000 | L156: 205309000 | M156: 117500000 | N156: 17 | O156: 0 | P156: 205309000
J157: 18 | K157: 12077000 | L157: 217386000 | M157: 117500000 | N157: 18 | O157: 0 | P157: 217386000
F158: Doba návratnosti | G158: =VLOOKUP(M140,L140:N159,3)+1 -> 10 | H158: let | J158: 19 | K158: 12077000 | L158: 229463000 | M158: 117500000 | N158: 19 | O158: 0 | P158: 229463000
J159: 20 | K159: 12077000 | L159: 241540000 | M159: 117500000 | N159: 20 | O159: 0 | P159: 241540000
C164: Porovnání statických CF se simulovanými CF | O164: =CONCATENATE("Statické CF při produkci ", L66, "t") -> Statické CF při produkci 50000t

Sheet Vyhodnoceni
A1: Simulované hodnoty
A2: =CONCATENATE("Doba návratnosti investice s aplikací rizikových faktorů s pravděpodobností ",List1!I3,"% je ",List3!G59," let.") -> Doba návratnosti investice s aplikací rizikových faktorů s pravděpodobností 80% je 7 let.
A3: =CONCATENATE("Statická navrátnost při produkci ",List1!B12," t ročně.") -> Statická navrátnost při produkci 50000 t ročně.
A4: =CONCATENATE("Doba statické návratnosti investice s aplikací rizikových faktorů při produkci ",List1!B12," t ročně je ",List3!G111," let" ) -> Doba statické návratnosti investice s aplikací rizikových faktorů při produkci 50000 t ročně je 8 let
A5: =CONCATENATE("Statická navrátnost při produkci ",List1!B12," t ročně.") -> Statická navrátnost při produkci 50000 t ročně.
A6: =CONCATENATE("Doba statické návratnosti investice bez aplikace rizikových faktorů při produkci ",List1!B12," t ročně je ",List3!G87," let" ) -> Doba statické návratnosti investice bez aplikace rizikových faktorů při produkci 50000 t ročně je 8 let
A7: =CONCATENATE("Statická navrátnost při produkci ",List1!B16," t ročně.") -> Statická navrátnost při produkci 40000 t ročně.
A8: =CONCATENATE("Doba statické návratnosti investice s aplikací rizikových faktorů při produkci ",List1!B16," t ročně je ",List3!G158," let" ) -> Doba statické návratnosti investice s aplikací rizikových faktorů při produkci 40000 t ročně je 10 let
A9: =CONCATENATE("Statická navrátnost při produkci ",List1!B16," t ročně.") -> Statická navrátnost při produkci 40000 t ročně.
A10: =CONCATENATE("Doba statické návratnosti investice s aplikací rizikových faktorů při produkci ",List1!B16," t ročně je ",List3!G134," let" ) -> Doba statické návratnosti investice s aplikací rizikových faktorů při produkci 40000 t ročně je 10 let
